Workbook

Sheet OVERALL RATING (avg)
C3: =IF(E62=0,"Make Model",CONCATENATE(E62," ",G62)) -> Make Model
D6: SUSTAINABILITY RATING
D7: Clean Air | F7: Energy Efficiency | H7: Greenhouse Gases
D8: 32.6 | F8: 40.5
C24: PRODUCTION
C25: Lab Testing | D25: ='Clean Air'!C18 -> WLTP CoC Type Approval | E25: ='Clean Air'!J35 -> 10 | F25: =D25 -> WLTP CoC Type Approval | G25: =SUM(Efficiency!I13:I13) -> 0 | H25: =D25 -> WLTP CoC Type Approval | I25: =Greenhouse!I52 -> 0
D26: ='Clean Air'!C27 -> WLTC + Warm | E26: ='Clean Air'!#REF! ->  | F26: =D26 -> WLTC + Warm | G26: =Efficiency!I10 -> 0 | H26: =D26 -> WLTC + Warm | I26: =Greenhouse!I25 -> 0
D27: ='Clean Air'!C36 -> WLTC+ CAT Cold | E27: ='Clean Air'!J44 -> 10 | F27: WLTC+ CAT Cold | G27: =Efficiency!I14 -> 0 | H27: WLTC+ CAT Cold | I27: =Greenhouse!I61 -> 0
D28: ='Clean Air'!C45 -> WLTC+ CAT Warm | E28: ='Clean Air'!#REF! ->  | F28: WLTC+ CAT Warm | G28: =IF(Efficiency!#REF!=0,"-",Efficiency!#REF!) ->  | H28: WLTC+ CAT Warm | I28: =IF(Greenhouse!#REF!=0,"-",Greenhouse!#REF!) -> 
D29: ='Clean Air'!C54 -> BAB130 Motorway | E29: ='Clean Air'!#REF! ->  | F29: BAB130 Motorway | G29: =IF(Efficiency!#REF!=0,"-",Efficiency!#REF!) ->  | H29: BAB130 Motorway | I29: =IF(Greenhouse!#REF!=0,"-",Greenhouse!#REF!) -> 
C30: On-Road Testing | D30: ='Clean Air'!C63 -> On-Road Drive | E30: ='Clean Air'!J62 -> 10 | F30: =D30 -> On-Road Drive | G30: =Efficiency!I12 -> 0 | H30: =D30 -> On-Road Drive | I30: =Greenhouse!I43 -> 0
C31: End of Life
C32: Total Score | D32: ='Clean Air'!M126+'Clean Air'!F131 -> 2 | F32: =Efficiency!#REF! ->  | H32: =Greenhouse!E109 -> 0
C33: Max Points Available | D33: ='Clean Air'!L126 -> 250 | F33: =Efficiency!#REF! ->  | H33: =Greenhouse!E109 -> 0 | K33: CA | L33: ='Clean Air'!O130 -> Sub-Index
C34: Index | D34: ='Clean Air'!Q134 -> 8.5 | F34: =Efficiency!L46 -> 10 | H34: =Greenhouse!L118 -> 10 | K34: EE | L34: =Efficiency!L49 -> 0
C35: Weighting Factors | D35: =100/3 -> 33.33333333 | F35: =100/3 -> 33.33333333 | H35: =100/3 -> 33.33333333 | K35: GHG | L35: =IF(AND(#REF!="YES",ROUNDDOWN((D34*D35+F35*F34+H35*H34)/100,1)<5),Greenhouse!#REF!,$H$34) -> 
C36: Weighted Overall Index | D36: =ROUNDDOWN(AVERAGE('Clean Air'!Q134,Efficiency!L46,Greenhouse!L118),1) -> 9.5 | J36: =ROUNDDOWN((D34*D35+F35*F34+H35*H34)/100,1) -> 9.5 | K36: =ROUND(MAX(IF(D36>=G39:G48,F39:F48)),1) -> 5
F38: Stars | G38: Threshold
F39: 5 | G39: 9
F40: 4.5 | G40: 8
F41: 4 | G41: 7
F42: 3.5 | G42: 6
F43: 3 | G43: 5
F44: 2.5 | G44: 4
F45: 2 | G45: 3
F46: 1.5 | G46: 2
F47: 1 | G47: 1
F48: 0 | G48: 0
C52: RATING REQUIREMENTS 2021
D53: 9 | F53: 7.5 | H53: 4 | M53: =IF(AND($D$34:$I$34>=D53:I53),1,0) -> 0
D54: 7 | F54: 6 | H54: =H53-1 -> 3 | M54: =IF(AND($D$34:$I$34>=D54:I54),1,0) -> 1
D55: 5 | F55: 4.5 | H55: =H54-1 -> 2 | M55: =IF(AND($D$34:$I$34>=D55:I55),1,0) -> 1
D56: 3 | F56: 3 | H56: 1 | M56: =IF(AND($D$34:$I$34>=D56:I56),1,0) -> 1
D57: 1 | F57: 1.5 | H57: 0 | M57: =IF(AND($D$34:$I$34>=D57:I57),1,0) -> 1
C59: 1): test not operational yet | M59: =SUM(M53:M57) -> 4
D61: TEST DETAILS
D62: Vehicle | E62: =SPECS!B1 -> 0 | G62: =SPECS!$B$2 -> 0
D63: Specs (cc/kW) | E63: =IF(SPECS!B32=0,"-",SPECS!B32) -> - | F63: cc | G63: =IF(SPECS!B33=0,"-",SPECS!B33) -> - | H63: kW
D64: Applies to VIN: | E64: =IF(SPECS!B29=0,"-",SPECS!B29) -> -
D65: Powerunit(s) | E65: =IF(Petrol,"Petrol",IF(Diesel,"Diesel",IF(CNG_Dual,"CNG-Bivalent",IF(CNG_Mono,"CNG",IF(Hydrogen,"FCEV",IF(Electric,"Battery Electric")))))) -> Battery Electric | F65: =IF(Electric,"electric","-") -> electric | G65: =IF(CNG_Dual,"CNG Bi-Fuel","-") -> - | H65: =IF(CNG_Mono,"CNG monovalent","-") -> -
D66: Actual mass (kg) | E66: =SPECS!B41 -> 0
D67: Average Energy Use (Warm Test, Cold Test, Highway) | G67: Average Driving Range (Warm Test, Cold Test, Highway)
D68: liquid fuel | E68: =IF(Efficiency!P$16>0,Efficiency!P$16,"n.a.") -> n.a. | F68: l/100km | G68: =IF(Efficiency!P$41>0,Efficiency!P$41,"n.a.") -> n.a. | I68: km
D69: gaseous fuel | E69: =IF(Efficiency!V$16>0,Efficiency!V$16,"n.a.") -> n.a. | F69: kg/100km | G69: =IF(Efficiency!V$41>0,Efficiency!V$41,"n.a.") -> n.a. | I69: km
D70: electric energy | E70: =IF(Efficiency!S$16>0,Efficiency!S$16,"n.a.") -> n.a. | F70: kWh/100km | G70: =IF(Efficiency!S$41>0,Efficiency!S$41,"n.a.") -> n.a. | I70: km
D71: Warm Test (Lab) Energy Use | G71: Warm Test (Lab) Driving range
D72: liquid fuel | E72: =IF(Efficiency!P$17>0,Efficiency!P$17,"n.a.") -> n.a. | F72: l/100km | G72: =IF(Efficiency!P$42>0,Efficiency!P$42,"n.a.") -> n.a. | I72: km
D73: gaseous fuel | E73: =IF(Efficiency!V$17>0,Efficiency!V$17,"n.a.") -> n.a. | F73: kg/100km | G73: =IF(Efficiency!V$42>0,Efficiency!V$42,"n.a.") -> n.a. | I73: km
D74: electric energy | E74: =IF(Efficiency!S$17>0,Efficiency!S$17,"n.a.") -> n.a. | F74: kWh/100km | G74: =IF(Efficiency!S$42>0,Efficiency!S$42,"n.a.") -> n.a. | I74: km
D75: Highway Energy Use | G75: Highway Energy Use Driving Range
D76: liquid fuel | E76: =IF(Efficiency!P$18>0,Efficiency!P$18,"n.a.") -> n.a. | F76: l/100km | G76: =IF(Efficiency!P$43>0,Efficiency!P$43,"n.a.") -> n.a. | I76: km
D77: gaseous fuel | E77: =IF(Efficiency!V$18>0,Efficiency!V$18,"n.a.") -> n.a. | F77: kg/100km | G77: =IF(Efficiency!V$43>0,Efficiency!V$43,"n.a.") -> n.a. | I77: km
D78: electric energy | E78: =IF(Efficiency!S$18>0,Efficiency!S$18,"n.a.") -> n.a. | F78: kWh/100km | G78: =IF(Efficiency!S$43>0,Efficiency!S$43,"n.a.") -> n.a. | I78: km
D79: Cold Ambient Test (-7°C) Energy Use | G79: Cold Ambient Test (-7°C) Driving Range
D80: liquid fuel | E80: =IF(Efficiency!P$19>0,Efficiency!P$19,"n.a.") -> n.a. | F80: l/100km | G80: =IF(AND(#REF!="YES",Efficiency!P$44>0),Efficiency!P$44,"n.a.") ->  | I80: km
D81: gaseous fuel | E81: =IF(Efficiency!V$19>0,Efficiency!V$19,"n.a.") -> n.a. | F81: kg/100km | G81: =IF(AND(#REF!="YES",Efficiency!V$44>0),Efficiency!V$44,"n.a.") ->  | I81: km
D82: electric energy | E82: =IF(Efficiency!S$19=0,"n.a.",Efficiency!S$19) -> n.a. | F82: kWh/100km | G82: =IF(AND(#REF!="YES",Efficiency!S$44>0),Efficiency!S$44,"n.a.") ->  | I82: km
D86: DRIVING EXPERIENCE
D88: =IFERROR(IF(DX1P="Good",Good,IF(DX1P="Adequate",Adequate,IF(DX1P="Poor",Poor,IF(DX1P="Not Applicable",NotApplicable,"")))),"") ->  | F88: =IF(DX2P="Good",Good,IF(DX2P="Adequate",Adequate,IF(DX2P="Poor",Poor,IF(DX2P="Not Applicable",NotApplicable,"")))) ->  | H88: =IF(DX3P="Good",Good,IF(DX3P="Adequate",Adequate,IF(DX3P="Poor",Poor,IF(DX3P="Not Applicable",NotApplicable,"")))) -> 
D89: Consumption & Range | F89: Cold Winter Performance | H89: Charging Capability

Sheet SPECS
A1: Brand | C1: CoC p.0.1. (e.g. Mercedes-Benz) | H1: v1.6.6 | L1: Petrol (inc hybrids) | M1: =IF(ICE_Type=1,TRUE,FALSE) -> FALSE | N1: 5 | O1: Rating Sheet Version | P1: Euro 6b | Q1: 1
A2: Model | C2: CoC p.0.2.1. (e.g. V-Class) | L2: Diesel (inc. hybrids) | M2: =IF(ICE_Type=2,TRUE,FALSE) -> FALSE | N2: TRUE | O2: 2023.2.0.8.6 | P2: Euro 6c
A3: Variant Name | C3: Model data (e.g. V250d, 9G-Tronic, Avantgarde) | L3: ICE - CNG - Mono | M3: =IF(ICE_Type=3,TRUE,FALSE) -> FALSE | O3: Protocols | P3: Euro 6d-Temp
A4: Green NCAP Test Reference Number | C4: (e.g. 20-FOR-0023) | L4: ICE - CNG - Dual | M4: =IF(ICE_Type=4,TRUE,FALSE) -> FALSE | O4: 2022 | P4: Euro 6d
A5: Child vehicle | C5: Yes/No
A6: Production Region | B6: Europe | H6: SELECT
A7: Drivetrain | C7: CoC p.3. (e.g. RWD) | L7: Hydrogen | M7: =IF(ICE_Type=6,TRUE,FALSE) -> FALSE | P7: Euro AX
A8: Fuel Type | B8: =IF(Petrol,"Petrol",IF(Diesel,"Diesel",IF(E_85,"Ethanol E85",IF(CNG_Dual,"CNG",IF(CNG_Mono,"CNG",IF(Hydrogen,"Hydrogen",IF(Electric,"Electric"))))))) -> Electric | C8: Taken from Selector Choice | J8: Respect Green NCAP's definition of "Hybrid". | L8: Battery Electric | M8: =IF(ICE_Type=5,TRUE,FALSE) -> TRUE
A9: Primary fuel source | B9: =IF(Petrol,"Petrol",IF(Diesel,"Diesel",IF(E_85,"Ethanol E85",IF(CNG_Dual,"CNG",IF(CNG_Mono,"CNG",IF(Hydrogen,"Hydrogen",IF(Electric,"Electric"))))))) -> Electric | C9: Taken from Selector Choice | L9: Ethanol E85 | M9: =IF(ICE_Type=7,TRUE,FALSE) -> FALSE | P9: Manual
A10: Secondary fuel source (if applicable) | P10: Automatic
A11: Fuel tank size liquid fuel [l] | C11: Tech data (e.g. 70 l) | L11: Hybrid | M11: FALSE | P11: CVT
A12: Fuel tank size gaseous fuel [kg] | C12: Tech data (e.g. 15 kg)
A13: Declared Battery Capacity (usable) [kWh] | C13: Tech data (e.g. 52 kWh) | P13: RWD
A14: Declared Battery Capacity (installed) [kWh] | C14: Tech data (e.g. 56 kWh) | P14: FWD
A15: Declared CO2 emissions (WLTP) [g/km] | C15: CoC p.49.4. (e.g. 132 g/km) | P15: AWD
A16: Declared Fuel Consumption (WLTP) [l(kg)/100km] | C16: CoC p.49.4. (e.g. 6.2 l/100km) | P16: 4x4
A17: Declared Fuel Consumption 2nd fuel source (WLTP) [l(kg)/100km] | C17: CoC p.49.4. (e.g. 6.2 l/100km)
A18: Declared Electric Energy Consumption (for BEV) [kWh/100km] | C18: CoC p.49.4 (e.g. 19.5 kWh/100km)
A19: Declared Electric Range (for BEV) [km] | C19: CoC p.49.5 (e.g. 400 km)
A20: Declared Electric Range City (for BEV) [km] | C20: CoC p.49.5 (e.g. 480 km) | P20: Waste heat | T20: Europe
A21: Declared Electric Energy Consumption (for PHEV) [kWh/100km] | C21: CoC p.49.5 (e.g. 13.9 kWh/100km) | P21: PTC heater | T21: China
A22: Declared Electric Range (EAER, for PHEV) [km] | C22: CoC p.49.5 (e.g. 50 km) | P22: Heat pump | T22: Japan
A23: Declared Electric Range City (for PHEV) [km] | C23: CoC p.49.5 (e.g. 61 km) | P23: Waste heat & PTC heater | T23: South Korea
A24: Traction battery voltage [V] | C24: Tech data. Important for recuperation | P24: Waste heat & heat pump | T24: United States
A25: Heating concept | C25: Tech data | P25: Waste heat & PTC heater & heat pump | T25: United Kingdom
A26: Gearbox type | C26: CoC p.28. (e.g. automatic) | P26: PTC heater & heat pump | T26: Mexico
A27: Chassis Version | C27: CoC p.38. (check list H27:H33) check https://eur-lex.europa.eu/legal-content/EN/TXT/?uri=CELEX:32011R0678) | P27: Hight volage heater | T27: Turkey
A28: Number of doors | C28: CoC p.41. (e.g. 5 doors) | H28: AA | I28: Saloon | P28: Waste heat & high voltage heater | T28: India
A29: VIN tested vehicle | C29: CoC p.0.10. (e.g. WDF44781313651756) | H29: AB | I29: Hatchback | P29: Waste heat & high voltage heater & heat pump | T29: South Africa | U29: Euro 6 EA
A30: Emissions class | C30: CoC p.47. (e.g. Euro 6d AP) | H30: AC | I30: Station wagon | P30: High voltage heater & heat pump | T30: Vietnam | U30: Euro 6 EB
A31: Engine code | C31: CoC p.21. (e.g. BS654T) | H31: AD | I31: Coupe | U31: Euro 6 EC
A32: Engine capacity [cm3] | C32: CoC p.25. (e.g. 1950 cm3) | H32: AE | I32: Convertible | U32: AX
A33: Engine/System Power [kW] | C33: CoC p.27. (e.g. 140 kW, for HEV/PHEV see tech data) | H33: AF | I33: Multi-purpose vehicle | U33: Euro 6d AL
A34: Engine/System Torque [Nm] | C34: See tech data (e.g. 250 Nm) | H34: AG | I34: Truck station wagon | U34: Euro 6d AM
A35: Tyre size (front and rear if different) | C35: For the actual vehicle (e.g. 245/45 255/30 R19) | U35: Euro 6d AN
A36: Test mass [kg] | C36: Green NCAP test mass | U36: Euro 6d AO
A37: Tyre Rolling Resistance Coefficient RRC [kg/tonne] | C37: CoC p.35, e.g. A, B | U37: Euro 6d AP
A38: Road load coefficient f0 [N] | C38: CoC p.47.1.3.0 | U38: Euro 6d AQ
A39: Road load coefficient f1 [N/(km/h)] | C39: CoC p.47.1.3.1 | U39: Euro 6d AE
A40: Road load coefficient f2 [N/(km/h)2] | C40: CoC p.47.1.3.2 | U40: Euro 6d AJ
A41: Empty Vehicle Mass [kg] = CoC 13.2 - 75 kg | C41: Calculate: CoC p.13.2 - 75 kg (e.g. 1550 kg) | U41: Euro 6d AK
A42: Start of Production | C42: if available, DD/MM/YYYY, should be before "End of Production" | U42: Euro 6 AY
A43: End of Production | C43: if available, DD/MM/YYYY, should be after "Start of Production" | U43: Euro 6 AZ
U44: Euro 6d-Temp AG
A45: Measured Recharged Electric Energy (BEV and PHEV, from grid) [kWh] | B45: ='TEST RESULTS'!AA5 -> 0 | C45: Don't enter here. Will be taken from Results AA4 | U45: Euro 6d-Temp AH
A46: Measured Netto Battery Capacity (BEV and PHEV) [kWh] | B46: ='TEST RESULTS'!AB5 -> 0 | C46: Don't enter here. Will be taken from Results AB4 | U46: Euro 6d-Temp AI
U47: Euro 6d-Temp BG
U48: Euro 6d-Temp BH
U49: Euro 6d-Temp BI
U50: Euro 6d-Temp CG
U51: Euro 6d-Temp CH
U52: Euro 6d-Temp CI
U53: Euro 6d-Temp DG

Sheet TEST RESULTS
B3: MAIN RESULTS 1 | E3: CO2 tailpipe | F3: CO2 RCB corr. | G3: CO | H3: NOx | I3: NO | J3: NO2 | K3: PN | L3: PM | M3: N2O | N3: NH3 | O3: THC | P3: CH4 | Q3: Fuel Consumption | R3: Energy Consumption from Grid | S3: Fuel consumpt. | T3: Energy consumpt. | U3: Gas Consumption | V3: Board Comp. fuel consumpt. | W3: Board Comp. energy consumpt. | X3: Board Comp. gas consumpt. | Y3: Driving Range (ICE mode) | Z3: Driving Range (electr. mode) | AA3: Measured Recharged Electric Energy (BEV and PHEV, from grid) | AB3: Measured Net Battery Capacity | AC3: Efiiciency grid to battery output | AD3: Electr. energy consumpt. from battery
E4: g/km | F4: g/km | G4: mg/km | H4: mg/km | I4: mg/km | J4: mg/km | K4: #/km | L4: mg/km | M4: mg/km | N4: mg/km | O4: mg/km | P4: mg/km | Q4: l/100km | R4: kWh/100km | S4: g/s | T4: Wh/s | U4: kg/100km | V4: l/100km | W4: kWh/100km | X4: kg/100km | Y4: km | Z4: km | AA4: kWh | AB4: kWh | AC4: - | AD4: kWh/100km
B5: Laboratory Tests | D5: WLTP CoC Type Approval
D6: WLTC+ Warm
D7: WLTC+ CAT Cold (-7°C)
D8: WLTC+ CAT Warm (-7°C)
D9: BAB130 Motorway
B10: On-Road Tests | D10: On-Road Drive
D11: Short Urban Trip / 1st 8 km of On-Road Drive
E12: g/s | G12: mg/s | H12: mg/s | I12: mg/s | J12: mg/s | K12: #/s | AD12: Wh/s ↓
D13: Congestion MAX value
D14: Congestion AVG value
B15: DPF Regene-ration | E15: g/km ↓ | F15: g/km ↓ | G15: mg/km ↓ | H15: mg/km ↓ | I15: mg/km ↓ | J15: mg/km ↓ | K15: #/km ↓ | L15: mg/km ↓ | M15: mg/km ↓ | N15: mg/km ↓ | O15: mg/km ↓ | P15: mg/km ↓
C16: Insert name of test with particle filter regeneration occurance
C17: Impact of regen. compared to the non-regenerating test [%]
B20: Front wheel toe check | E20: 1 means reference value or the middle of a reference range is within limit of 0.15°, 0 means outside of
B21: Rear wheel toe check | E21: 1 means reference value or the middle of a reference range is within limit of 0.15°, 0 means outside of
B22: Accelerator response | E22: AVG pedal value of 1 and 2m/s2 accelerations, in %
B23: Dust Filters | E23: 2 means filters on both axles, 1 means filters on one axle, 0 means no filters
B24: Brake Drums | E24: 2 means drums on both axles, 1 means drums on one axle, 0 means no drums
B25: Friction brake share WLTC+ Warm | E25: %, enter only for PEV
B30: PHEV in Charge Depeleting Mode | E30: CO2 tailpipe | F30: CO2 RCB corr. | G30: CO | H30: NOx | I30: NO | J30: NO2 | K30: PN | L30: PM | M30: N2O | N30: NH3 | O30: THC | P30: CH4 | Q30: Fuel Consumption | R30: Energy Consumption from Grid | S30: Fuel consumpt. | T30: Energy consumpt. | U30: Gas Consumption | V30: Board Comp. fuel consumpt. | W30: Board Comp. energy consumpt. | X30: Board Comp. gas consumpt. | Y30: Driving Range (ICE mode) | Z30: Driving Range (electr. mode) | AA30: Driving Range (electr. mode) EAER | AB30: Driving range electr. Mode (Pure EV) | AD30: Electr. energy consumpt. from battery
E31: g/km | F31: g/km | G31: mg/km | H31: mg/km | I31: mg/km | J31: mg/km | K31: #/km | L31: mg/km | M31: mg/km | N31: mg/km | O31: mg/km | P31: mg/km | Q31: l/100km | R31: kWh/100km | S31: g/s | T31: Wh/s | U31: kg/100km | V31: l/100km | W31: kWh/100km | X31: kg/100km | Y31: km | Z31: km | AA31: km | AB31: km | AD31: kWh/100km
B32: Laboratory Tests
D33: WLTC+ Cold CD Sequence
D34: WLTC+ CAT Cold (-7°C) CD
B37: On-Road Tests | D37: On-Road Drive CD
D38: Short Urban Trip CD / 1st 8 km of On-Road Drive CD
AD39: Wh/s ↓
D43: EAER | E43: =AA33 -> 0

Sheet LCA RESULTS
H2: Replacement of generic LCA data? | I2: No | T2: Yes
B3: Assumed Lifetime Mileage [km]: | C3: ='LIMITS Greenhouse'!C25 -> 240000 | H3: Correction Factor: | I3: =IF(SPECS!B6="",1,IF(OR(SPECS!B6="Europe",SPECS!B6="United Kingdom",SPECS!B6="Turkey"),1.2,IF(OR(SPECS!B6="United States",SPECS!B6="Mexico"),1.4,IF(OR(SPECS!B6="China",SPECS!B6="Japan",SPECS!B6="South Korea",SPECS!B6="Vietnam"),1.5,IF(SPECS!B6="India",1.6,IF(SPECS!B6="South Africa",1.7)))))) -> 1.2 | T3: No
B5: LCA Pollutants | E5: LCA Energy Demand | H5: LCA Greenhouse Gases
B7: Production | C7: mg/km | E7: Phase | F7: kWh/km | H7: Production total | I7: g/km
B8: NMVOC | E8: Production Total | H8: N2O
B9: NOx | E9: Production Battery | H9: CH4
B10: NH3 | E10: Production Fuel Cell | H10: CO2-eq | I10: =I3*J10 -> 0 | K10: uncorrected generic value
B11: CO | E11: Maintenance | H11: Production Battery | I11: =I3*J11 -> 0 | K11: uncorrected generic value
B12: PM2.5 | E12: End of Life | H12: Production Fuel Cell
B13: SOx
F14: %
B15: Maintenance | C15: mg/km | E15: fossil energy share | H15: Maintenance | I15: g/km
B16: NMVOC | E16: renewable energy share | H16: N2O
B17: NOx | E17: other energy share | H17: CH4
B18: NH3 | H18: CO2-eq
B19: CO
B20: PM2.5
B21: SOx
B23: End of Life | C23: mg/km | H23: End of Life | I23: g/km
B24: NMVOC | H24: N2O
B25: NOx | H25: CH4
B26: NH3 | H26: CO2-eq | I26: =I3*J26 -> 0 | K26: uncorrected generic value
B27: CO
B28: PM2.5
B29: SOx | I29: gCO2-eq./km
H30: Best Case (consumption) Total GHG | I30: =J30+($I$10-$J$10)+($I$26-$J$26) -> 0 | K30: uncorrected generic value
H31: Worst Case (consumption) Total GHG | I31: =J31+($I$10-$J$10)+($I$26-$J$26) -> 0 | K31: uncorrected generic value

Sheet Driving Experience Input
B1: ITEM | C1: Applicability | E1: Results
A2: Consumption and Range | E2: will be filled by secretariat
B3: Estimated Actual Consumption | C3: ICE, HEV, BEV | E3: l/100km or kWh/100km | F3: Urban | G3: Rural | H3: Highway | I3: Mixed
E4: Warm weather
E5: Cold Winter
C8: PHEV | F8: Urban | G8: Rural | H8: Highway | I8: Mixed
D9: l/100km | E9: Warm Weather - Fuel Mode
D10: l/100km | E10: Cold Winter - Fuel Mode
D11: kWh/100km | E11: Warm Weather - Electric Mode*
D12: kWh/100km | E12: Cold Winter - Electric Mode+
E13: * measured value in first cyle of warm WLTC+ charge depleting sequence
E14: + measured values in cold start -7°C Cold Ambient Test
F16: Fuel Consumption l/100km | G16: Electricity Use kWh/100km
E17: Warm Weather Combined Mode* | H17: [e.g. 3.6 l/100km + 15.3 kWh/100km *
E18: * measured values in warm WLTC+ charge depleting sequence
E20: will be filled by secretariat
B21: Driving Range | C21: BEV | E21: km | F21: Urban | G21: Rural | H21: Highway | I21: Mixed
E22: Warm weather | F22: ='TEST RESULTS'!$AA$5/'Driving Experience Input'!F4*100 ->  | G22: ='TEST RESULTS'!$AA$5/'Driving Experience Input'!G4*100 ->  | H22: ='TEST RESULTS'!$AA$5/'Driving Experience Input'!H4*100 ->  | I22: ='TEST RESULTS'!$AA$5/'Driving Experience Input'!I4*100 -> 
E23: Cold Winter | F23: ='TEST RESULTS'!$AA$5/'Driving Experience Input'!F5*100 ->  | G23: ='TEST RESULTS'!$AA$5/'Driving Experience Input'!G5*100 ->  | H23: ='TEST RESULTS'!$AA$5/'Driving Experience Input'!H5*100 ->  | I23: ='TEST RESULTS'!$AA$5/'Driving Experience Input'!I5*100 -> 
C26: PHEV | E26: Fully Charged
E27: km | F27: Pure electric range | G27: Combined Electric Range
E28: Warm weather *
E29: Cold Winter + | G29: n.a.
E30: * measured values in warm WLTC+ charge depleting sequence
E31: + measured values in WLTC+ CAT Cold in CD mode, if >23 km, enter ">23"
B34: Accuracy of Display | C34: BEV, HEV | F34: Fuel Consumption | G34: Electr. energy consumpt. from battery | H34: Board Comp. fuel consumpt. | I34: Board Comp. energy consumpt.
C35: ICE, PHEV | F35: l/100km | G35: kWh/100km | H35: l/100km | I35: kWh/100km
E36: WLTC+ Warm | F36: ='TEST RESULTS'!Q6 -> 0 | G36: ='TEST RESULTS'!AD6 -> 0 | H36: ='TEST RESULTS'!V6 -> 0 | I36: ='TEST RESULTS'!W6 -> 0
E37: WLTC+ CAT Cold (-7°C) | F37: ='TEST RESULTS'!Q7 -> 0 | G37: ='TEST RESULTS'!AD7 -> 0 | H37: ='TEST RESULTS'!V7 -> 0 | I37: ='TEST RESULTS'!W7 -> 0
E38: WLTC+ CAT Warm (-7°C) | F38: ='TEST RESULTS'!Q8 -> 0 | G38: ='TEST RESULTS'!AD8 -> 0 | H38: ='TEST RESULTS'!V8 -> 0 | I38: ='TEST RESULTS'!W8 -> 0
E39: BAB130 Motorway | F39: ='TEST RESULTS'!Q9 -> 0 | G39: ='TEST RESULTS'!AD9 -> 0 | H39: ='TEST RESULTS'!V9 -> 0 | I39: ='TEST RESULTS'!W9 -> 0
E40: On-Road Drive | F40: ='TEST RESULTS'!Q10 -> 0 | G40: ='TEST RESULTS'!AD10 -> 0 | H40: ='TEST RESULTS'!V10 -> 0 | I40: ='TEST RESULTS'!W10 -> 0
E41: PHEV: WLTC+ Cold CD Sequence | F41: ='TEST RESULTS'!Q33 -> 0 | G41: ='TEST RESULTS'!AD33 -> 0 | H41: ='TEST RESULTS'!V33 -> 0 | I41: ='TEST RESULTS'!W33 -> 0
E42: PHEV: WLTC+ CAT Cold (-7°C) CD | F42: ='TEST RESULTS'!Q34 -> 0 | G42: ='TEST RESULTS'!AD34 -> 0 | H42: ='TEST RESULTS'!V34 -> 0 | I42: ='TEST RESULTS'!W34 -> 0
E43: PHEV: On-Road Drive CD | F43: ='TEST RESULTS'!Q37 -> 0 | G43: ='TEST RESULTS'!AD37 -> 0 | H43: ='TEST RESULTS'!V37 -> 0 | I43: ='TEST RESULTS'!W37 -> 0
A46: Cold Winter Performance
F47: km
B48: Driving Range Benefit of Pre-Warming | C48: BEV | E48: Urban Trip
E49: Mixed Trip | F49: ='TEST RESULTS'!Z8-'TEST RESULTS'!Z7 -> 0
B52: Cabin Heating | C52: HEV, BEV, PHEV | E52: Time to reach 16°C [s] | F52: Front | G52: Rear Left | H52: Rear Right
E53: Head Area
E54: Footwell
E56: Comment (use [rear left] and [rear right] to link the values) -- Always place 'seconds' (=unit) after the [value] so that four-digit numbers are displayed with a thousands separator. This automatic formatting only applies when the value is followed by the unit e.g. [rear left] seconds
E57: Replace contents of this cell. The rear footwell area left reached the temperature in [rear left] seconds and in the right in [rear right] seconds.
B62: Additional Heating Functions | C62: HEV, BEV, PHEV | F62: "Yes" or "No" | G62: Fitment
E63: Heat pump | J63: Available for other versions
E64: Seat heating front | J64: Optional
E65: Seat heating rear | J65: Optional for the tested version
E66: Steering wheel heating | J66: Regionally Dependent
E67: Scheduled or remotely activated pre-heating of seats | J67: Standard
E68: Scheduled or remotely activated pre-heating of steering wheel | J68: Standard for the tested version
E69: Scheduled or remotely activated cabin air pre-heating | J69: Unknown
E70: Smart cabin heating management*
E71: *A strategy to save enregy by providing heat only to occupants and not directing heat flow to not occupied seats.
B74: Cabin Thermal Insulation | C74: HEV, BEV, PHEV | E74: Average Temperature reading of the 5 sensors after specified time
E75: initial temperature [°C] | F75: after 5 min [°C] | G75: after 15 min [°C] | H75: after 30 min [°C] | I75: Drop after 30 min [°C]
E76: 18 | I76: =E76-H76 -> 18
A79: Charging Capability
B80: Pre-Charge Battery Conditioning | C80: BEV | E80: "Yes" or "No" | F80: Manual | G80: Automatic
E81: Battery Pre-Conditioning
B86: Fast Charging Performance | C86: BEV | E86: All values refer to an observation range of 10-80% SoC
E87: Average percentage of battery charged per minute in the range 10-80% SoC [%/min]
E88: Maximum Charging Power [kW]
E89: Average Charging Power [kW]
E90: Charging time 10-80% Soc [min]
B94: Home Charging Efficiency | C94: BEV | G94: Fitment
E95: Home Charging Efficiency* [%] | F95: ='TEST RESULTS'!AC5 -> 0 | G95: -
E96: Maximum Home Charging Power + [kW]
F97: *grid-to-battery-output-efficiency
F98: + maximum available from tech specs of the tested vehicle
G101: Fitment
B102: Bidirectional Charging | C102: BEV | E102: Power Output [kW]
E103: Compatibility | J103: V2L | K103: The inlet or the interior socket can provide AC power through an electrical domestic socket
E104: Grid Integration | J104: V2H | K104: The vehicle can provide power to a household through a charger
E105: Limitations | H105: leave empty if no specific comment needed | J105: V2G | K105: The vehicle can return power to the grid
J107: Basic | K107: No integration (just a socket for a stand-alone load). No scheduling option. Very basic visualisation.
J108: Limited | K108: Limited: Energy management system through the vehicle app (timers availability and power monitoring). Dedicated interface in the car, with mobile app monitoring.
J109: Advanced | K109: Advanced settings available such as tariff and consumption control, linked to distributor energy prices. Advanced real time energy flow visualization. AI powered suggestions for optimal usage.

Sheet Fast charging
A1: SoC [%] | B1: Time [mm:ss] | C1: Power [kW] | D1: Recharged range with consumption A [km] | E1: Recharged range with consumption B [km] | F1: Recharged range with consumption C [km] | J1: Test conusmption used | K1: kWh/100km
G2: =TEXT(INT(B2/60), "00") & ":" & TEXT(MOD(B2, 60), "00") -> 00:00 | I2: A | J2: WLTC+ Warm Mixed
I3: B | J3: WLTC+ Warm Highway
I4: C | J4: WLTC+ CAT Warm Highway
I6: Recharged Range in 10 min after 10% SoC
I7: Consumption A | K7: km
I8: Consumption B | K8: km
I9: Consumption C | K9: km

Sheet Clean Air
B3: PRODUCTION | F3: LCA Results
G5: LCA Value | H5: Localization Factor | I5: Total
D6: max points
D7: NMVOC | E7: mg/km | G7: ='LCA RESULTS'!C8 -> 0 | H7: 1 | I7: =G7*H7 -> 0 | N7: Will have upper, lower LCA limits for all pollutants
D8: NOx (NO and NO2) | E8: mg/km | G8: ='LCA RESULTS'!C9 -> 0 | H8: 1 | I8: 0
D9: NH3 | E9: mg/km | G9: ='LCA RESULTS'!C10 -> 0 | H9: 1 | I9: 0
D10: CO | E10: mg/km | G10: ='LCA RESULTS'!C11 -> 0 | H10: 1 | I10: 0
D11: PM2.5 | E11: mg/km | G11: ='LCA RESULTS'!C12 -> 0 | H11: 1 | I11: 0
D12: SOx | E12: mg/km | G12: ='LCA RESULTS'!C13 -> 0 | H12: 1 | I12: 0
C13: total
B14: USAGE | C14: Exhaust Testing | F14: Test Results | K14: Thresholds | M14: Max score
F16: Tailpipe | G16: Upstream | H16: Localization Factor | I16: Total | J16: Points | K16: Lower | L16: Upper | N16: Change name from 'Localization' to something else. In CA, it is a factor related to how local the energy production is
F17: (from test results) | H17: 1 | N17: with GHG, for example, the factor would be more related to data quality
C18: WLTP CoC Type Approval | D18: max points | E18: =SUM(M19:M24) -> 8
D19: THC | E19: mg/km | F19: =(WLTP_Cold_TA THC) -> 0 | G19: =Efficiency!$F$10/100*'LIMITS Clean Air'!$X$5 -> 0 | H19: =H8 -> 1 | I19: =G19*H19+F19 -> 0 | J19: =Sliding_Scale(F19,K19,L19,M19,0,Slide_Type) -> 1 | K19: ='LIMITS Clean Air'!$C$20 -> 0.5 | L19: ='LIMITS Clean Air'!$C$6 -> 68 | M19: 1 | N19: Do we have thresholds on tailpipe and on LCA (localization) separately
D20: NOx | E20: mg/km | F20: =(WLTP_Cold_TA NOx) -> 0 | G20: =Efficiency!$F$10/100*'LIMITS Clean Air'!$X$6 -> 0 | H20: =H8 -> 1 | I20: 0 | J20: =Sliding_Scale(F20,K20,L20,M20,0,Slide_Type) -> 3 | K20: ='LIMITS Clean Air'!$C$21 -> 0.5 | L20: ='LIMITS Clean Air'!$C$7 -> 60 | M20: 3
D21: NH3 | E21: mg/km | F21: =(WLTP_Cold_TA NH_3) -> 0 | G21: =Efficiency!$F$10/100*'LIMITS Clean Air'!$X$8 -> 0 | H21: =H8 -> 1 | I21: 0 | J21: =Sliding_Scale(F21,K21,L21,M21,0,Slide_Type) -> 0 | K21: ='LIMITS Clean Air'!$C$23 -> 0.1 | L21: ='LIMITS Clean Air'!$C$9 -> 10 | M21: 0
D22: CO | E22: mg/km | F22: =(WLTP_Cold_TA CO) -> 0 | G22: =Efficiency!$F$10/100*'LIMITS Clean Air'!$X$9 -> 0 | H22: =H8 -> 1 | I22: 0 | J22: =Sliding_Scale(F22,K22,L22,M22,0,Slide_Type) -> 1 | K22: ='LIMITS Clean Air'!$C$24 -> 5 | L22: ='LIMITS Clean Air'!$C$10 -> 500 | M22: 1
D23: PM | E23: mg/km | F23: =(WLTP_Cold_TA PM) -> 0 | G23: =Efficiency!$F$10/100*'LIMITS Clean Air'!$X$10 -> 0 | H23: 1 | I23: 0 | J23: =Sliding_Scale(F23,K23,L23,M23,0,Slide_Type) -> 1 | K23: 0 | L23: ='LIMITS Clean Air'!C11 -> 4.5 | M23: 1
C24: =IF(I24=0,0,LOG10(I24)) -> 0 | D24: PN23 | E24: #/km | F24: =(WLTP_Cold_TA PN) -> 0 | G24: =Efficiency!$F$10/100*'LIMITS Clean Air'!$X$11 -> 0 | H24: =H8 -> 1 | I24: 0 | J24: =Sliding_Scale(C24,K25,L25,M24,0,Slide_Type) -> 2 | K24: ='LIMITS Clean Air'!$C$26 -> 100000000 | L24: ='LIMITS Clean Air'!$C$12 -> 600000000000 | M24: 2 | N24: This will come from the energy consumption multiplied by a factor to be provided to us by Joaennum
D25: SOx | E25: mg/km | G25: =Efficiency!$F$10/100*'LIMITS Clean Air'!$X$12 -> 0 | H25: 1 | I25: 0 | K25: =LOG10(K24) -> 8 | L25: =LOG10(L24) -> 11.77815125
C26: total | J26: =IF(OR(F19:F20>'LIMITS Clean Air'!$D$6:$D$7,F22:F24>'LIMITS Clean Air'!$D$10:$D$12),0,MAX(SUM('Clean Air'!J19:J24),0)) -> 8 | M26: =SUM(M19:M24) -> 8 | N26: Need to make sure use correct units - mg/km. Energy is often quoted per 100km so be careful
C27: WLTC + Warm | D27: max points | E27: =SUM(M28:M33) -> 10
D28: NMHC | E28: mg/km | F28: =(WLTP_Warm THC)-(WLTP_Warm CH_4) -> 0 | G28: =Efficiency!$F$11/100*'LIMITS Clean Air'!$X$5 -> 0 | H28: =H17 -> 1 | I28: =G28*H28+F28 -> 0 | J28: =Sliding_Scale(F28,K28,L28,M28,0,Slide_Type) -> 1 | K28: ='LIMITS Clean Air'!$C$20 -> 0.5 | L28: ='LIMITS Clean Air'!$C$6 -> 68 | M28: 1 | N28: Do we have thresholds on tailpipe and on LCA (localization) separately
D29: NOx | E29: mg/km | F29: =(WLTP_Warm NOx) -> 0 | G29: =Efficiency!$F$11/100*'LIMITS Clean Air'!$X$6 -> 0 | H29: =H17 -> 1 | I29: 0 | J29: =Sliding_Scale(F29,K29,L29,M29,0,Slide_Type) -> 3 | K29: ='LIMITS Clean Air'!$C$21 -> 0.5 | L29: ='LIMITS Clean Air'!$C$7 -> 60 | M29: 3
D30: NH3 | E30: mg/km | F30: =(WLTP_Warm NH_3) -> 0 | G30: =Efficiency!$F$11/100*'LIMITS Clean Air'!$X$8 -> 0 | H30: =H17 -> 1 | I30: 0 | J30: =Sliding_Scale(F30,K30,L30,M30,0,Slide_Type) -> 1 | K30: ='LIMITS Clean Air'!$C$23 -> 0.1 | L30: ='LIMITS Clean Air'!$C$9 -> 10 | M30: 1
D31: CO | E31: mg/km | F31: =(WLTP_Warm CO) -> 0 | G31: =Efficiency!$F$11/100*'LIMITS Clean Air'!$X$9 -> 0 | H31: =H17 -> 1 | I31: 0 | J31: =Sliding_Scale(F31,K31,L31,M31,0,Slide_Type) -> 1 | K31: ='LIMITS Clean Air'!$C$24 -> 5 | L31: ='LIMITS Clean Air'!$C$10 -> 500 | M31: 1
D32: PM | E32: mg/km | F32: =(WLTP_Warm PM) -> 0 | G32: =Efficiency!$F$11/100*'LIMITS Clean Air'!$X$10 -> 0 | H32: 1 | I32: 0 | J32: =Sliding_Scale(F32,K32,L32,M32,0,Slide_Type) -> 1 | K32: 0 | L32: ='LIMITS Clean Air'!C11 -> 4.5 | M32: 1
C33: =IF(I33=0,0,LOG10(I33)) -> 0 | D33: PN10 | E33: #/km | F33: =(WLTP_Warm PN) -> 0 | G33: =Efficiency!$F$11/100*'LIMITS Clean Air'!$X$11 -> 0 | H33: =H17 -> 1 | I33: 0 | J33: =Sliding_Scale(C33,K34,L34,M33,0,Slide_Type) -> 3 | K33: ='LIMITS Clean Air'!$C$26 -> 100000000 | L33: ='LIMITS Clean Air'!$C$12 -> 600000000000 | M33: 3 | N33: This will come from the energy consumption multiplied by a factor to be provided to us by Joaennum
D34: SOx | E34: mg/km | G34: =Efficiency!$F$11/100*'LIMITS Clean Air'!$X$12 -> 0 | H34: 1 | I34: 0 | K34: =LOG10(K33) -> 8 | L34: =LOG10(L33) -> 11.77815125
C35: total | J35: =IF(OR(F28:F29>'LIMITS Clean Air'!$D$6:$D$7,F31:F33>'LIMITS Clean Air'!$D$10:$D$12),0,MAX(SUM('Clean Air'!J28:J33),0)) -> 10 | M35: =SUM(M28:M33) -> 10 | N35: Need to make sure use correct units - mg/km. Energy is often quoted per 100km so be careful
C36: WLTC+ CAT Cold | D36: max points | E36: =SUM(M37:M42) -> 10
D37: NMHC | E37: mg/km | F37: =(WLTP_CAT1 THC)-(WLTP_CAT1 CH_4) -> 0 | G37: =Efficiency!$F$12/100*'LIMITS Clean Air'!$X$5 -> 0 | H37: =H17 -> 1 | I37: =G37*H37+F37 -> 0 | J37: =Sliding_Scale(F37,K37,L37,M37,0,Slide_Type) -> 1 | K37: ='LIMITS Clean Air'!$C$20 -> 0.5 | L37: ='LIMITS Clean Air'!$K$6 -> 89.76 | M37: 1
D38: NOx | E38: mg/km | F38: =(WLTP_CAT1 NOx) -> 0 | G38: =Efficiency!$F$12/100*'LIMITS Clean Air'!$X$6 -> 0 | H38: =H17 -> 1 | I38: 0 | J38: =Sliding_Scale(F38,K38,L38,M38,0,Slide_Type) -> 3 | K38: ='LIMITS Clean Air'!$C$21 -> 0.5 | L38: ='LIMITS Clean Air'!$K$7 -> 79.2 | M38: 3
D39: NH3 | E39: mg/km | F39: =(WLTP_CAT1 NH_3) -> 0 | G39: =Efficiency!$F$12/100*'LIMITS Clean Air'!$X$8 -> 0 | H39: =H17 -> 1 | I39: 0 | J39: =Sliding_Scale(F39,K39,L39,M39,0,Slide_Type) -> 1 | K39: ='LIMITS Clean Air'!$C$23 -> 0.1 | L39: ='LIMITS Clean Air'!$K$9 -> 13.2 | M39: 1
D40: CO | E40: mg/km | F40: =(WLTP_CAT1 CO) -> 0 | G40: =Efficiency!$F$12/100*'LIMITS Clean Air'!$X$9 -> 0 | H40: =H17 -> 1 | I40: 0 | J40: =Sliding_Scale(F40,K40,L40,M40,0,Slide_Type) -> 1 | K40: ='LIMITS Clean Air'!$C$24 -> 5 | L40: ='LIMITS Clean Air'!$K$10 -> 660 | M40: 1
D41: PM | E41: mg/km | F41: =(WLTP_CAT1 PM) -> 0 | G41: =Efficiency!$F$12/100*'LIMITS Clean Air'!$X$10 -> 0 | H41: 1 | I41: 0 | J41: =Sliding_Scale(F41,K41,L41,M41,0,Slide_Type) -> 1 | K41: 0 | L41: ='LIMITS Clean Air'!K11 -> 5.94 | M41: 1
C42: =IF(I42=0,0,LOG10(I42)) -> 0 | D42: PN10 | E42: #/km | F42: =(WLTP_CAT1 PN) -> 0 | G42: =Efficiency!$F$12/100*'LIMITS Clean Air'!$X$11 -> 0 | H42: =H17 -> 1 | I42: 0 | J42: =Sliding_Scale(C42,K43,L43,M42,0,Slide_Type) -> 3 | K42: ='LIMITS Clean Air'!$C$26 -> 100000000 | L42: ='LIMITS Clean Air'!$K$12 -> 792000000000 | M42: 3
D43: SOx | E43: mg/km | G43: =Efficiency!$F$12/100*'LIMITS Clean Air'!$X$12 -> 0 | H43: 1 | I43: 0 | K43: =LOG10(K42) -> 8 | L43: =LOG10(L42) -> 11.89872518
C44: total | J44: =IF(OR(F37:F38>'LIMITS Clean Air'!$L$6:$L$7,F40:F42>'LIMITS Clean Air'!$L$10:$L$12),0,MAX(SUM('Clean Air'!J37:J42),0)) -> 10 | M44: =SUM(M37:M42) -> 10
C45: WLTC+ CAT Warm | D45: max points | E45: =SUM(M46:M51) -> 10
D46: NMHC | E46: mg/km | F46: =(WLTP_CAT2 THC)-(WLTP_CAT2 CH_4) -> 0 | G46: =Efficiency!$F$13/100*'LIMITS Clean Air'!$X$5 -> 0 | H46: =H17 -> 1 | I46: =G46*H46+F46 -> 0 | J46: =Sliding_Scale(F46,K46,L46,M46,0,Slide_Type) -> 1 | K46: ='LIMITS Clean Air'!$K$20 -> 0.5 | L46: ='LIMITS Clean Air'!$C$6 -> 68 | M46: 1
D47: NOx | E47: mg/km | F47: =(WLTP_CAT2 NOx) -> 0 | G47: =Efficiency!$F$13/100*'LIMITS Clean Air'!$X$6 -> 0 | H47: =H17 -> 1 | I47: 0 | J47: =Sliding_Scale(F47,K47,L47,M47,0,Slide_Type) -> 3 | K47: ='LIMITS Clean Air'!$K$21 -> 0.5 | L47: ='LIMITS Clean Air'!$C$7 -> 60 | M47: 3
D48: NH3 | E48: mg/km | F48: =(WLTP_CAT2 NH_3) -> 0 | G48: =Efficiency!$F$13/100*'LIMITS Clean Air'!$X$8 -> 0 | H48: =H17 -> 1 | I48: 0 | J48: =Sliding_Scale(F48,K48,L48,M48,0,Slide_Type) -> 1 | K48: ='LIMITS Clean Air'!K23 -> 0.1 | L48: ='LIMITS Clean Air'!$C$9 -> 10 | M48: 1
D49: CO | E49: mg/km | F49: =(WLTP_CAT2 CO) -> 0 | G49: =Efficiency!$F$13/100*'LIMITS Clean Air'!$X$9 -> 0 | H49: =H17 -> 1 | I49: 0 | J49: =Sliding_Scale(F49,K49,L49,M49,0,Slide_Type) -> 1 | K49: ='LIMITS Clean Air'!$K$24 -> 5 | L49: ='LIMITS Clean Air'!$C$10 -> 500 | M49: 1
D50: PM | E50: mg/km | F50: =(WLTP_CAT2 PM) -> 0 | G50: =Efficiency!$F$13/100*'LIMITS Clean Air'!$X$10 -> 0 | H50: 1 | I50: 0 | J50: =Sliding_Scale(F50,K50,L50,M50,0,Slide_Type) -> 1 | K50: 0 | L50: ='LIMITS Clean Air'!C11 -> 4.5 | M50: 1
C51: =IF(I51=0,0,LOG10(I51)) -> 0 | D51: PN10 | E51: #/km | F51: =(WLTP_CAT2 PN) -> 0 | G51: =Efficiency!$F$13/100*'LIMITS Clean Air'!$X$11 -> 0 | H51: =H17 -> 1 | I51: 0 | J51: =Sliding_Scale(C51,K52,L52,M51,0,Slide_Type) -> 3 | K51: ='LIMITS Clean Air'!$K$26 -> 100000000 | L51: ='LIMITS Clean Air'!$C$12 -> 600000000000 | M51: 3
D52: SOx | E52: mg/km | G52: =Efficiency!$F$13/100*'LIMITS Clean Air'!$X$12 -> 0 | H52: 1 | I52: 0 | K52: =LOG10(K51) -> 8 | L52: =LOG10(L51) -> 11.77815125
C53: total | J53: =IF(OR(F46:F47>'LIMITS Clean Air'!$D$6:$D$7,F49:F51>'LIMITS Clean Air'!$D$10:$D$12),0,MAX(SUM('Clean Air'!J46:J51),0)) -> 10 | M53: =SUM(M46:M51) -> 10
C54: BAB130 Motorway | D54: max points | E54: =SUM(M55:M60) -> 10
D55: NMHC | E55: mg/km | F55: =(BAB_130 THC)-(BAB_130 CH_4) -> 0 | G55: =Efficiency!$F$14/100*'LIMITS Clean Air'!$X$5 -> 0 | H55: =H17 -> 1 | I55: =G55*H55+F55 -> 0 | J55: =Sliding_Scale(F55,K55,L55,M55,0,Slide_Type) -> 1 | K55: ='LIMITS Clean Air'!$K$20 -> 0.5 | L55: ='LIMITS Clean Air'!$C$6 -> 68 | M55: 1
D56: NOx | E56: mg/km | F56: =(BAB_130 NOx) -> 0 | G56: =Efficiency!$F$14/100*'LIMITS Clean Air'!$X$6 -> 0 | H56: =H17 -> 1 | I56: 0 | J56: =Sliding_Scale(F56,K56,L56,M56,0,Slide_Type) -> 3 | K56: ='LIMITS Clean Air'!$K$21 -> 0.5 | L56: ='LIMITS Clean Air'!$C$7 -> 60 | M56: 3
D57: NH3 | E57: mg/km | F57: =(BAB_130 NH_3) -> 0 | G57: =Efficiency!$F$14/100*'LIMITS Clean Air'!$X$8 -> 0 | H57: =H17 -> 1 | I57: 0 | J57: =Sliding_Scale(F57,K57,L57,M57,0,Slide_Type) -> 1 | K57: ='LIMITS Clean Air'!$K23 -> 0.1 | L57: ='LIMITS Clean Air'!$C$9 -> 10 | M57: 1
D58: CO | E58: mg/km | F58: =(BAB_130 CO) -> 0 | G58: =Efficiency!$F$14/100*'LIMITS Clean Air'!$X$9 -> 0 | H58: =H17 -> 1 | I58: 0 | J58: =Sliding_Scale(F58,K58,L58,M58,0,Slide_Type) -> 1 | K58: ='LIMITS Clean Air'!$K$24 -> 5 | L58: ='LIMITS Clean Air'!$C$10 -> 500 | M58: 1
D59: PM | E59: mg/km | F59: =(BAB_130 PM) -> 0 | G59: =Efficiency!$F$14/100*'LIMITS Clean Air'!$X$10 -> 0 | H59: 1 | I59: 0 | J59: =Sliding_Scale(F59,K59,L59,M59,0,Slide_Type) -> 1 | K59: 0 | L59: ='LIMITS Clean Air'!C11 -> 4.5 | M59: 1
C60: =IF(I60=0,0,LOG10(I60)) -> 0 | D60: PN10 | E60: #/km | F60: =(BAB_130 PN) -> 0 | G60: =Efficiency!$F$14/100*'LIMITS Clean Air'!$X$11 -> 0 | H60: =H17 -> 1 | I60: 0 | J60: =Sliding_Scale(C60,K61,L61,M60,0,Slide_Type) -> 3 | K60: ='LIMITS Clean Air'!$K$26 -> 100000000 | L60: ='LIMITS Clean Air'!$C$12 -> 600000000000 | M60: 3
D61: SOx | E61: mg/km | G61: =Efficiency!$F$14/100*'LIMITS Clean Air'!$X$12 -> 0 | H61: 1 | I61: 0 | K61: =LOG10(K60) -> 8 | L61: =LOG10(L60) -> 11.77815125
C62: total | J62: =IF(OR(F55:F56>'LIMITS Clean Air'!$D$6:$D$7,F58:F60>'LIMITS Clean Air'!$D$10:$D$12),0,MAX(SUM('Clean Air'!J55:J60),0)) -> 10 | M62: =SUM(M55:M60) -> 10
C63: ='TEST RESULTS'!D10 -> On-Road Drive | D63: max points | E63: =SUM(M64:M67) -> 10
D64: NOx | E64: mg/km | F64: =(PEMS_Eco NOx) -> 0 | G64: =Efficiency!$F$15/100*'LIMITS Clean Air'!$X$6 -> 0 | H64: =H17 -> 1 | I64: =G64*H64+F64 -> 0 | J64: =Sliding_Scale(F64,K64,L64,M64,0,2) -> 4 | K64: ='LIMITS Clean Air'!$G$21 -> 0.5 | L64: ='LIMITS Clean Air'!$G$7 -> 79.2 | M64: 4
D65: NH3 | E65: mg/km
D66: CO | E66: mg/km | F66: =(PEMS_Eco CO) -> 0 | G66: =Efficiency!$F$15/100*'LIMITS Clean Air'!$X$9 -> 0 | H66: =H17 -> 1 | I66: =G66*H66+F66 -> 0 | J66: =Sliding_Scale(F66,K66,L66,M66,0,2) -> 2 | K66: ='LIMITS Clean Air'!$G$24 -> 5 | L66: ='LIMITS Clean Air'!$G$10 -> 660 | M66: 2
C67: =IF(I67=0,0,LOG10(I67)) -> 0 | D67: PN10 | E67: #/km | F67: =(PEMS_Eco PN) -> 0 | G67: =Efficiency!$F$15/100*'LIMITS Clean Air'!$X$11 -> 0 | H67: =H17 -> 1 | I67: =G67*H67+F67 -> 0 | J67: =Sliding_Scale(C67,K68,L68,M67,0,Slide_Type) -> 4 | K67: ='LIMITS Clean Air'!$G$26 -> 100000000 | L67: ='LIMITS Clean Air'!$G$12 -> 792000000000 | M67: 4
D68: SOx | E68: mg/km | G68: =Efficiency!$F$15/100*'LIMITS Clean Air'!$X$12 -> 0 | H68: 1 | I68: =G68*H68+F68 -> 0 | K68: =LOG10(K67) -> 8 | L68: =LOG10(L67) -> 11.89872518
C69: total | J69: =IF(OR('Clean Air'!F64>'LIMITS Clean Air'!$H$7,'Clean Air'!F66>'LIMITS Clean Air'!$H$10,'Clean Air'!F67>'LIMITS Clean Air'!$H$12),0,MAX(SUM('Clean Air'!J64:J67),0)) -> 10 | M69: =SUM(M64:M67) -> 10
C70: Short Urban Trip / 1st 8 km of On-Road Drive | D70: max points | E70: 10
D71: NOx | E71: mg/km | F71: =(PEMS_1st_8km NOx) -> 0 | J71: =IF(OR(Hydrogen,Electric),M71,IF(J64=0,0,IF(F71>='LIMITS Clean Air'!$H$7,0,M71-(F71/'LIMITS Clean Air'!$H$7)*M71))) -> 4 | K71: 0.5 | L71: 79.2 | M71: 4
D72: CO | E72: mg/km | F72: =(PEMS_1st_8km CO) -> 0 | J72: =IF(OR(Hydrogen,Electric),M72,IF(J66=0,0,IF(F72>='LIMITS Clean Air'!$H$10,0,M72-(F72/'LIMITS Clean Air'!$H$10)*M72))) -> 2 | K72: 5 | L72: 660 | M72: 2
D73: PN10 | E73: #/km | F73: =(PEMS_1st_8km PN) -> 0 | J73: =IF(OR(Hydrogen,Electric),M73,IF(J67=0,0,IF(F73>='LIMITS Clean Air'!$H$12,0,M73-(F73/'LIMITS Clean Air'!$H$12)*M73))) -> 4 | K73: 100000000 | L73: 792000000000 | M73: 4
C74: total | J74: =IF(OR('Clean Air'!F71>'LIMITS Clean Air'!$H$7,'Clean Air'!F72>'LIMITS Clean Air'!$H$10,'Clean Air'!F73>'LIMITS Clean Air'!$H$12),0,MAX(SUM('Clean Air'!J71:J73),0)) -> 10 | M74: =SUM(M71:M73) -> 10
C75: Congestion | D75: max points | E75: 2
D76: NOx AVG | E76: mg/s | F76: =(Congestion_AVG NOx) -> 0 | J76: =IF(F76<L76,M76,0) -> 1 | L76: 0.5 | M76: 1
D77: NOx Max | E77: mg/s | F77: =(Congestion_Max NOx) -> 0 | J77: =IF(AND(F76<L76,F77<L77),M77,0) -> 1 | L77: 1 | M77: 1
C78: total | J78: =SUM(J76:J77) -> 2 | M78: =SUM(M76:M77) -> 2
C79: Tyre Abrasion | K79: Thresholds | M79: Max score
J80: Points | K80: Lower | L80: Upper
D81: max points | E81: 6
D82: Mass related | E82: kg | F82: =SPECS!B41 -> 0 | J82: =MAX(Sliding_Scale(F82,K82,L82,M82,0,Slide_Type),0) -> 3 | K82: 1200 | L82: 2400 | M82: 3
D83: Wheel alignment | E83: - | F83: =0.5*('TEST RESULTS'!D20+'TEST RESULTS'!D21) -> 0 | J83: =F83 -> 0 | K83: 0 | L83: 1 | M83: 1
D84: Accelerator response | E84: - | F84: ='TEST RESULTS'!D22 -> 0 | J84: =IF(F84<=K84,0,IF(F84<=L84,1,2)) -> 0 | K84: 30 | L84: 35 | M84: 2 | O84: 2 means not aggressive, 1 means medium, 0 means aggressive
C85: total | J85: =SUM(J82:J84) -> 3 | M85: =SUM(M82:M84) -> 6
C86: Brake Abrasion | K86: Thresholds | M86: Max score
K87: Lower | L87: Upper
D88: max points | E88: 6
D89: Mass factor | E89: - | F89: =MAX(Sliding_Scale(F82,K82,L82,L89,K89,Slide_Type),K89) -> 1 | K89: 0.75 | L89: 1
D90: Dust filters | E90: - | F90: ='TEST RESULTS'!D23 -> 0 | J90: =IF(F90=0,0,IF(F90=1,2,IF(F90=2,4))) -> 0 | K90: 0 | L90: 2 | M90: 4 | O90: 2 means filters on both axles, 1 means filters on one axle, 0 means no filters
D91: Brake Drums | E91: - | F91: ='TEST RESULTS'!D24 -> 0 | J91: =IF(F91=0,0,IF(F91=1,3,IF(F91=2,6))) -> 0 | K91: 0 | L91: 2 | M91: 6 | O91: 2 means drums on both axles, 1 means drums on one axle, 0 means no drums
D92: Friction brake share WLTC+ Warm | E92: % | F92: =IF(SPECS!B24<=12,100,IF(Electric,'TEST RESULTS'!D25,IF(SPECS!M11=TRUE,'LIMITS Clean Air'!P24,IF(AND(SPECS!B24>12,SPECS!B24<=20),'LIMITS Clean Air'!P22,IF(AND(SPECS!B24>20,SPECS!B24<=60),'LIMITS Clean Air'!P23))))) -> 100 | J92: =Sliding_Scale(F92,K92,L92,M92,0,Slide_Type)*F89 -> 0 | K92: 10 | L92: 100 | M92: 6 | O92: Fixed values for non-PEVs, sliding scale for PEVs
C94: total | J94: =IF(SUM(J90:J92)<=M94,SUM(J90:J92),6) -> 0 | M94: 6
C95: Maintenance | F95: LCA Results | K95: Thresholds | M95: Max score
G97: LCA Value | H97: Localization Factor | J97: Points | K97: Lower | L97: Upper
D98: max points | N98: Localization factor can be different to production and EoL but who knows what?
D99: NMVOC | E99: mg/100km | G99: ='LCA RESULTS'!C16 -> 0 | H99: 1 | I99: =H99*G99 -> 0
D100: NOx (NO and NO2) | E100: mg/100km | G100: ='LCA RESULTS'!C17 -> 0 | H100: 1 | I100: =H100*G100 -> 0
D101: NH3 | E101: mg/100km | G101: ='LCA RESULTS'!C18 -> 0 | H101: 1 | I101: 0
D102: CO | E102: mg/100km | G102: ='LCA RESULTS'!C19 -> 0 | H102: 1 | I102: 0
D103: PM2.5 | E103: mg/100km | G103: ='LCA RESULTS'!C20 -> 0 | H103: 1 | I103: 0
D104: SOx | E104: mg/100km | G104: ='LCA RESULTS'!C21 -> 0 | H104: 1 | I104: 0
C105: total
B106: EoL | F106: LCA Results | K106: Thresholds | M106: Max score
G108: LCA Value | H108: Localization Factor | J108: Points | K108: Lower | L108: Upper
D109: max points
D110: NMVOC | E110: mg/km | G110: ='LCA RESULTS'!C24 -> 0 | H110: 1 | I110: =H110*G110 -> 0
D111: NOx (NO and NO2) | E111: mg/km | G111: ='LCA RESULTS'!C25 -> 0 | H111: 1 | I111: =H111*G111 -> 0
D112: NH3 | E112: mg/km | G112: ='LCA RESULTS'!C26 -> 0 | H112: 1 | I112: 0
D113: CO | E113: mg/km | G113: ='LCA RESULTS'!C27 -> 0 | H113: 1 | I113: 0
D114: PM2.5 | E114: mg/km | G114: ='LCA RESULTS'!C28 -> 0 | H114: 1 | I114: 0
D115: SOx | E115: mg/km | G115: ='LCA RESULTS'!C29 -> 0 | H115: 1 | I115: =H115*G115 -> 0
C116: total
J118: Total Points | M118: Max Points | O118: Sub-Index | P118: Maximum
F119: Exhaust Emissions | J119: =SUM(J69,J62,J53,J44,J35,J26,J74,J78) -> 70 | M119: =SUM(M69,M62,M53,M44,M35,M26,M74,M78) -> 70 | O119: =J119/M119*10 -> 10 | P119: 10
F120: Non-Tailpipe Emissions (Brakes and Tyres) | J120: =J85+J94 -> 3 | M120: =M85+M94 -> 12 | O120: =J120/M120*10 -> 2.5 | P120: 10
F121: Non-Testing LCA Phase Emissions | G121: Total | J121: Points | K121: Lower | L121: Upper | M121: Max
G122: NMHC | I122: =I7+((I19-F19)+(I28-F28)+(I37-F37)+(I46-F46)+(I55-F55))/5+I99+I110 -> 0 | J122: =MAX(Sliding_Scale(I122,K122,L122,M122,0,Slide_Type),0) -> 1 | K122: 70 | L122: 190 | M122: 1
G123: NOx | I123: =I8+((I20-F20)+(I29-F29)+(I38-F38)+(I47-F47)+(I56-F56))/5+I100+I111 -> 0 | J123: 3 | K123: 150 | L123: 350 | M123: 3
G124: NH3 | I124: =I9+((I21-F21)+(I30-F30)+(I39-F39)+(I48-F48)+(I57-F57))/5+I101+I112 -> 0 | J124: 1 | K124: 10 | L124: 40 | M124: 1
G125: CO | I125: =I10+((I22-F22)+(I31-F31)+(I40-F40)+(I49-F49)+(I58-F58))/5+I102+I113 -> 0 | J125: 1 | K125: 200 | L125: 500 | M125: 1
G126: PM | I126: =I11+((I23-F23)+(I32-F32)+(I41-F41)+(I50-F50)+(I59-F59))/5+I103+I114 -> 0 | J126: 2 | K126: 100 | L126: 250 | M126: 2
G127: SOx | I127: =I12+((I25-F25)+(I34-F34)+(I43-F43)+(I52-F52)+(I61-F61))/5+I104+I115 -> 0 | J127: 2 | K127: 200 | L127: 450 | M127: 2
I128: Total | J128: =SUM(J122:J127) -> 10 | M128: =SUM(M122:M127) -> 10 | O128: =J128/M128*10 -> 10 | P128: 10
O130: Sub-Index | P130: Weighting | Q130: Weighted Sub-Index
M131: Exhaust Index | O131: =O119 -> 10 | P131: 0.6 | Q131: =P131*O131 -> 6
M132: Non-tailpipe Index | O132: =O120 -> 2.5 | P132: 0.2 | Q132: =P132*O132 -> 0.5
M133: LCA Index | O133: =O128 -> 10 | P133: =1-P131-P132 -> 0.2 | Q133: =P133*O133 -> 2
M134: CLEAN AIR INDEX | Q134: =SUM(Q131:Q133) -> 8.5

Sheet Efficiency
B2: PRODUCTION
G3: LCA Value | H3: Total
E5: kWh/100km | G5: ='LCA RESULTS'!F8*100 -> 0 | H5: =G5 -> 0
B7: USAGE | C7: Testing | Z7: Conversion from l/100km or kg/100km to kWh/100km for different energy carriers
E8: Energy Consumption | F8: From Test | G8: Upstream | H8: Total | N8: 2.1.2.1 | Q8: 2.1.2.2 | T8: 2.1.2.3 | X8: 2.1.2.4 | AA8: 2.1.2.5 | AD8: 2.1.2.6
F9: kWh/100km | G9: kWh/100km | H9: kWh/100km | N9: Fuel Consumption (liquid fuel) | Q9: Energy Consumption (electric energy) | T9: Gas Consumption (CNG, Hydrogen) | X9: Fuel Consumption (liquid fuel) | AA9: Energy Consumption (electric energy) | AD9: Gas Consumption (CNG, Hydrogen)
D10: ='TEST RESULTS'!$D$5 -> WLTP CoC Type Approval | E10: kWh/100km | F10: =Z10+AC10+AF10 -> 0 | G10: =Z10*(IF(Petrol,'LIMITS Efficiency'!$H$6,IF(Diesel,'LIMITS Efficiency'!$H$7,IF(E_85,'LIMITS Efficiency'!H11,1)))-1)+AC10*('LIMITS Efficiency'!$H$9-1)+AF10*(IF(Hydrogen,'LIMITS Efficiency'!$H$10,IF(OR(CNG_Dual,CNG_Mono),'LIMITS Efficiency'!$H$8,))-1) -> 0 | H10: =G10+F10 -> 0 | N10: =$D$10 -> WLTP CoC Type Approval | O10: l/100km | P10: ='TEST RESULTS'!$Q5 -> 0 | Q10: =$D$10 -> WLTP CoC Type Approval | R10: kWh/100km | S10: ='TEST RESULTS'!R5 -> 0 | T10: =$D$10 -> WLTP CoC Type Approval | U10: kg/100km | V10: ='TEST RESULTS'!U5 -> 0 | X10: =$D$10 -> WLTP CoC Type Approval | Y10: kWh/100km | Z10: =P10*IF(Petrol,'LIMITS Efficiency'!$C$7,IF(Diesel,'LIMITS Efficiency'!$C$8,IF(E_85,'LIMITS Efficiency'!$C$12,IF(CNG_Dual,'LIMITS Efficiency'!$C$7)))) -> 0 | AA10: =$D$10 -> WLTP CoC Type Approval | AB10: kWh/100km | AC10: =S10 -> 0 | AD10: =$D$10 -> WLTP CoC Type Approval | AE10: kWh/100km | AF10: =V10*IF(OR(CNG_Mono,CNG_Dual),'LIMITS Efficiency'!$C$9,IF(Hydrogen,'LIMITS Efficiency'!$C$11,0)) -> 0
D11: WLTP+ Warm | E11: kWh/100km | F11: =Z11+AC11+AF11 -> 0 | G11: =Z11*(IF(Petrol,'LIMITS Efficiency'!$H$6,IF(Diesel,'LIMITS Efficiency'!$H$7,IF(E_85,'LIMITS Efficiency'!#REF!,1)))-1)+AC11*('LIMITS Efficiency'!$H$9-1)+AF11*(IF(Hydrogen,'LIMITS Efficiency'!$H$10,IF(OR(CNG_Dual,CNG_Mono),'LIMITS Efficiency'!$H$8,))-1) -> 0 | H11: =G11+F11 -> 0 | N11: =D11 -> WLTP+ Warm | O11: l/100km | P11: ='TEST RESULTS'!$Q6 -> 0 | Q11: =D11 -> WLTP+ Warm | R11: kWh/100km | S11: ='TEST RESULTS'!R6 -> 0 | T11: =D11 -> WLTP+ Warm | U11: kg/100km | V11: ='TEST RESULTS'!U6 -> 0 | X11: =D11 -> WLTP+ Warm | Y11: kWh/100km | Z11: =P11*IF(Petrol,'LIMITS Efficiency'!$C$7,IF(Diesel,'LIMITS Efficiency'!$C$8,IF(E_85,'LIMITS Efficiency'!$C$12,IF(CNG_Dual,'LIMITS Efficiency'!$C$7)))) -> 0 | AA11: =D11 -> WLTP+ Warm | AB11: kWh/100km | AC11: =S11 -> 0 | AD11: =D11 -> WLTP+ Warm | AE11: kWh/100km | AF11: =V11*IF(OR(CNG_Mono,CNG_Dual),'LIMITS Efficiency'!$C$9,IF(Hydrogen,'LIMITS Efficiency'!$C$11,0)) -> 0
D12: ='TEST RESULTS'!$D$7 -> WLTC+ CAT Cold (-7°C) | E12: kWh/100km | F12: =Z12+AC12+AF12 -> 0 | G12: =Z12*(IF(Petrol,'LIMITS Efficiency'!$H$6,IF(Diesel,'LIMITS Efficiency'!$H$7,IF(E_85,'LIMITS Efficiency'!#REF!,1)))-1)+AC12*('LIMITS Efficiency'!$H$9-1)+AF12*(IF(Hydrogen,'LIMITS Efficiency'!$H$10,IF(OR(CNG_Dual,CNG_Mono),'LIMITS Efficiency'!$H$8,))-1) -> 0 | H12: =G12+F12 -> 0 | N12: =$D$12 -> WLTC+ CAT Cold (-7°C) | O12: l/100km | P12: ='TEST RESULTS'!$Q7 -> 0 | Q12: =$D$12 -> WLTC+ CAT Cold (-7°C) | R12: kWh/100km | S12: ='TEST RESULTS'!R7 -> 0 | T12: =$D$12 -> WLTC+ CAT Cold (-7°C) | U12: kg/100km | V12: ='TEST RESULTS'!U7 -> 0 | X12: =$D$12 -> WLTC+ CAT Cold (-7°C) | Y12: kWh/100km | Z12: =P12*IF(Petrol,'LIMITS Efficiency'!$C$7,IF(Diesel,'LIMITS Efficiency'!$C$8,IF(E_85,'LIMITS Efficiency'!$C$12,IF(CNG_Dual,'LIMITS Efficiency'!$C$7)))) -> 0 | AA12: =$D$12 -> WLTC+ CAT Cold (-7°C) | AB12: kWh/100km | AC12: =S12 -> 0 | AD12: =$D$12 -> WLTC+ CAT Cold (-7°C) | AE12: kWh/100km | AF12: =V12*IF(OR(CNG_Mono,CNG_Dual),'LIMITS Efficiency'!$C$9,IF(Hydrogen,'LIMITS Efficiency'!$C$11,0)) -> 0
D13: ='TEST RESULTS'!$D$8 -> WLTC+ CAT Warm (-7°C) | E13: kWh/100km | F13: 0 | G13: =Z13*(IF(Petrol,'LIMITS Efficiency'!$H$6,IF(Diesel,'LIMITS Efficiency'!$H$7,IF(E_85,'LIMITS Efficiency'!#REF!,1)))-1)+AC13*('LIMITS Efficiency'!$H$9-1)+AF13*(IF(Hydrogen,'LIMITS Efficiency'!$H$10,IF(OR(CNG_Dual,CNG_Mono),'LIMITS Efficiency'!$H$8,))-1) -> 0 | H13: 0 | N13: =$D$13 -> WLTC+ CAT Warm (-7°C) | O13: l/100km | P13: ='TEST RESULTS'!$Q8 -> 0 | Q13: =$D$13 -> WLTC+ CAT Warm (-7°C) | R13: kWh/100km | S13: ='TEST RESULTS'!R8 -> 0 | T13: =$D$13 -> WLTC+ CAT Warm (-7°C) | U13: kg/100km | V13: ='TEST RESULTS'!U8 -> 0 | X13: =$D$13 -> WLTC+ CAT Warm (-7°C) | Y13: kWh/100km | Z13: =P13*IF(Petrol,'LIMITS Efficiency'!$C$7,IF(Diesel,'LIMITS Efficiency'!$C$8,IF(E_85,'LIMITS Efficiency'!$C$12,IF(CNG_Dual,'LIMITS Efficiency'!$C$7)))) -> 0 | AA13: =$D$13 -> WLTC+ CAT Warm (-7°C) | AB13: kWh/100km | AC13: 0 | AD13: =$D$13 -> WLTC+ CAT Warm (-7°C) | AE13: kWh/100km | AF13: =V13*IF(OR(CNG_Mono,CNG_Dual),'LIMITS Efficiency'!$C$9,IF(Hydrogen,'LIMITS Efficiency'!$C$11,0)) -> 0
D14: ='TEST RESULTS'!$D$9 -> BAB130 Motorway | E14: kWh/100km | F14: 0 | G14: =Z14*(IF(Petrol,'LIMITS Efficiency'!$H$6,IF(Diesel,'LIMITS Efficiency'!$H$7,IF(E_85,'LIMITS Efficiency'!H12,1)))-1)+AC14*('LIMITS Efficiency'!$H$9-1)+AF14*(IF(Hydrogen,'LIMITS Efficiency'!$H$10,IF(OR(CNG_Dual,CNG_Mono),'LIMITS Efficiency'!$H$8,))-1) -> 0 | H14: 0 | N14: =$D$14 -> BAB130 Motorway | O14: l/100km | P14: ='TEST RESULTS'!$Q9 -> 0 | Q14: =$D$14 -> BAB130 Motorway | R14: kWh/100km | S14: ='TEST RESULTS'!R9 -> 0 | T14: =$D$14 -> BAB130 Motorway | U14: kg/100km | V14: ='TEST RESULTS'!U9 -> 0 | X14: =$D$14 -> BAB130 Motorway | Y14: kWh/100km | Z14: =P14*IF(Petrol,'LIMITS Efficiency'!$C$7,IF(Diesel,'LIMITS Efficiency'!$C$8,IF(E_85,'LIMITS Efficiency'!$C$12,IF(CNG_Dual,'LIMITS Efficiency'!$C$7)))) -> 0 | AA14: =$D$14 -> BAB130 Motorway | AB14: kWh/100km | AC14: =S14 -> 0 | AD14: =$D$14 -> BAB130 Motorway | AE14: kWh/100km | AF14: =V14*IF(OR(CNG_Mono,CNG_Dual),'LIMITS Efficiency'!$C$9,IF(Hydrogen,'LIMITS Efficiency'!$C$11,0)) -> 0
D15: ='TEST RESULTS'!$D$10 -> On-Road Drive | E15: kWh/100km | F15: 0 | G15: =Z15*(IF(Petrol,'LIMITS Efficiency'!$H$6,IF(Diesel,'LIMITS Efficiency'!$H$7,IF(E_85,'LIMITS Efficiency'!H13,1)))-1)+AC15*('LIMITS Efficiency'!$H$9-1)+AF15*(IF(Hydrogen,'LIMITS Efficiency'!$H$10,IF(OR(CNG_Dual,CNG_Mono),'LIMITS Efficiency'!$H$8,))-1) -> 0 | H15: 0 | N15: =$D$15 -> On-Road Drive | O15: l/100km | P15: ='TEST RESULTS'!$Q10 -> 0 | Q15: =$D$15 -> On-Road Drive | R15: kWh/100km | S15: ='TEST RESULTS'!R10 -> 0 | T15: =$D$15 -> On-Road Drive | U15: kg/100km | V15: ='TEST RESULTS'!U10 -> 0 | X15: =$D$15 -> On-Road Drive | Y15: kWh/100km | Z15: =P15*IF(Petrol,'LIMITS Efficiency'!$C$7,IF(Diesel,'LIMITS Efficiency'!$C$8,IF(E_85,'LIMITS Efficiency'!$C$12,IF(CNG_Dual,'LIMITS Efficiency'!$C$7)))) -> 0 | AA15: =$D$15 -> On-Road Drive | AB15: kWh/100km | AC15: =S15 -> 0 | AD15: =$D$15 -> On-Road Drive | AE15: kWh/100km | AF15: =V15*IF(OR(CNG_Mono,CNG_Dual),'LIMITS Efficiency'!$C$9,IF(Hydrogen,'LIMITS Efficiency'!$C$11,0)) -> 0
N16: Average | O16: l/100km | P16: =AVERAGE(P$10,P$11,P$14) -> 0 | Q16: Average | R16: kWh/100km | S16: =AVERAGE(S$10,S$11,S$14) -> 0 | T16: Average | U16: kg/100km | V16: =IF(OR(CNG_Mono,CNG_Dual,Hydrogen),'TEST RESULTS'!#REF!,0) -> 0 | X16: Average | Y16: kWh/100km | Z16: =AVERAGE(Z$10,Z$11,Z$14) -> 0 | AA16: Average | AB16: kWh/100km | AC16: =AVERAGE(AC$10,AC$11,AC$14) -> 0 | AD16: Average | AE16: kWh/100km | AF16: =AVERAGE(AF$10,AF$11,AF$14) -> 0
C17: Maintenance | N17: Warm Test (Lab) | O17: l/100km | P17: =P13 -> 0 | Q17: Warm Test (Lab) | R17: kWh/100km | S17: =S13 -> 0 | T17: Warm Test (Lab) | U17: kg/100km | V17: =V13 -> 0 | X17: Warm Test (Lab) | Y17: kWh/100km | Z17: =Z13 -> 0 | AA17: Warm Test (Lab) | AB17: kWh/100km | AC17: =AC13 -> 0 | AD17: Warm Test (Lab) | AE17: kWh/100km | AF17: =AF13 -> 0
G18: LCA Value | H18: Total | N18: Highway | O18: l/100km | P18: =P14 -> 0 | Q18: Highway | R18: kWh/100km | S18: =S14 -> 0 | T18: Highway | U18: kg/100km | V18: =V14 -> 0 | X18: Highway | Y18: kWh/100km | Z18: =Z14 -> 0 | AA18: Highway | AB18: kWh/100km | AC18: =AC14 -> 0 | AD18: Highway | AE18: kWh/100km | AF18: =AF14 -> 0
N19: Cold Ambient Test | O19: l/100km | P19: =P12 -> 0 | Q19: Cold Ambient Test | R19: kWh/100km | S19: =S12 -> 0 | T19: Cold Ambient Test | U19: kg/100km | V19: =V12 -> 0 | X19: Cold Ambient Test | Y19: kWh/100km | Z19: =Z12 -> 0 | AA19: Cold Ambient Test | AB19: kWh/100km | AC19: =AC12 -> 0 | AD19: Cold Ambient Test | AE19: kWh/100km | AF19: =AF12 -> 0
E20: kWh/100km | G20: ='LCA RESULTS'!F11*100 -> 0 | H20: =G20 -> 0 | N20: Best Case for LCA | O20: l/100km | P20: =MIN(Efficiency!P10:P13,Efficiency!P14:P15) -> 0 | Q20: Best Case for LCA | R20: kWh/100km | S20: =IF(Electric,MIN(Efficiency!S10:S13,Efficiency!S14),MIN(Efficiency!S10:S13,Efficiency!S14:S15)) -> 0 | T20: Best Case for LCA | U20: kg/100km | V20: =MIN(Efficiency!V10:V13,Efficiency!V14:V15) -> 0 | X20: Best Case for LCA | Y20: kWh/100km | Z20: =MIN(Efficiency!Z10:Z13,Efficiency!Z14:Z15) -> 0 | AA20: Best Case for LCA | AB20: kWh/100km | AC20: =MIN(Efficiency!AC10:AC13,Efficiency!AC14:AC15) -> 0 | AD20: Best Case for LCA | AE20: kWh/100km | AF20: =MIN(Efficiency!AF10:AF13,Efficiency!AF14:AF15) -> 0
N21: Worst Case for LCA | O21: l/100km | P21: =MAX(P10:P13,P14:P15) -> 0 | Q21: Worst Case for LCA | R21: kWh/100km | S21: =IF(Electric,MAX(S10:S13,S14),MAX(S10:S13,S14:S15)) -> 0 | T21: Worst Case for LCA | U21: kg/100km | V21: =MAX(V10:V13,V14:V15) -> 0 | X21: Worst Case for LCA | Y21: kWh/100km | Z21: =MAX(Z10:Z13,Z14:Z15) -> 0 | AA21: Worst Case for LCA | AB21: kWh/100km | AC21: =MAX(AC10:AC13,AC14:AC15) -> 0 | AD21: Worst Case for LCA | AE21: kWh/100km | AF21: =MAX(AF10:AF13,AF14:AF15) -> 0
B22: EoL
G23: LCA Value | H23: Total
N24: 2.2.1 | Q24: 2.2.2 | T24: 2.2.3
E25: kWh/100km | G25: ='LCA RESULTS'!F12*100 -> 0 | H25: =G25 -> 0
N26: Driving Range (liquid fuel) | Q26: Driving Range (electric energy) | T26: Driving Range (CNG, Hydrogen)
M27: =SUM(I21:I21) -> 0 | N27: =$D$10 -> WLTP CoC Type Approval | O27: km | P27: =IF(OR(Petrol,Diesel,CNG_Dual,E_85),IF(P10>0,100*SPECS!$B$11/P10,0),0) -> 0 | Q27: =$D$10 -> WLTP CoC Type Approval | R27: km | S27: =IF(Electric,IF(S10>0,100*SPECS!$B$45/S10,0),0) -> 0 | T27: =$D$11 -> WLTP+ Warm | U27: km | V27: =IF(OR(CNG_Mono,Hydrogen),IF(V10>0,100*SPECS!$B$12/V10,0),0) -> 0
F28: Rolling resistance | J28: Thresholds | N28: =$D$11 -> WLTP+ Warm | O28: km | P28: =IF(OR(Petrol,Diesel,CNG_Dual,E_85),IF(P11>0,100*SPECS!$B$11/P11,0),0) -> 0 | Q28: =$D$11 -> WLTP+ Warm | R28: km | S28: =IF(Electric,IF(S11>0,100*SPECS!$B$45/S11,0),0) -> 0 | T28: =$D$10 -> WLTP CoC Type Approval | U28: km | V28: =IF(OR(CNG_Mono,Hydrogen),IF(V11>0,100*SPECS!$B$12/V11,0),0) -> 0
E29: Standard | F29: max points | G29: =L30 -> 10 | H29: Value | I29: Points | J29: Lower | K29: Upper | L29: Max score | N29: =$D$12 -> WLTC+ CAT Cold (-7°C) | O29: km | P29: =IF(OR(Petrol,Diesel,CNG_Dual,E_85),IF(P12>0,100*SPECS!$B$11/P12,0),0) -> 0 | Q29: =$D$12 -> WLTC+ CAT Cold (-7°C) | R29: km | S29: =IF(Electric,IF(S12>0,100*SPECS!$B$45/S12,0),0) -> 0 | T29: =$D$12 -> WLTC+ CAT Cold (-7°C) | U29: km | V29: =IF(OR(CNG_Mono,Hydrogen),IF(V12>0,100*SPECS!$B$12/V12,0),0) -> 0
F30: Avg F@25 kph | G30: N | H30: =SPECS!B38+SPECS!B39*25+SPECS!B40*(25^2) -> 0 | I30: =Sliding_Scale(H30,J30,K30,L30,0,2) -> 10 | J30: 120 | K30: 220 | L30: 10 | N30: =$D$13 -> WLTC+ CAT Warm (-7°C) | O30: km | P30: =IF(OR(Petrol,Diesel,CNG_Dual,E_85),IF(P13>0,100*SPECS!$B$11/P13,0),0) -> 0 | Q30: =$D$13 -> WLTC+ CAT Warm (-7°C) | R30: km | S30: =IF(Electric,IF(S13>0,100*SPECS!$B$45/S13,0),0) -> 0 | T30: =$D$13 -> WLTC+ CAT Warm (-7°C) | U30: km | V30: =IF(OR(CNG_Mono,Hydrogen),IF(V13>0,100*SPECS!$B$12/V13,0),0) -> 0
H32: Direct Propulsion Energy Demand kWh/100km | J32: Thresholds
H33: Total | I33: Points | J33: Lower | K33: Upper | L33: Max Score
H34: =AVERAGE(F10:F14) -> 0 | I34: =MAX(Sliding_Scale(H34,J34,K34,L34,0,Slide_Type),0) -> 10 | J34: 20 | K34: 70 | L34: 10
H36: Additional LCA Energy Demand kWh/100km | J36: Thresholds
H37: Total | I37: Points | J37: Lower | K37: Upper | L37: Max Score
H38: =H5+(AVERAGE(G10:G14)+H20+H25) -> 0 | I38: =MAX(Sliding_Scale(H38,J38,K38,L38,0,Slide_Type),0) -> 10 | J38: 40 | K38: 100 | L38: 10
N39: =$D$14 -> BAB130 Motorway | O39: km | P39: =IF(OR(Petrol,Diesel,CNG_Dual,E_85),IF(P14>0,100*SPECS!$B$11/P14,0),0) -> 0 | Q39: =$D$14 -> BAB130 Motorway | R39: km | S39: =IF(Electric,IF(S14>0,100*SPECS!$B$45/S14,0),0) -> 0 | T39: =$D$14 -> BAB130 Motorway | U39: km | V39: =IF(OR(CNG_Mono,Hydrogen),IF(V14>0,100*SPECS!$B$12/V14,0),0) -> 0
H40: Total Energy Demand kWh/100km | J40: Thresholds | N40: =$D$15 -> On-Road Drive | O40: km | P40: =IF(OR(Petrol,Diesel,CNG_Dual,E_85),IF(P15>0,100*SPECS!$B$11/P15,0),0) -> 0 | Q40: =$D$15 -> On-Road Drive | R40: km | S40: =IF(Electric,IF(S15>0,100*SPECS!$B$45/S15,0),0) -> 0 | T40: =$D$15 -> On-Road Drive | U40: km | V40: =IF(OR(CNG_Mono,Hydrogen),IF(V15>0,100*SPECS!$B$12/V15,0),0) -> 0
H41: Total | I41: Points | J41: Lower | K41: Upper | L41: Max Score | N41: Average | O41: km | P41: =AVERAGE(P27,P28,P39) -> 0 | Q41: Average | R41: km | S41: =AVERAGE(S27,S28,S39) -> 0 | T41: Average | U41: km | V41: =AVERAGE(V27,V28,V39) -> 0
H42: =SUM(H25,H20,AVERAGE(H10:H14),H5) -> 0 | I42: =MAX(Sliding_Scale(H42,J42,K42,L42,0,Slide_Type),0) -> 10 | J42: 60 | K42: 130 | L42: 10 | N42: Warm Test (Lab) | O42: km | P42: =P30 -> 0 | Q42: Warm Test (Lab) | R42: km | S42: =S30 -> 0 | T42: Warm Test (Lab) | U42: km | V42: =V30 -> 0
N43: Highway | O43: km | P43: =P39 -> 0 | Q43: Highway | R43: km | S43: =S39 -> 0 | T43: Highway | U43: km | V43: =V39 -> 0
H44: Energy Demand Weighting | J44: 0.95 | N44: Cold Ambient Test | O44: km | P44: =P29 -> 0 | Q44: Cold Ambient Test | R44: km | S44: =S29 -> 0 | T44: Cold Ambient Test | U44: km | V44: =V12 -> 0
H45: Rolling Resistance Weighting | J45: 0.05 | N45: Best Case for LCA | O45: km | P45: =MAX(P27:P30,P39:P40) -> 0 | Q45: Best Case for LCA | R45: km | S45: =MAX(S27:S30,S39:S40) -> 0 | T45: Best Case for LCA | U45: km | V45: =MAX(V27:V30,V39:V40) -> 0
K46: ENERGY EFFICIENCY INDEX | L46: =I42/L42*10*J44+J45*I30/L30*10 -> 10 | N46: Worst Case for LCA | O46: km | P46: =MIN(P27:P30,P39:P40) -> 0 | Q46: Best Case for LCA | R46: km | S46: =MIN(S27:S30,S39:S40) -> 0 | T46: Best Case for LCA | U46: km | V46: =MIN(V27:V30,V39:V40) -> 0

Sheet Greenhouse
C2: 3.Greenhouse Gas Index
B5: PRODUCTION | F5: LCA Results
F7: LCA Value | G7: CO2-eq
D9: N2O | E9: g/km | F9: ='LCA RESULTS'!I8 -> 0 | G9: =F9*'LIMITS Greenhouse'!B5 -> 0
D10: CH4 | E10: g/km | F10: ='LCA RESULTS'!I9 -> 0 | G10: =F10*'LIMITS Greenhouse'!B6 -> 0
D11: CO2 | E11: g/km | F11: ='LCA RESULTS'!I10 -> 0 | G11: =F11*'LIMITS Greenhouse'!B7 -> 0
D12: Total CO2 equivalent | E12: g/km | G12: =SUM(G9:G11) -> 0
B14: USAGE | C14: Testing | F14: Test Results
F16: Value | N16: Conversion from local consumption kWh/100km to upstream GHG emissions in g/km for different energy carriers
C17: WLTP CoC Type Approval | D17: max points | N17: CO2 equivalent upstream (Well-to-Tank+)
D18: N2O tailpipe | E18: mg/km | F18: =(WLTP_Cold_TA N2O) -> 0 | N18: Liquid Fuel | P18: Factor | Q18: Electricity | S18: Factor | T18: Gaseous Fuel | V18: Factor
D19: CH4 tailpipe | E19: mg/km | F19: =(WLTP_Cold_TA CH_4) -> 0 | N19: =IF(Petrol,"Petrol",IF(Diesel,"Diesel","-")) -> - | P19: =IF(OR(Petrol,CNG_Dual),'LIMITS Greenhouse'!$D$11,IF(Diesel,'LIMITS Greenhouse'!$D$12,IF(E_85,'LIMITS Greenhouse'!$D$16,0))) -> 0 | Q19: =IF(Electric,"Electricity","-") -> Electricity | S19: =IF(Electric,'LIMITS Greenhouse'!D13,0) -> 2.12364 | T19: =IF(CNG_Mono,"CNG",IF(CNG_Dual,"CNG",IF(Hydrogen,"Hydrogen","-"))) -> - | V19: =IF(OR(CNG_Mono,CNG_Dual),'LIMITS Greenhouse'!$D$14,IF(Hydrogen,'LIMITS Greenhouse'!$D$15,0)) -> 0
D20: Total CO2 equivalent | E20: g/km | F20: =SUM(F21:F24) -> 0 | N20: ='TEST RESULTS'!$D$5 -> WLTP CoC Type Approval | O20: g/km | P20: =Efficiency!Z10*P$19 -> 0 | Q20: ='TEST RESULTS'!$D$5 -> WLTP CoC Type Approval | R20: g/km | S20: =Efficiency!AC10*$S$19 -> 0 | T20: ='TEST RESULTS'!$D$5 -> WLTP CoC Type Approval | U20: g/km | V20: =Efficiency!AF10*Greenhouse!$V$19 -> 0
D21: CO2 tailpipe | E21: g/km | F21: =(IF(OR(Petrol,Diesel,CNG_Mono,CNG_Dual,E_85),WLTP_Cold_TA CO2_rcb,0)) -> 0 | N21: =$C$26 -> WLTP+ Warm | O21: g/km | P21: =Efficiency!Z11*P$19 -> 0 | Q21: =$C$26 -> WLTP+ Warm | R21: g/km | S21: =Efficiency!AC11*$S$19 -> 0 | T21: =$C$26 -> WLTP+ Warm | U21: g/km | V21: =Efficiency!AF11*Greenhouse!$V$19 -> 0
D22: N2O CO2-eq (from tailpipe) | E22: g/km | F22: =(WLTP_Cold_TA N2O)*'LIMITS Greenhouse'!$B$5/1000 -> 0 | N22: ='TEST RESULTS'!$D$7 -> WLTC+ CAT Cold (-7°C) | O22: g/km | P22: =Efficiency!Z12*P$19 -> 0 | Q22: ='TEST RESULTS'!$D$7 -> WLTC+ CAT Cold (-7°C) | R22: g/km | S22: =Efficiency!AC12*$S$19 -> 0 | T22: ='TEST RESULTS'!$D$7 -> WLTC+ CAT Cold (-7°C) | U22: g/km | V22: =Efficiency!AF12*Greenhouse!$V$19 -> 0
D23: CH4 CO2-eq (from tailpipe) | E23: g/km | F23: =(WLTP_Cold_TA CH_4)*'LIMITS Greenhouse'!$B$6/1000 -> 0 | N23: ='TEST RESULTS'!$D$8 -> WLTC+ CAT Warm (-7°C) | O23: g/km | P23: =Efficiency!Z13*P$19 -> 0 | Q23: ='TEST RESULTS'!$D$8 -> WLTC+ CAT Warm (-7°C) | R23: g/km | S23: =Efficiency!AC13*$S$19 -> 0 | T23: ='TEST RESULTS'!$D$8 -> WLTC+ CAT Warm (-7°C) | U23: g/km | V23: =Efficiency!AF13*Greenhouse!$V$19 -> 0
D24: CO2-eq upstream (Well-to-Tank+) | E24: g/km | F24: =P20+S20+V20-(1-(IF(Petrol,'LIMITS Greenhouse'!D21,IF(Diesel,'LIMITS Greenhouse'!D22,IF(E_85,'LIMITS Greenhouse'!D23,1)))))*F21 -> 0 | N24: ='TEST RESULTS'!$D$9 -> BAB130 Motorway | O24: g/km | P24: =Efficiency!Z14*P$19 -> 0 | Q24: ='TEST RESULTS'!$D$9 -> BAB130 Motorway | R24: g/km | S24: =Efficiency!AC14*$S$19 -> 0 | T24: ='TEST RESULTS'!$D$9 -> BAB130 Motorway | U24: g/km | V24: =Efficiency!AF14*Greenhouse!$V$19 -> 0
N25: ='TEST RESULTS'!$D$10 -> On-Road Drive | O25: g/km | P25: =Efficiency!Z15*P$19 -> 0 | Q25: ='TEST RESULTS'!$D$10 -> On-Road Drive | R25: g/km | S25: =Efficiency!AC15*$S$19 -> 0 | T25: ='TEST RESULTS'!$D$10 -> On-Road Drive | U25: g/km | V25: =Efficiency!AF15*Greenhouse!$V$19 -> 0
C26: WLTP+ Warm | D26: max points
D27: N2O tailpipe | E27: mg/km | F27: =(WLTP_Warm N2O) -> 0
D28: CH4 tailpipe | E28: mg/km | F28: =(WLTP_Warm CH_4) -> 0
D29: Total CO2 equivalent | E29: g/km | F29: =SUM(F30:F33) -> 0
D30: CO2 tailpipe | E30: g/km | F30: =(IF(OR(Petrol,Diesel,CNG_Mono,CNG_Dual,E_85),WLTP_Warm CO2_rcb,0)) -> 0
D31: N2O CO2-eq (from tailpipe) | E31: g/km | F31: =(WLTP_Warm N2O)*'LIMITS Greenhouse'!$B$5/1000 -> 0
D32: CH4 CO2-eq (from tailpipe) | E32: g/km | F32: =(WLTP_Warm CH_4)*'LIMITS Greenhouse'!$B$6/1000 -> 0
D33: CO2-eq upstream (Well-to-Tank+) | E33: g/km | F33: =P21+S21+V21-(1-(IF(Petrol,'LIMITS Greenhouse'!D21,IF(Diesel,'LIMITS Greenhouse'!D22,IF(E_85,'LIMITS Greenhouse'!D23,1)))))*F30 -> 0
C35: WLTC+ CAT Cold | D35: max points
D36: N2O tailpipe | E36: mg/km | F36: =(WLTP_CAT1 N2O) -> 0
D37: CH4 tailpipe | E37: mg/km | F37: =(WLTP_CAT1 CH_4) -> 0
D38: Total CO2 equivalent | E38: g/km | F38: =SUM(F39:F42) -> 0
D39: CO2 tailpipe | E39: g/km | F39: =(IF(OR(Petrol,Diesel,CNG_Mono,CNG_Dual,E_85),WLTP_CAT1 CO2_rcb,0)) -> 0
D40: N2O CO2-eq (from tailpipe) | E40: g/km | F40: =(WLTP_CAT1 N2O)*'LIMITS Greenhouse'!$B$5/1000 -> 0
D41: CH4 CO2-eq (from tailpipe) | E41: g/km | F41: =(WLTP_CAT1 CH_4)*'LIMITS Greenhouse'!$B$6/1000 -> 0
D42: CO2-eq upstream (Well-to-Tank+) | E42: g/km | F42: =P22+S22+V22-(1-(IF(Petrol,'LIMITS Greenhouse'!D21,IF(Diesel,'LIMITS Greenhouse'!D22,IF(E_85,'LIMITS Greenhouse'!D23,1)))))*F39 -> 0
C44: WLTP+ CAT Warm | D44: max points
D45: N2O tailpipe | E45: mg/km | F45: =(WLTP_CAT2 N2O) -> 0
D46: CH4 tailpipe | E46: mg/km | F46: =(WLTP_CAT2 CH_4) -> 0
D47: Total CO2 equivalent | E47: g/km | F47: =SUM(F48:F51) -> 0
D48: CO2 tailpipe | E48: g/km | F48: =(IF(OR(Petrol,Diesel,CNG_Mono,CNG_Dual,E_85),WLTP_CAT2 CO2_rcb,0)) -> 0
D49: N2O CO2-eq (from tailpipe) | E49: g/km | F49: =(WLTP_CAT2 N2O)*'LIMITS Greenhouse'!$B$5/1000 -> 0
D50: CH4 CO2-eq (from tailpipe) | E50: g/km | F50: =(WLTP_CAT2 CH_4)*'LIMITS Greenhouse'!$B$6/1000 -> 0
D51: CO2-eq upstream (Well-to-Tank+) | E51: g/km | F51: =P23+S23+V23-(1-(IF(Petrol,'LIMITS Greenhouse'!D21,IF(Diesel,'LIMITS Greenhouse'!D22,IF(E_85,'LIMITS Greenhouse'!D23,1)))))*F48 -> 0
C53: BAB130 | D53: max points
D54: N2O tailpipe | E54: mg/km | F54: =(BAB_130 N2O) -> 0
D55: CH4 tailpipe | E55: mg/km | F55: =(BAB_130 CH_4) -> 0
D56: Total CO2 equivalent | E56: g/km | F56: =SUM(F57:F60) -> 0
D57: CO2 tailpipe | E57: g/km | F57: =(IF(OR(Petrol,Diesel,CNG_Mono,CNG_Dual,E_85),BAB_130 CO2_rcb,0)) -> 0
D58: N2O CO2-eq (from tailpipe) | E58: g/km | F58: =(BAB_130 N2O)*'LIMITS Greenhouse'!$B$5/1000 -> 0
D59: CH4 CO2-eq (from tailpipe) | E59: g/km | F59: =(BAB_130 CH_4)*'LIMITS Greenhouse'!$B$6/1000 -> 0
D60: CO2-eq upstream (Well-to-Tank+) | E60: g/km | F60: =P24+S24+V24-(1-(IF(Petrol,'LIMITS Greenhouse'!D21,IF(Diesel,'LIMITS Greenhouse'!D22,IF(E_85,'LIMITS Greenhouse'!D23,1)))))*F57 -> 0
C62: ='TEST RESULTS'!D10 -> On-Road Drive | D62: max points | E62: =SUM(L63:L65) -> 0
D63: N2O | E63: mg/km | F63: =(PEMS_Eco N2O) -> 0 | I63: =IF(OR(Hydrogen,Electric),L63,IF(F63=0,Sliding_Scale(F63,J63,K63,L63,0,Slide_Type),IF(#REF!/F63>='LIMITS Efficiency'!#REF!,(1-'LIMITS Efficiency'!#REF!)*Sliding_Scale(F63,J63,K63,L63,0,Slide_Type),Sliding_Scale(F63,J63,K63,L63,0,Slide_Type)))) -> 0
D64: CH4 | E64: mg/km | F64: =(PEMS_Eco CH_4) -> 0 | I64: =IF(OR(Hydrogen,Electric),L64,IF(F64=0,Sliding_Scale(F64,J64,K64,L64,0,Slide_Type),IF(#REF!/F64>='LIMITS Efficiency'!#REF!,(1-'LIMITS Efficiency'!#REF!)*Sliding_Scale(F64,J64,K64,L64,0,Slide_Type),Sliding_Scale(F64,J64,K64,L64,0,Slide_Type)))) -> 0
D65: Total CO2 | E65: g/km | F65: =SUM(F66:F69) -> 0 | I65: =IF(OR(Hydrogen,Electric),L65,IF(F65=0,Sliding_Scale(F65,J65,K65,L65,0,Slide_Type),IF(#REF!/F65>='LIMITS Efficiency'!#REF!,(1-'LIMITS Efficiency'!#REF!)*Sliding_Scale(F65,J65,K65,L65,0,Slide_Type),Sliding_Scale(F65,J65,K65,L65,0,Slide_Type)))) -> 0
D66: CO2 tailpipe | E66: g/km | F66: =(IF(OR(Petrol,Diesel,CNG_Mono,CNG_Dual,E_85),PEMS_Eco CO2_rcb,0)) -> 0
D67: CO2 eq N2O | E67: g/km | F67: =(PEMS_Eco N2O)*'LIMITS Greenhouse'!$B$5/1000 -> 0
D68: CO2 eq CH4 | E68: g/km | F68: =(PEMS_Eco CH_4)*'LIMITS Greenhouse'!$B$6/1000 -> 0
D69: CO2-eq upstream | E69: g/km | F69: =P25+S25+V25-(1-(IF(Petrol,'LIMITS Greenhouse'!D21,IF(Diesel,'LIMITS Greenhouse'!D22,IF(E_85,'LIMITS Greenhouse'!D23,1)))))*F66 -> 0
C70: Maintenance | F70: Test Results
F72: LCA Value
D74: N2O | E74: g/km | F74: ='LCA RESULTS'!I16 -> 0 | G74: =F74*'LIMITS Greenhouse'!B5 -> 0
D75: CH4 | E75: g/km | F75: ='LCA RESULTS'!I17 -> 0 | G75: =F75*'LIMITS Greenhouse'!B6 -> 0
D76: CO2 | E76: g/km | F76: ='LCA RESULTS'!I18 -> 0 | G76: =F76*'LIMITS Greenhouse'!B7 -> 0
D77: Total CO2 equivalent | E77: g/km | G77: =SUM(G74:G76) -> 0
B79: EoL | F79: LCA Results
F81: LCA Value | G81: CO2-eq
D83: N2O | E83: g/km | F83: ='LCA RESULTS'!I24 -> 0 | G83: =F83*'LIMITS Greenhouse'!B5 -> 0
D84: CH4 | E84: g/km | F84: ='LCA RESULTS'!I25 -> 0 | G84: =F84*'LIMITS Greenhouse'!B6 -> 0
D85: CO2 | E85: g/km | F85: ='LCA RESULTS'!I26 -> 0 | G85: =F85*'LIMITS Greenhouse'!B7 -> 0
D86: Total CO2 equivalent | E86: g/km | G86: =SUM(G83:G85) -> 0
F89: Direct Emissions g CO2-eq./km | J89: Thresholds | L89: Max score
J91: Lower | K91: Upper
G93: =AVERAGE((F21+F22+F23),(F30+F31+F32),(F39+F40+F41),(F48+F49+F50),(F57+F58+F59)) -> 0 | I93: =MAX(Sliding_Scale(G93,J93,K93,L93,0,Slide_Type),0) -> 10 | J93: 0 | K93: 170 | L93: 10
F95: Additional LCA Emissions g CO2-eq./km | J95: Thresholds | L95: Max score
J97: Lower | K97: Upper
G99: =G12+G77+G86+AVERAGE(F24,F33,F42,F51,F60) -> 0 | I99: =MAX(Sliding_Scale(G99,J99,K99,L99,0,Slide_Type),0) -> 10 | J99: 70 | K99: 200 | L99: 10
G101: TOTAL g CO2-eq./km | J101: Thresholds | L101: Max score
J103: Lower | K103: Upper
G105: =SUM(G86,G12,G77,AVERAGE(F20,F29,F38,F47,F56)) -> 0 | I105: =MAX(Sliding_Scale(G105,J105,K105,L105,0,Slide_Type),0) -> 10 | J105: 110 | K105: 300 | L105: 10
D107: SUMMARY | K107: max points | L107: score
D108: PRODUCTION
D109: USAGE | I109: Testing
I110: Tyre & Brake Wear
I111: Energy Supply
I112: Maintenance
D113: END OF LIFE
D114: TRANSPARENCY BONUS
D115: Total
D116: TOTAL SCORE GREENHOUSE GASES | K116: (0-10pts) | L116: =(ROUNDDOWN((10*L115/K115),1)) -> 
K118: Greenhouse Gas Index | L118: =I105/L105*10 -> 10

Sheet Driving Experience
C1: ITEM | D1: Applicability | F1: Assessment
A2: Consumption and Range | B2: Total Score
B3: =IF(Electric,ROUND(SUM(0.4*I20+0.4*I87+0.2*H136)/(0.4*M18+0.4*M85+0.2*L134)*3,0),IF(OR(Petrol,Diesel,CNG_Mono,E_85),ROUND(SUM(0.7*I20+0*I87+0.3*H136)/(0.7*M18+0*M85+0.3*L134)*3,0),"?")) ->  | H3: =IF(OR(Petrol,Diesel,E_85),"l/100km",IF(OR(CNG_Dual,CNG_Mono,Hydrogen),"kg/100km",IF(Electric,"kWh/100km","?"))) -> kWh/100km | K3: Applicable thresholds | M3: Maximum Score | N3: thresholds l/100km | P3: thresholds kg/100km | R3: thresholds kWh/100km
B4: =IF(B3<=1,"Poor",IF(B3<=2,"Adequate",IF(B3<=3,"Good","??"))) ->  | C4: Estimated Actual Consumption | D4: ICE, HEV, BEV | H4: value | I4: score | J4: grade | K4: lower | L4: upper | N4: lower | O4: upper | P4: lower | Q4: upper | R4: lower | S4: upper
B5: =IF(B4="Good","Green",IF(B4="Adequate","Yellow",IF(B4="Poor","Red"))) -> 
F6: Warm Weather | G6: urban | H6: ='Driving Experience Input'!F4 -> 0 | I6: =IF(H6<=K6,3,IF(H6<=L6,2,1)) -> 3 | J6: =IF(I6=1,"Red",IF(I6=2,"Yellow",IF(I6=3,"Green"))) -> Green | K6: =IF(OR(Petrol,Diesel,E_85),N6,IF(OR(CNG_Dual,CNG_Mono,Hydrogen),P6,IF(Electric,R6,"?"))) -> 15.8 | L6: 19.7 | M6: 3 | N6: 6.4 | O6: 9.2 | R6: 15.8 | S6: 19.7
G7: rural | H7: ='Driving Experience Input'!G4 -> 0 | I7: =IF(H7<=K7,3,IF(H7<=L7,2,1)) -> 3 | J7: =IF(I7=1,"Red",IF(I7=2,"Yellow",IF(I7=3,"Green"))) -> Green | K7: 17.2 | L7: 20.2 | M7: 3 | N7: 4.9 | O7: 6.4 | R7: 17.2 | S7: 20.2
G8: highway | H8: ='Driving Experience Input'!H4 -> 0 | I8: 3 | J8: Green | K8: 19.4 | L8: 23 | M8: 3 | N8: 5.7 | O8: 7.3 | R8: 19.4 | S8: 23
G9: mixed | H9: ='Driving Experience Input'!I4 -> 0 | I9: 3 | J9: Green | K9: 17.4 | L9: 20.4 | M9: 3 | N9: 5.8 | O9: 7.8 | R9: 17.4 | S9: 20.4
H10: Sum | I10: =SUM(I6:I9) -> 12 | M10: =SUM(M6:M9) -> 12
H11: Score | I11: =ROUND(I10/M10*M11,0) -> 3 | J11: =IF(I11=1,"Red",IF(I11=2,"Yellow",IF(I11=3,"Green"))) -> Green | M11: 3
F13: Cold Winter | G13: urban | H13: ='Driving Experience Input'!F5 -> 0 | I13: =IF(H13<=K13,3,IF(H13<=L13,2,1)) -> 3 | J13: =IF(I13=1,"Red",IF(I13=2,"Yellow",IF(I13=3,"Green"))) -> Green | K13: =IF(OR(Petrol,Diesel,E_85),N13,IF(OR(CNG_Dual,CNG_Mono,Hydrogen),P13,IF(Electric,R13,"?"))) -> 25.3 | L13: 35.5 | M13: 3 | N13: 7.9 | O13: 10.7 | R13: 25.3 | S13: 35.5
G14: rural | H14: ='Driving Experience Input'!G5 -> 0 | I14: =IF(H14<=K14,3,IF(H14<=L14,2,1)) -> 3 | J14: =IF(I14=1,"Red",IF(I14=2,"Yellow",IF(I14=3,"Green"))) -> Green | K14: 20.7 | L14: 26.2 | M14: 3 | N14: 5.3 | O14: 6.8 | R14: 20.7 | S14: 26.2
G15: highway | H15: ='Driving Experience Input'!H5 -> 0 | I15: 3 | J15: Green | K15: 25.8 | L15: 30.7 | M15: 3 | N15: 6 | O15: 7.7 | R15: 25.8 | S15: 30.7
G16: mixed | H16: ='Driving Experience Input'!I5 -> 0 | I16: 3 | J16: Green | K16: 24.1 | L16: 31.2 | M16: 3 | N16: 6.5 | O16: 8.6 | R16: 24.1 | S16: 31.2
H17: Sum | I17: =SUM(I13:I16) -> 12 | M17: =SUM(M13:M16) -> 12
H18: Score | I18: =ROUND(I17/M17*M18,0) -> 3 | J18: =IF(I18=1,"Red",IF(I18=2,"Yellow",IF(I18=3,"Green"))) -> Green | M18: 3
H20: Total Section Score | I20: =ROUND((I18+I11)/(M11+M18)*3,0) -> 3 | J20: =IF(I20=1,"Red",IF(I20=2,"Yellow",IF(I20=3,"Green"))) -> Green
H23: l/100km | K23: Applicable thresholds | M23: Maximum Score
D24: PHEV | H24: value | I24: score | J24: grade | K24: lower | L24: upper
F26: Warm Weather - Fuel Mode | G26: urban | H26: ='Driving Experience Input'!F24 -> 0 | I26: =IF(H26<=K26,3,IF(H26<=L26,2,1)) -> 3 | J26: =IF(I26=1,"Red",IF(I26=2,"Yellow",IF(I26=3,"Green"))) -> Green | K26: 5 | L26: 9 | M26: 3
G27: rural | H27: ='Driving Experience Input'!G24 -> 0 | I27: =IF(H27<=K27,3,IF(H27<=L27,2,1)) -> 3 | J27: =IF(I27=1,"Red",IF(I27=2,"Yellow",IF(I27=3,"Green"))) -> Green | K27: 3 | L27: 7 | M27: 3
G28: highway | H28: ='Driving Experience Input'!H24 -> 0 | I28: 3 | J28: Green | K28: 4 | L28: 5 | M28: 3
G29: mixed | H29: ='Driving Experience Input'!I24 -> 0 | I29: 3 | J29: Green | K29: 4 | L29: 9 | M29: 3
H30: Sum | I30: =SUM(I26:I29) -> 12 | M30: =SUM(M26:M29) -> 12
H31: Score | I31: =ROUND(I30/M30*M31,0) -> 3 | J31: =IF(I31=1,"Red",IF(I31=2,"Yellow",IF(I31=3,"Green"))) -> Green | M31: 3
F33: Cold Winter - Fuel Mode | G33: urban | H33: ='Driving Experience Input'!F31 -> 0 | I33: =IF(H33<=K33,3,IF(H33<=L33,2,1)) -> 3 | J33: =IF(I33=1,"Red",IF(I33=2,"Yellow",IF(I33=3,"Green"))) -> Green | K33: 5 | L33: 9 | M33: 3
G34: rural | H34: ='Driving Experience Input'!G31 -> 0 | I34: =IF(H34<=K34,3,IF(H34<=L34,2,1)) -> 3 | J34: =IF(I34=1,"Red",IF(I34=2,"Yellow",IF(I34=3,"Green"))) -> Green | K34: 3 | L34: 7 | M34: 3
G35: highway | H35: ='Driving Experience Input'!H31 -> 0 | I35: 3 | J35: Green | K35: 4 | L35: 5 | M35: 3
G36: mixed | H36: ='Driving Experience Input'!I31 -> 0 | I36: 3 | J36: Green | K36: 4 | L36: 9 | M36: 3
H37: Sum | I37: =SUM(I33:I36) -> 12 | M37: =SUM(M33:M36) -> 12
H38: Score | I38: =ROUND(I37/M37*M38,0) -> 3 | J38: =IF(I38=1,"Red",IF(I38=2,"Yellow",IF(I38=3,"Green"))) -> Green | M38: 3
H41: kWh/100km | K41: Applicable thresholds | M41: Maximum Score
H42: value | I42: score | J42: grade | K42: lower | L42: upper
F44: Warm Weather - Electric Mode | G44: urban | H44: ='Driving Experience Input'!F42 -> 0 | I44: =IF(H44<=K44,3,IF(H44<=L44,2,1)) -> 3 | J44: =IF(I44=1,"Red",IF(I44=2,"Yellow",IF(I44=3,"Green"))) -> Green | K44: 10 | L44: 20 | M44: 3
G45: rural | H45: ='Driving Experience Input'!G42 -> 0 | I45: =IF(H45<=K45,3,IF(H45<=L45,2,1)) -> 3 | J45: =IF(I45=1,"Red",IF(I45=2,"Yellow",IF(I45=3,"Green"))) -> Green | K45: 10 | L45: 20 | M45: 3
G46: highway | H46: ='Driving Experience Input'!H42 -> 0 | I46: 3 | J46: Green | K46: 10 | L46: 20 | M46: 3
G47: mixed | H47: ='Driving Experience Input'!I42 -> 0 | I47: 3 | J47: Green | K47: 10 | L47: 20 | M47: 3
H48: Sum | I48: =SUM(I44:I47) -> 12 | M48: =SUM(M44:M47) -> 12
H49: Score | I49: =ROUND(I48/M48*M49,0) -> 3 | J49: =IF(I49=1,"Red",IF(I49=2,"Yellow",IF(I49=3,"Green"))) -> Green | M49: 3
F51: Cold Winter - Electric Mode | G51: urban | H51: ='Driving Experience Input'!F49 -> 0 | I51: =IF(H51<=K51,3,IF(H51<=L51,2,1)) -> 3 | J51: =IF(I51=1,"Red",IF(I51=2,"Yellow",IF(I51=3,"Green"))) -> Green | K51: 10 | L51: 20 | M51: 3
G52: rural | H52: ='Driving Experience Input'!G49 -> 0 | I52: =IF(H52<=K52,3,IF(H52<=L52,2,1)) -> 3 | J52: =IF(I52=1,"Red",IF(I52=2,"Yellow",IF(I52=3,"Green"))) -> Green | K52: 10 | L52: 20 | M52: 3
G53: highway | H53: ='Driving Experience Input'!H49 -> 0 | I53: 3 | J53: Green | K53: 10 | L53: 20 | M53: 3
G54: mixed | H54: ='Driving Experience Input'!I49 -> 0 | I54: 3 | J54: Green | K54: 10 | L54: 20 | M54: 3
H55: Sum | I55: =SUM(I51:I54) -> 12 | M55: =SUM(M51:M54) -> 12
H56: Score | I56: =ROUND(I55/M55*M56,0) -> 3 | J56: =IF(I56=1,"Red",IF(I56=2,"Yellow",IF(I56=3,"Green"))) -> Green | M56: 3
K58: Applicable thresholds | M58: Maximum Score | N58: thresholds l/100km | P58: thresholds kW/100km
H59: value | I59: score | J59: grade | K59: lower | L59: upper | N59: lower | O59: upper | P59: lower | Q59: upper
F61: Warm Weather - Combined Mode | G61: Fuel Consumption | H61: ='Driving Experience Input'!F17 -> 0 | I61: =IF(H61<=K61,3,IF(H61<=L61,2,1)) -> 3 | J61: =IF(I61=1,"Red",IF(I61=2,"Yellow",IF(I61=3,"Green"))) -> Green | K61: =N61 -> 5 | L61: =O61 -> 9 | M61: 3 | N61: 5 | O61: 9
F62: Warm Weather - Combined Mode | G62: Electricity Use | H62: ='Driving Experience Input'!G17 -> 0 | I62: 3 | J62: Green | K62: =P62 -> 10 | L62: =Q62 -> 20 | M62: 3 | P62: 10 | Q62: 20
H63: Sum | I63: =SUM(I59:I62) -> 6 | M63: =SUM(M61:M62) -> 6
H64: Score | I64: =ROUND(I63/M63*M64,0) -> 3 | J64: =IF(I64=1,"Red",IF(I64=2,"Yellow",IF(I64=3,"Green"))) -> Green | M64: 3
H66: Total Section Score | I66: =ROUND((I31+I38+I49+I56+I64)/(M31+M38+M49+M56+M64)*3,0) -> 3 | J66: =IF(I66=1,"Red",IF(I66=2,"Yellow",IF(I66=3,"Green"))) -> Green
C70: Driving Range | D70: BEV | H70: km | K70: Applicable thresholds | M70: Maximum Score
H71: value | I71: score | J71: grade | K71: lower | L71: upper
F73: Warm Weather | G73: urban | H73: ='Driving Experience Input'!F22 ->  | I73: =IF(H73<K73,1,IF(H73<L73,2,3)) ->  | J73: =IF(I73=1,"Red",IF(I73=2,"Yellow",IF(I73=3,"Green"))) ->  | K73: 345 | L73: 500 | M73: 3
G74: rural | H74: ='Driving Experience Input'!G22 ->  | I74: =IF(H74<K74,1,IF(H74<L74,2,3)) ->  | J74: =IF(I74=1,"Red",IF(I74=2,"Yellow",IF(I74=3,"Green"))) ->  | K74: 320 | L74: 480 | M74: 3
G75: highway | H75: ='Driving Experience Input'!H22 ->  | K75: 280 | L75: 425 | M75: 3
G76: mixed | H76: ='Driving Experience Input'!I22 ->  | K76: 320 | L76: 485 | M76: 3
H77: Sum | I77: =SUM(I73:I76) ->  | M77: =SUM(M73:M76) -> 12
H78: Score | I78: =ROUND(I77/M77*M78,0) ->  | J78: =IF(I78=1,"Red",IF(I78=2,"Yellow",IF(I78=3,"Green"))) ->  | M78: 3
F80: Cold Winter | G80: urban | H80: ='Driving Experience Input'!F23 ->  | I80: =IF(H80<K80,1,IF(H80<L80,2,3)) ->  | J80: =IF(I80=1,"Red",IF(I80=2,"Yellow",IF(I80=3,"Green"))) ->  | K80: 190 | L80: 315 | M80: 3
G81: rural | H81: ='Driving Experience Input'!G23 ->  | I81: =IF(H81<K81,1,IF(H81<L81,2,3)) ->  | J81: =IF(I81=1,"Red",IF(I81=2,"Yellow",IF(I81=3,"Green"))) ->  | K81: 240 | L81: 365 | M81: 3
G82: highway | H82: ='Driving Experience Input'!H23 ->  | K82: 200 | L82: 315 | M82: 3
G83: mixed | H83: ='Driving Experience Input'!I23 ->  | K83: 210 | L83: 330 | M83: 3
H84: Sum | I84: =SUM(I80:I83) ->  | M84: =SUM(M80:M83) -> 12
H85: Score | I85: =ROUND(I84/M84*M85,0) ->  | J85: =IF(I85=1,"Red",IF(I85=2,"Yellow",IF(I85=3,"Green"))) ->  | M85: 3
H87: Total Section Score | I87: =ROUND((I85+I78)/(M78+M85)*3,0) ->  | J87: =IF(I87=1,"Red",IF(I87=2,"Yellow",IF(I87=3,"Green"))) -> 
D91: PHEV | H91: km | K91: Applicable thresholds | M91: Maximum Score
H92: value | I92: score | J92: grade | K92: lower | L92: upper
F94: Warm Weather | G94: Pure El. Range | H94: ='Driving Experience Input'!F28 -> 0 | I94: =IF(H94<=K94,3,IF(H94<=L94,2,1)) -> 3 | J94: =IF(I94=1,"Red",IF(I94=2,"Yellow",IF(I94=3,"Green"))) -> Green | K94: 20 | L94: 70 | M94: 3
F95: Warm Weather | G95: EAER | H95: ='Driving Experience Input'!G28 -> 0 | I95: 3 | J95: Green | K95: 20 | L95: 70 | M95: 3
F96: Cold Winter | G96: Pure El. Range | H96: ='Driving Experience Input'!F29 -> 0 | I96: 3 | J96: Green | K96: 5 | L96: 15 | M96: 3
F97: - | G97: - | H97: - | I97: - | J97: - | K97: - | L97: - | M97: -
H98: Sum | I98: =SUM(I94:I96) -> 9 | M98: =SUM(M94:M96) -> 9
H99: Score | I99: =ROUND(I98/M98*M99,0) -> 3 | J99: =IF(I99=1,"Red",IF(I99=2,"Yellow",IF(I99=3,"Green"))) -> Green | M99: 3
H101: Total Section Score | I101: =I99 -> 3 | J101: =J99 -> Green
C105: Accuracy of Display | D105: BEV, HEV | J105: thresholds positive deviation | L105: thresholds negative deviation | N105: Maximum Score
D106: ICE, PHEV | F106: Deviation Fuel Consumption | G106: Value | H106: score | I106: grade | J106: lower | K106: upper | L106: lower | M106: upper
C107: gas vehicles not yet considered | F107: l/100km
C108: score formula not for PHEV | F108: WLTC+ Warm | G108: =IF(AND('Driving Experience Input'!F36=0,'Driving Experience Input'!H36=0),,IF(AND('Driving Experience Input'!F36<>0,'Driving Experience Input'!H36<>0),('Driving Experience Input'!F36-'Driving Experience Input'!H36),)) -> 0 | H108: =IF(G108=0,"",IF(AND(G108>=0,G108<=J108),3,IF(AND(G108>=0,G108>J108,G108<K108),2,IF(AND(G108>=0,G108>=K108),1,IF(AND(G108<=0,ABS(G108)<=L108),3,IF(AND(G108<=0,ABS(G108)>L108,ABS(G108)<M108),2,IF(AND(G108<=0,ABS(G108)>=M108),1,""))))))) ->  | I108: =IF(G108=0,"",IF(H108=1,"Red",IF(H108=2,"Yellow",IF(H108=3,"Green")))) ->  | J108: 0.5 | K108: 1 | L108: =2*J108 -> 1 | M108: =2*K108 -> 2 | N108: 3
F109: WLTC+ CAT Cold (-7°C) | G109: =IF(AND('Driving Experience Input'!F37=0,'Driving Experience Input'!H37=0),,IF(AND('Driving Experience Input'!F37<>0,'Driving Experience Input'!H37<>0),('Driving Experience Input'!F37-'Driving Experience Input'!H37),)) -> 0 | H109: =IF(G109=0,"",IF(AND(G109>=0,G109<=J109),3,IF(AND(G109>=0,G109>J109,G109<K109),2,IF(AND(G109>=0,G109>=K109),1,IF(AND(G109<=0,ABS(G109)<=L109),3,IF(AND(G109<=0,ABS(G109)>L109,ABS(G109)<M109),2,IF(AND(G109<=0,ABS(G109)>=M109),1,""))))))) ->  | J109: 0.5 | K109: 1 | L109: =2*J109 -> 1 | M109: =2*K109 -> 2 | N109: 3
F110: WLTC+ CAT Warm (-7°C) | G110: =IF(AND('Driving Experience Input'!F38=0,'Driving Experience Input'!H38=0),,IF(AND('Driving Experience Input'!F38<>0,'Driving Experience Input'!H38<>0),('Driving Experience Input'!F38-'Driving Experience Input'!H38),)) -> 0 | I110: =IF(G110=0,"",IF(H110=1,"Red",IF(H110=2,"Yellow",IF(H110=3,"Green")))) ->  | J110: 0.5 | K110: 1 | L110: 1 | M110: 2 | N110: 3
F111: BAB130 Motorway | G111: =IF(AND('Driving Experience Input'!F39=0,'Driving Experience Input'!H39=0),,IF(AND('Driving Experience Input'!F39<>0,'Driving Experience Input'!H39<>0),('Driving Experience Input'!F39-'Driving Experience Input'!H39),)) -> 0 | I111: =IF(G111=0,"",IF(H111=1,"Red",IF(H111=2,"Yellow",IF(H111=3,"Green")))) ->  | J111: 0.5 | K111: 1 | L111: 1 | M111: 2 | N111: 3
F112: On-Road Drive | G112: =IF(AND('Driving Experience Input'!F40=0,'Driving Experience Input'!H40=0),,IF(AND('Driving Experience Input'!F40<>0,'Driving Experience Input'!H40<>0),('Driving Experience Input'!F40-'Driving Experience Input'!H40),)) -> 0 | J112: 0.5 | K112: 1 | L112: 1 | M112: 2 | N112: 3
F113: PHEV: WLTC+ Cold CD Sequence | N113: 3
F114: PHEV: WLTC+ CAT Cold (-7°C) CD | N114: 3
F115: PHEV: On-Road Drive CD | N115: 3
J118: thresholds positive deviation | L118: thresholds negative deviation | N118: Maximum Score
F119: Deviation Electricity Use | G119: Value | H119: score | I119: grade | J119: lower | K119: upper | L119: lower | M119: upper
F120: kWh/100km
F121: WLTC+ Warm | G121: =IF(AND('Driving Experience Input'!G36=0,'Driving Experience Input'!I36=0),,IF(AND('Driving Experience Input'!G36<>0,'Driving Experience Input'!I36<>0),('Driving Experience Input'!G36-'Driving Experience Input'!I36),)) -> 0 | H121: =IF(G121=0,"",IF(AND(G121>=0,G121<=J121),3,IF(AND(G121>=0,G121>J121,G121<K121),2,IF(AND(G121>=0,G121>=K121),1,IF(AND(G121<=0,ABS(G121)<=L121),3,IF(AND(G121<=0,ABS(G121)>L121,ABS(G121)<M121),2,IF(AND(G121<=0,ABS(G121)>=M121),1,""))))))) ->  | I121: =IF(G121=0,"",IF(H121=1,"Red",IF(H121=2,"Yellow",IF(H121=3,"Green")))) ->  | J121: 0.5 | K121: 1 | L121: =2*J121 -> 1 | M121: =2*K121 -> 2 | N121: 3
F122: WLTC+ CAT Cold (-7°C) | G122: =IF(AND('Driving Experience Input'!G37=0,'Driving Experience Input'!I37=0),,IF(AND('Driving Experience Input'!G37<>0,'Driving Experience Input'!I37<>0),('Driving Experience Input'!G37-'Driving Experience Input'!I37),)) -> 0 | H122: =IF(G122=0,"",IF(AND(G122>=0,G122<=J122),3,IF(AND(G122>=0,G122>J122,G122<K122),2,IF(AND(G122>=0,G122>=K122),1,IF(AND(G122<=0,ABS(G122)<=L122),3,IF(AND(G122<=0,ABS(G122)>L122,ABS(G122)<M122),2,IF(AND(G122<=0,ABS(G122)>=M122),1,""))))))) ->  | J122: 0.5 | K122: 1 | L122: =2*J122 -> 1 | M122: =2*K122 -> 2 | N122: 3
F123: WLTC+ CAT Warm (-7°C) | G123: =IF(AND('Driving Experience Input'!G38=0,'Driving Experience Input'!I38=0),,IF(AND('Driving Experience Input'!G38<>0,'Driving Experience Input'!I38<>0),('Driving Experience Input'!G38-'Driving Experience Input'!I38),)) -> 0 | I123: =IF(G123=0,"",IF(H123=1,"Red",IF(H123=2,"Yellow",IF(H123=3,"Green")))) ->  | J123: 0.5 | K123: 1 | L123: 1 | M123: 2 | N123: 3
F124: BAB130 Motorway | G124: =IF(AND('Driving Experience Input'!G39=0,'Driving Experience Input'!I39=0),,IF(AND('Driving Experience Input'!G39<>0,'Driving Experience Input'!I39<>0),('Driving Experience Input'!G39-'Driving Experience Input'!I39),)) -> 0 | I124: =IF(G124=0,"",IF(H124=1,"Red",IF(H124=2,"Yellow",IF(H124=3,"Green")))) ->  | J124: 0.5 | K124: 1 | L124: 1 | M124: 2 | N124: 3
F125: On-Road Drive | G125: =IF(AND('Driving Experience Input'!G40=0,'Driving Experience Input'!I40=0),,IF(AND('Driving Experience Input'!G40<>0,'Driving Experience Input'!I40<>0),('Driving Experience Input'!G40-'Driving Experience Input'!I40),)) -> 0 | J125: 0.5 | K125: 1 | L125: 1 | M125: 2 | N125: 3
F126: PHEV: WLTC+ Cold CD Sequence | N126: 3
F127: PHEV: WLTC+ CAT Cold (-7°C) CD | N127: 3
F128: PHEV: On-Road Drive CD | N128: 3
G130: avg deviation | H130: score | I130: grade | L130: Maximum Score
F131: AVG Score Fuel Consumption [l/100km] | G131: =ROUND(AVERAGEIF(G108:G112,"<>0"),2) ->  | H131: =ROUND(AVERAGE(H108:H112),0) ->  | I131: =IF(H131=1,"Red",IF(H131=2,"Yellow",IF(H131=3,"Green"))) ->  | L131: 3
F132: AVG Score Electricity Use [kWh/100km] | G132: =ROUND(AVERAGEIF(G121:G125,"<>0"),2) ->  | H132: =ROUND(AVERAGE(H121:H125),0) ->  | I132: =IF(H132=1,"Red",IF(H132=2,"Yellow",IF(H132=3,"Green"))) ->  | L132: 3
G134: Score | H134: =IF(OR(Petrol, Diesel,E_85),H131,IF(Electric,H132,"??")) ->  | I134: =IF(H134<=1,"Red",IF(AND(1<H134,H134<=2),"Yellow",IF(AND(2<H134,H134<=3),"Green"))) ->  | L134: 3
G136: Total Section Score | H136: =H134 ->  | I136: =I134 -> 
A139: Cold Winter Performance | B139: Total Score
B140: =IF(Electric,ROUND((I148+I164+I179)/(M146+M162+M175)*3,0),IF(AND(OR(Petrol,Diesel,E_85),SPECS!M11=TRUE),ROUND((I164+I179)/(M162+M175)*3,0),)) -> 2 | C140: Driving Range Benefit of Pre-Warming | D140: BEV | H140: km | K140: Applicable thresholds | M140: Maximum Score
B141: =IF(AND(OR(Petrol,Diesel,E_85),SPECS!M11=FALSE),"Not Applicable",IF(B140<=1,"Poor",IF(B140<=2,"Adequate",IF(B140<=3,"Good","")))) -> Adequate | H141: value | I141: score | J141: grade | K141: lower | L141: upper
B142: =IF(B141="Good","Green",IF(B141="Adequate","Yellow",IF(B141="Poor","Red",IF(B141="Not Applicable","Grey",)))) -> Yellow
F143: Diference CAT Warm to CAT Cold | G143: Urban Trip | H143: ='Driving Experience Input'!F48 -> 0 | I143: =IF(H143<=K143,1,IF(H143<=L143,2,3)) -> 1 | J143: =IF(I143=1,"Red",IF(I143=2,"Yellow",IF(I143=3,"Green"))) -> Red | K143: 80 | L143: 130 | M143: 3
F144: Diference CAT Warm to CAT Cold | G144: Mixed Trip | H144: ='Driving Experience Input'!F49 -> 0 | I144: =IF(H144<=K144,1,IF(H144<=L144,2,3)) -> 1 | J144: =IF(I144=1,"Red",IF(I144=2,"Yellow",IF(I144=3,"Green"))) -> Red | K144: 50 | L144: 80 | M144: 3
H145: Sum | I145: =SUM(I143:I144) -> 2 | M145: =SUM(M143:M144) -> 6
H146: Score | I146: =ROUND(I145/M145*M146,0) -> 1 | J146: =IF(I146=1,"Red",IF(I146=2,"Yellow",IF(I146=3,"Green"))) -> Red | M146: 3
H148: Total Section Score | I148: =I146 -> 1 | J148: =J146 -> Red
C151: Cabin Heating | D151: HEV, BEV, PHEV | F151: Time to reach 16°C [s] | H151: time [s] | K151: Applicable thresholds | M151: Maximum Score
H152: value | I152: score | J152: grade | K152: lower | L152: upper | M152: for Temperature
G154: Front Right Head Area | H154: ='Driving Experience Input'!F53 -> 0 | I154: =IF(H154<=K154,3,IF(H154<=L154,2,1)) -> 3 | J154: =IF(I154=1,"Red",IF(I154=2,"Yellow",IF(I154=3,"Green"))) -> Green | K154: 300 | L154: 480 | M154: 3
G155: Front Right Footwell | H155: ='Driving Experience Input'!F54 -> 0 | I155: =IF(H155<=K155,3,IF(H155<=L155,2,1)) -> 3 | J155: =IF(I155=1,"Red",IF(I155=2,"Yellow",IF(I155=3,"Green"))) -> Green | K155: 300 | L155: 480 | M155: 3
G156: Rear Head Area | H156: ='Driving Experience Input'!G53 -> 0 | I156: 3 | J156: Green | K156: 420 | L156: 600 | M156: 3
G157: Front Left Head Area | H157: =H154 -> 0 | I157: 3 | J157: Green | K157: =K154 -> 300 | L157: =L154 -> 480 | M157: 3
G158: Front Left Footwell | H158: =H155 -> 0 | I158: 3 | J158: Green | K158: =K155 -> 300 | L158: =L155 -> 480 | M158: 3
G159: Rear Left Footwell | H159: ='Driving Experience Input'!G54 -> 0
G160: Rear Right Footwell | H160: ='Driving Experience Input'!H54 -> 0
H161: Sum | I161: =SUM(I154:I158) -> 15 | M161: =SUM(M154:M158) -> 15
H162: Score | I162: =ROUND(I161/M161*M162,0) -> 3 | J162: =IF(I162=1,"Red",IF(I162=2,"Yellow",IF(I162=3,"Green"))) -> Green | M162: 3
H164: Total Section Score | I164: =I162 -> 3 | J164: =J162 -> Green
C168: Additional Heating Functions | D168: HEV, BEV, PHEV | F168: Only Checkboxes for additional consumer info, no assessment. See sheet "Driving Experience Input".
C172: Cabin Thermal Insulation | D172: HEV, BEV, PHEV | H172: time [s] | K172: Applicable thresholds | M172: Maximum Score
H173: value | I173: score | J173: grade | K173: lower | L173: upper
F174: Temperature drop after 30 min at -7°C
G175: Temperature drop | H175: ='Driving Experience Input'!I76 -> 18 | I175: =IF(H175<=K175,3,IF(H175<=L175,2,1)) -> 1 | J175: =IF(I175=1,"Red",IF(I175=2,"Yellow",IF(I175=3,"Green"))) -> Red | K175: 5.5 | L175: 9 | M175: 3
H177: Score | I177: =I175 -> 1 | J177: =IF(I177=1,"Red",IF(I177=2,"Yellow",IF(I177=3,"Green"))) -> Red
H179: Total Section Score | I179: =I177 -> 1 | J179: =J177 -> Red
A181: Charging Capability | B181: Total Score
B182: =IF(Electric,ROUND((I192+I203+I216)/(M188+M199+K214)*3,0),) -> 1 | C182: Pre-Charge Battery Conditioning | D182: BEV | F182: Only Checkboxes for additional consumer info, no assessment. See sheet "Driving Experience Input".
B183: =IF(Electric,IF(B182<=1,"Poor",IF(B182<=2,"Adequate",IF(B182<=3,"Good"))),"Not Applicable") -> Poor
B184: =IF(B183="Good","Green",IF(B183="Adequate","Yellow",IF(B183="Poor","Red",IF(B183="Not Applicable","Grey",)))) -> Red
C185: Fast Charging Performance | D185: BEV | H185: percentage/min | K185: Applicable thresholds | M185: Maximum Score
H186: value | I186: score | J186: grade | K186: lower | L186: upper
F187: Average Battery % charged per minute
G188: batt%/minute | H188: ='Driving Experience Input'!F87 -> 0 | I188: =IF(H188<=K188,1,IF(H188<=L188,2,3)) -> 1 | J188: =IF(I188=1,"Red",IF(I188=2,"Yellow",IF(I188=3,"Green"))) -> Red | K188: 2 | L188: 2.8 | M188: 3
H190: Score | I190: =I188 -> 1 | J190: =IF(I190=1,"Red",IF(I190=2,"Yellow",IF(I190=3,"Green"))) -> Red
H192: Total Section Score | I192: =I190 -> 1 | J192: =IF(I192<=1,"Red",IF(AND(1<I192,I192<=2),"Yellow",IF(AND(2<I192,I192<=3),"Green"))) -> Red
C196: Home Charging Efficiency | D196: BEV | F196: Grid-to-battery-output efficiency in home charging | H196: percentage | K196: Applicable thresholds | M196: Maximum Score
H197: value | I197: score | J197: grade | K197: lower | L197: upper
G199: Efficiency | H199: ='Driving Experience Input'!F95 -> 0 | I199: =IF(H199<=K199,1,IF(H199<=L199,2,3)) -> 1 | J199: =IF(I199=1,"Red",IF(I199=2,"Yellow",IF(I199=3,"Green"))) -> Red | K199: 0.85 | L199: 0.9 | M199: 3
H201: Score | I201: =I199 -> 1 | J201: =IF(I201=1,"Red",IF(I201=2,"Yellow",IF(I201=3,"Green"))) -> Red
H203: Total Section Score | I203: =I201 -> 1 | J203: =J201 -> Red
C207: Bidirectional Charging | D207: BEV
H208: value | I208: score | J208: grade | K208: Maximum Score | L208: Applicable thresholds
L209: lower | M209: upper
G210: Power Output [kW] | H210: ='Driving Experience Input'!F102 -> 0 | I210: =IF(H210<=L210,1,IF(H210<=M210,2,3)) -> 1 | J210: =IF(I210=1,"Red",IF(I210=2,"Yellow",IF(I210=3,"Green"))) -> Red | K210: 3 | L210: 3 | M210: 7.4
G211: Compatibility | H211: ='Driving Experience Input'!F103 -> 0 | I211: =IF(H211=L211,2,IF(H211=M211,2,IF(H211=N211,3,1))) -> 1 | J211: =IF(I211=1,"Red",IF(I211=2,"Yellow",IF(I211=3,"Green"))) -> Red | K211: 3 | L211: ='Driving Experience Input'!J103 -> V2L | M211: ='Driving Experience Input'!J104 -> V2H | N211: ='Driving Experience Input'!J105 -> V2G
G212: Grid Integration | H212: ='Driving Experience Input'!F104 -> 0 | I212: =IF(H212=L212,1,IF(H212=M212,2,IF(H212=N212,3,1))) -> 1 | J212: =IF(I212=1,"Red",IF(I212=2,"Yellow",IF(I212=3,"Green"))) -> Red | K212: 3 | L212: ='Driving Experience Input'!J107 -> Basic | M212: ='Driving Experience Input'!J108 -> Limited | N212: ='Driving Experience Input'!J109 -> Advanced
H213: Sum | I213: =SUM(I210:I212) -> 3 | K213: =SUM(K210:K212) -> 9
H214: Score | I214: =ROUND(I213/K213*K214,0) -> 1 | J214: Red | K214: 3
H216: Total Section Score | I216: =I214 -> 1 | J216: =J214 -> Red

Sheet LIMITS Clean Air
A2: Clean Air (Pollutants)
S3: Upstream LCA Factors (W-t-T) mg/kWh | X3: Energy Source
B4: Upper Thresholds (labtests w/o WLTC+ CAT (-7°C)) | D4: gross excess | F4: Upper Thresholds (On-Road Drive) | H4: gross excess | J4: Upper Thresholds WLTC+ CAT (-7°C) (extended bouderies) | L4: gross excess | N4: Congestion Simulation Upper Thresholds | S4: Petrol E10 | T4: Diesel B7 | U4: Electric EU27 | V4: Hydrogen natural gas | W4: Petrol E85 | X4: =IF(Petrol,"Petrol",IF(Diesel,"Diesel",IF(Electric,"Electric",IF(Hydrogen,"Hydrogen",IF(E_85,"Ethanol E85"))))) -> Electric
O5: Max | P5: Average | R5: NMHC | S5: 145 | T5: 153 | U5: 32.62427588 | V5: 189.9010457 | W5: 83 | X5: =IF(Petrol,S5,IF(Diesel,T5,IF(Electric,U5,""))) -> 32.62427588
B6: NMHC | C6: 68 | D6: =1.5*C6 -> 102 | F6: NMHC | G6: =C6*$H$14 -> 89.76 | H6: =1.5*G6 -> 134.64 | J6: NMHC | K6: =C6*$L$14 -> 89.76 | L6: =1.5*K6 -> 134.64 | O6: mg/s | P6: mg/s | R6: NOx | S6: 216 | T6: 207 | U6: 305.9162192 | V6: 131 | W6: 363 | X6: 305.9162192
B7: NOx | C7: 60 | D7: =1.5*C7 -> 90 | F7: NOx | G7: 79.2 | H7: =1.5*G7 -> 118.8 | J7: NOx | K7: 79.2 | L7: =1.5*K7 -> 118.8 | N7: NOx | O7: 1 | P7: 0.5 | R7: NO2
B8: NO2 | C8: 20 | D8: =1.5*C8 -> 30 | F8: NO2 | G8: 26.4 | H8: 39.6 | J8: NO2 | K8: 26.4 | L8: 39.6 | R8: NH3 | S8: 46 | T8: 32 | U8: 2.078363833 | V8: 2.699884393 | W8: 510 | X8: 2.078363833
B9: NH3 | C9: 10 | D9: 15 | F9: NH3 | G9: 13.2 | H9: 19.8 | J9: NH3 | K9: 13.2 | L9: 19.8 | R9: CO | S9: 131 | T9: 120 | U9: 135.3181133 | V9: 92.89515954 | W9: 312 | X9: 135.3181133
B10: CO | C10: 500 | D10: 750 | F10: CO | G10: 660 | H10: 990 | J10: CO | K10: 660 | L10: 990 | R10: PM2.5 | S10: 382 | T10: 379.3751478 | U10: 383.4617401 | V10: 99.38059649 | W10: 146 | X10: 383.4617401
B11: PM | C11: 4.5 | D11: 6.75 | F11: PM | G11: 5.94 | H11: 8.91 | J11: PM | K11: 5.94 | L11: 8.91 | R11: PN
B12: PN10/23 | C12: 600000000000 | D12: 6000000000000 | F12: PN10/23 | G12: 792000000000 | H12: 1188000000000 | J12: PN10/23 | K12: 792000000000 | L12: 1188000000000 | R12: SOx | S12: 397 | T12: 392 | U12: 188.0194025 | V12: 43.29855842 | W12: 209 | X12: =IF(Petrol,S12,IF(Diesel,T12,IF(Electric,U12,""))) -> 188.0194025
B13: log10 (PN10/23) = | C13: =LOG10(C12) -> 11.77815125 | D13: =LOG10(D12) -> 12.77815125 | F13: log10 (PN10/23) = | G13: =LOG10(G12) -> 11.89872518 | H13: =LOG10(H12) -> 12.07481644 | J13: log10 (PN10/23) = | K13: =LOG10(K12) -> 11.89872518 | L13: =LOG10(L12) -> 12.07481644
G14: CF: | H14: 1.32 | K14: CF: | L14: 1.32
B18: Lower Thresholds | F18: Lower Thresholds | J18: Lower Thresholds | N18: Friction brake share WLTC+ Warm
B20: NMHC | C20: 0.5 | F20: NMHC | G20: =C20 -> 0.5 | J20: NMHC | K20: =G20 -> 0.5 | N20: Fixed factors
B21: NOx | C21: 0.5 | F21: NOx | G21: 0.5 | J21: NOx | K21: 0.5 | N21: Conventional vehicles | P21: 100
B22: NO2 | C22: 0 | F22: NO2 | G22: 0 | J22: NO2 | K22: 0 | N22: HEV <=20 V | P22: 90
B23: NH3 | C23: 0.1 | F23: NH3 | G23: 0.1 | J23: NH3 | K23: 0.1 | N23: HEV <=60 V | P23: 72
B24: CO | C24: 5 | F24: CO | G24: 5 | J24: CO | K24: 5 | N24: HEV | P24: 52
B25: PM | C25: 0 | F25: PM | G25: 0 | J25: PM | K25: 0 | N25: PHEV | P25: 34
B26: PN10/23 | C26: 100000000 | F26: PN10/23 | G26: 100000000 | J26: PN10/23 | K26: 100000000 | N26: Measured values
B27: log10 (PN23) = | C27: =LOG10(C26) -> 8 | F27: log10 (PN23) = | G27: =LOG10(G26) -> 8 | J27: log10 (PN23) = | K27: =LOG10(K26) -> 8 | N27: PEV
E102: =SI(ET(MOYENNE(E102,Efficiency!F29,Greenhouse!F93)>='LIMITS Clean Air'!P19,(MIN(Greenhouse!F93,Efficiency!F29,'Clean Air'!E102)>='LIMITS Clean 'LIMITS Clean Air'!P19Air'!P23)),"YES","NO")

Sheet LIMITS Efficiency
B2: Energy Efficiency
B4: Fuel / Energy Consumption Conversion Factors
B5: Multiplication liquid fuel (l/100km) or gaseous fuel (kg/100km) --> energy (kWh/100km) | G5: LCA Upstream Factors (W-t-W) (kWh/kWh) | I5: Relevant here
B6: Energy Carrier | C6: Factor (default) | G6: =B7 -> Petrol E10 | H6: 1.35 | I6: =IF(Petrol,H6,IF(Diesel,H7,IF(Electric,H9,IF(E_85,H11,IF(Hydrogen,H10,IF(CNG_Mono,H8)))))) -> 2.1216
B7: Petrol E10 | C7: 8.64 | G7: Diesel B7 | H7: 1.27
B8: Diesel B7 | C8: 9.79 | G8: CNG | H8: 1.16
B9: CNG | C9: 13.8925 | G9: Electric | H9: =2.08*1.02 -> 2.1216
B10: Electric | C10: 1 | G10: Hydrogene | H10: 1.78
B11: Hydrogene | C11: 33.61 | G11: Ethanol E85 | H11: 2.29
B12: Ethanol E85 | C12: 6.41
B15: Driving Resistance Thresholds
C16: Unit | D16: Lower | E16: Upper
B17: Avg F@25 kph | C17: N | D17: 100 | E17: 200

Sheet LIMITS Greenhouse
B2: Greenhouse gases
B4: GWP
B5: 298 | C5: N2O
B6: 34 | C6: CH4
B7: 1 | C7: CO2
B9: CO2-eq upstream factor (W-t-T)
B10: kWh/100km > gCO2-eq./km
B11: Petrol E10 | D11: 0.855
B12: Diesel B7 | D12: 0.659
B13: Electricity EU27 | C13: NO2 | D13: =2.082*1.02 -> 2.12364
B14: CNG | D14: 0.438
B15: Hydrogen (nat. gas) | D15: 3.53
B16: Ethanol E85 | D16: 1.655
B18: Upstream CO2 reduction factor due to neutral bio-fuel share combustion carbon balance
B20: -
B21: Petrol E10 | D21: 0.931
B22: Diesel B7 | D22: 0.935
B23: Ethanol E85 | D23: 0.214
B25: Assumed Lifetime Mileage [km]: | C25: 240000

Sheet WEBSITE SUMMARY
A1: Car Model | B1: =CONCATENATE(SPECS!B1," ",SPECS!B2) ->  | D1: Type
A2: Type | B2: =SPECS!B3 -> 0 | H2: Keep for child
A3: Country of Manufacturing | B3: =IF(SPECS!B6=0,"",SPECS!B6) -> Europe | C3: New 2025 | E3: will overwrite manual input in dashboard! | H3: Keep for child
A4: Start of Production | B4: =IF(SPECS!B42="","",SPECS!B42) ->  | C4: New 2301 | D4: empty or date: DD/MM/YYYY | E4: currently not in use
A5: End of Production | B5: =IF(SPECS!B43<=SPECS!B42,"",IF(SPECS!B43="","",SPECS!B43)) ->  | C5: New 2301 | D5: empty or date: DD/MM/YYYY | E5: currently not in use
A6: Engine | B6: =SPECS!B8 -> Electric | H6: Take from basemodel
A7: Gearbox | B7: =SPECS!B26 -> 0 | H7: Take from basemodel
A8: Number of Doors | B8: =SPECS!B28 -> 0 | C8: New 2301 | D8: Number - no decimals | H8: obsolete if child
A9: Emissions Class | B9: =SPECS!B30 -> 0 | H9: Take from basemodel
A10: Stars | B10: =Stars -> 5 | H10: Take from basemodel
A11: Test # | B11: =SPECS!B4 -> 0
A12: Engine Size 2 | B12: =SPECS!B32 -> 0 | H12: Take from basemodel
A13: Mass | B13: =SPECS!B41 -> 0 | H13: obsolete if child
A14: Clean Air Index | B14: =ROUND('Clean Air'!Q134,1) -> 8.5 | H14: Take from basemodel
A15: CA Exhaust Emissions - Score | B15: =ROUND('Clean Air'!O119,1) -> 10 | C15: New 2025 | D15: Number - 1 decimal place | H15: obsolete if child
A16: CA Exhaust Emissions - Colour | B16: =Colour_Local('Clean Air'!O119,B15) -> Green | C16: New 2025 | D16: Brown - Green - Orange - Red - Yellow | H16: obsolete if child
A17: Clean Air Lab Tests - Overall Performance | B17: =Colour_Local(SUM('Clean Air'!J26,'Clean Air'!J35,'Clean Air'!J44,'Clean Air'!J52,'Clean Air'!J62),B18) -> Green | H17: obsolete if child
A18: Clean Air Lab Tests - Overall Performance - Score | B18: =ROUND(SUM('Clean Air'!J26,'Clean Air'!J35,'Clean Air'!J44,'Clean Air'!J52,'Clean Air'!J62)/SUM('Clean Air'!M26,'Clean Air'!M35,'Clean Air'!M44,'Clean Air'!M52,'Clean Air'!M62)*10,1) -> 10 | C18: New 2025 | D18: Number - 1 decimal place | H18: obsolete if child
A19: CA Legal Test - Score | B19: =ROUND('Clean Air'!J26,1) -> 8 | C19: New 2025 | D19: Number - 1 decimal place | H19: obsolete if child
A20: CA Legal Test - NMHC Colour | B20: Grey | C20: New 2025 | D20: Brown - Green - Orange - Red - Yellow - Grey | H20: obsolete if child
A21: CA Legal Test - NOx Colour | B21: =Colour_Local('Clean Air'!J20,'Clean Air'!M20) -> Green | C21: New 2025 | D21: Brown - Green - Orange - Red - Yellow | H21: obsolete if child
A22: CA Legal Test - NH3 Colour | B22: Grey | C22: New 2025 | D22: Brown - Green - Orange - Red - Yellow | H22: obsolete if child
A23: CA Legal Test - CO Colour | B23: =Colour_Local('Clean Air'!J22,'Clean Air'!M22) -> Green | C23: New 2025 | D23: Brown - Green - Orange - Red - Yellow | H23: obsolete if child
A24: CA Legal Test - PN Colour | B24: Grey | C24: New 2025 | D24: Brown - Green - Orange - Red - Yellow - Grey | H24: obsolete if child
A25: CA Legal Test - PM Colour | B25: =Colour_Local('Clean Air'!J23,'Clean Air'!M23) -> Green | C25: New 2025 | D25: Brown - Green - Orange - Red - Yellow | H25: obsolete if child
A26: CA Warm Weather - Score | B26: =ROUND('Clean Air'!J35,1) -> 10 | C26: New 2025 | D26: Number - 1 decimal place | H26: obsolete if child
A27: CA Warm Weather - NMHC Colour | B27: =Colour_Local('Clean Air'!J28,'Clean Air'!M28) -> Green | C27: New 2025 | D27: Brown - Green - Orange - Red - Yellow | H27: obsolete if child
A28: CA Warm Weather - NOx Colour | B28: =Colour_Local('Clean Air'!J29,'Clean Air'!M29) -> Green | C28: New 2025 | D28: Brown - Green - Orange - Red - Yellow | H28: obsolete if child
A29: CA Warm Weather - NH3 Colour | B29: =Colour_Local('Clean Air'!J30,'Clean Air'!M30) -> Green | C29: New 2025 | D29: Brown - Green - Orange - Red - Yellow | H29: obsolete if child
A30: CA Warm Weather - CO Colour | B30: =Colour_Local('Clean Air'!J31,'Clean Air'!M31) -> Green | C30: New 2025 | D30: Brown - Green - Orange - Red - Yellow | H30: obsolete if child
A31: CA Warm Weather - PN Colour | B31: =Colour_Local('Clean Air'!J33,'Clean Air'!M33) -> Green | C31: New 2025 | D31: Brown - Green - Orange - Red - Yellow | H31: obsolete if child
A32: CA Warm Weather - PM Colour | B32: =Colour_Local('Clean Air'!J32,'Clean Air'!M32) -> Green | C32: New 2025 | D32: Brown - Green - Orange - Red - Yellow | H32: obsolete if child
A33: CA Highway Test - Score | B33: =ROUND('Clean Air'!J62,1) -> 10 | H33: obsolete if child
A34: CA Highway Test - NMHC Colour | B34: =Colour_Local('Clean Air'!J55,'Clean Air'!M55) -> Green | C34: previously HC > to be renamed in dashboard | H34: obsolete if child
A35: CA Highway Test - NOx Colour | B35: =Colour_Local('Clean Air'!J56,'Clean Air'!M56) -> Green | H35: obsolete if child
A36: CA Highway Test - NH3 Colour | B36: =Colour_Local('Clean Air'!J57,'Clean Air'!M57) -> Green | D36: Brown - Green - Orange - Red - Yellow | H36: obsolete if child
A37: CA Highway Test - CO Colour | B37: =Colour_Local('Clean Air'!J58,'Clean Air'!M58) -> Green | H37: obsolete if child
A38: CA Highway Test - PN Colour | B38: =Colour_Local('Clean Air'!J60,'Clean Air'!M60) -> Green | H38: obsolete if child
A39: CA Highway Test - PM Colour | B39: =Colour_Local('Clean Air'!J59,'Clean Air'!M59) -> Green | C39: New 2025 | H39: obsolete if child
A40: CA Winter Cold Start - Score | B40: =ROUND('Clean Air'!J44,1) -> 10 | C40: New 2025 | D40: Number - 1 decimal place | H40: obsolete if child
A41: CA Winter Cold Start - NMHC Colour | B41: =Colour_Local('Clean Air'!J37,'Clean Air'!M37) -> Green | C41: New 2025 | D41: Brown - Green - Orange - Red - Yellow | H41: obsolete if child
A42: CA Winter Cold Start - NOx Colour | B42: =Colour_Local('Clean Air'!J38,'Clean Air'!M38) -> Green | C42: New 2025 | D42: Brown - Green - Orange - Red - Yellow | H42: obsolete if child
A43: CA Winter Cold Start - NH3 Colour | B43: =Colour_Local('Clean Air'!J39,'Clean Air'!M39) -> Green | C43: New 2025 | D43: Brown - Green - Orange - Red - Yellow | H43: obsolete if child
A44: CA Winter Cold Start - CO Colour | B44: =Colour_Local('Clean Air'!J40,'Clean Air'!M40) -> Green | C44: New 2025 | D44: Brown - Green - Orange - Red - Yellow | H44: obsolete if child
A45: CA Winter Cold Start - PN Colour | B45: =Colour_Local('Clean Air'!J42,'Clean Air'!M42) -> Green | C45: New 2025 | D45: Brown - Green - Orange - Red - Yellow | H45: obsolete if child
A46: CA Winter Cold Start - PM Colour | B46: =Colour_Local('Clean Air'!J41,'Clean Air'!M41) -> Green | C46: New 2025 | D46: Brown - Green - Orange - Red - Yellow | H46: obsolete if child
A47: CA Winter Warm Start - Score | B47: =ROUND('Clean Air'!J53,1) -> 10 | C47: New 2025 | D47: Number - 1 decimal place | H47: obsolete if child
A48: CA Winter Warm Start - NMHC Colour | B48: =Colour_Local('Clean Air'!J46,'Clean Air'!M46) -> Green | C48: New 2025 | D48: Brown - Green - Orange - Red - Yellow | H48: obsolete if child
A49: CA Winter Warm Start - NOx Colour | B49: =Colour_Local('Clean Air'!J47,'Clean Air'!M47) -> Green | C49: New 2025 | D49: Brown - Green - Orange - Red - Yellow | H49: obsolete if child
A50: CA Winter Warm Start - NH3 Colour | B50: =Colour_Local('Clean Air'!J48,'Clean Air'!M48) -> Green | C50: New 2025 | D50: Brown - Green - Orange - Red - Yellow | H50: obsolete if child
A51: CA Winter Warm Start - CO Colour | B51: =Colour_Local('Clean Air'!J49,'Clean Air'!M49) -> Green | C51: New 2025 | D51: Brown - Green - Orange - Red - Yellow | H51: obsolete if child
A52: CA Winter Warm Start - PN Colour | B52: =Colour_Local('Clean Air'!J51,'Clean Air'!M51) -> Green | C52: New 2025 | D52: Brown - Green - Orange - Red - Yellow | H52: obsolete if child
A53: CA Winter Warm Start - PM Colour | B53: =Colour_Local('Clean Air'!J50,'Clean Air'!M50) -> Green | C53: New 2025 | D53: Brown - Green - Orange - Red - Yellow | H53: obsolete if child
A54: CA Road Test - Overall Performance Colour | B54: =Colour_Local(B55,10) -> Green | D54: Brown - Green - Orange - Red - Yellow | H54: obsolete if child
A55: CA Road Test - Overall Performance Score | B55: =ROUND(SUM('Clean Air'!J69,'Clean Air'!J74,'Clean Air'!J78)/SUM('Clean Air'!M69,'Clean Air'!M74,'Clean Air'!M78)*10,1) -> 10 | C55: New 2025 | D55: Number - 1 decimal place | H55: obsolete if child
A56: CA Real World Mixed Drive - Score | B56: =ROUND('Clean Air'!J69,1) -> 10 | C56: New 2025 | D56: Number - 1 decimal place | H56: obsolete if child
A57: CA Real World Mixed Drive - NMHC Colour | B57: Grey | C57: New 2025 | D57: Brown - Green - Orange - Red - Yellow - Grey | H57: obsolete if child
A58: CA Real World Mixed Drive - NOx Colour | B58: =Colour_Local('Clean Air'!J64,'Clean Air'!M64) -> Green | C58: New 2025 | D58: Brown - Green - Orange - Red - Yellow | H58: obsolete if child
A59: CA Real World Mixed Drive - NH3 Colour | B59: Grey | C59: New 2025 | D59: Brown - Green - Orange - Red - Yellow - Grey | H59: obsolete if child
A60: CA Real World Mixed Drive - CO Colour | B60: =Colour_Local('Clean Air'!J66,'Clean Air'!M66) -> Green | C60: New 2025 | D60: Brown - Green - Orange - Red - Yellow | H60: obsolete if child
A61: CA Real World Mixed Drive - PN Colour | B61: =Colour_Local('Clean Air'!J67,'Clean Air'!M67) -> Green | C61: New 2025 | D61: Brown - Green - Orange - Red - Yellow | H61: obsolete if child
A62: CA Real World Mixed Drive - PM Colour | B62: Grey | C62: New 2025 | D62: Brown - Green - Orange - Red - Yellow - Grey | H62: obsolete if child
A63: CA Short City Trip - Score | B63: =ROUND('Clean Air'!J74,1) -> 10 | C63: New 2025 | D63: Number - 1 decimal place | H63: obsolete if child
A64: CA Short City Trip - NMHC Colour | B64: Grey | C64: New 2025 | D64: Brown - Green - Orange - Red - Yellow - Grey | H64: obsolete if child
A65: CA Short City Trip - NOx Colour | B65: =Colour_Local('Clean Air'!J71,'Clean Air'!M71) -> Green | C65: New 2025 | D65: Brown - Green - Orange - Red - Yellow | H65: obsolete if child
A66: CA Short City Trip - NH3 Colour | B66: Grey | C66: New 2025 | D66: Brown - Green - Orange - Red - Yellow - Grey | H66: obsolete if child
A67: CA Short City Trip - CO Colour | B67: =Colour_Local('Clean Air'!J72,'Clean Air'!M72) -> Green | C67: New 2025 | D67: Brown - Green - Orange - Red - Yellow | H67: obsolete if child
A68: CA Short City Trip - PN Colour | B68: =Colour_Local('Clean Air'!J73,'Clean Air'!M73) -> Green | C68: New 2025 | D68: Brown - Green - Orange - Red - Yellow | H68: obsolete if child
A69: CA Short City Trip - PM Colour | B69: Grey | C69: New 2025 | D69: Brown - Green - Orange - Red - Yellow - Grey | H69: obsolete if child
A70: CA Congestion - Score | B70: =ROUND('Clean Air'!J78,1) -> 2 | D70: Number - 1 decimal place | H70: obsolete if child
A71: CA Congestion - NMHC Colour | B71: Grey | D71: Brown - Green - Orange - Red - Yellow - Grey | H71: obsolete if child
A72: CA Congestion - NOx Colour | B72: =Colour_Local('Clean Air'!J78,'Clean Air'!M78) -> Green | D72: Brown - Green - Orange - Red - Yellow | H72: obsolete if child
A73: CA Congestion - NH3 Colour | B73: Grey | D73: Brown - Green - Orange - Red - Yellow - Grey | H73: obsolete if child
A74: CA Congestion - CO Colour | B74: Grey | D74: Brown - Green - Orange - Red - Yellow | H74: obsolete if child
A75: CA Congestion - PN Colour | B75: Grey | D75: Brown - Green - Orange - Red - Yellow | H75: obsolete if child
A76: CA Congestion - PM Colour | B76: Grey | C76: New 2025 | D76: Brown - Green - Orange - Red - Yellow - Grey | H76: obsolete if child
A77: CA Non-Exhaust Emissions - Score | B77: =ROUND('Clean Air'!O120, 1) -> 2.5 | C77: New 2025 | D77: Number - 1 decimal place | H77: obsolete if child
A78: CA Non-Exhaust Emissions - Colour | B78: =Colour_Local(B77,'Clean Air'!P120) -> Brown | C78: New 2025 | D78: Brown - Green - Orange - Red - Yellow | H78: obsolete if child
A79: CA Tyre Wear - Score | B79: =ROUND('Clean Air'!J85,1) -> 3 | C79: New 2025 | D79: Number - 1 decimal place | H79: obsolete if child
A80: CA Tyre Wear - Colour | B80: =Colour_Local(B79,'Clean Air'!M85) -> Orange | C80: New 2025 | D80: Brown - Green - Orange - Red - Yellow | H80: obsolete if child
A81: CA Mass Influence - Score | B81: =ROUND('Clean Air'!J82,1) -> 3 | C81: New 2025 | D81: Number - 1 decimal place | H81: obsolete if child
A82: CA Mass Influence - Colour | B82: =Colour_Local(B81,'Clean Air'!M82) -> Green | C82: New 2025 | D82: Brown - Green - Orange - Red - Yellow | H82: obsolete if child
A83: CA Wheel Alignment - Score | B83: =ROUND('Clean Air'!J83,1) -> 0 | C83: New 2025 | D83: Number - 1 decimal place | H83: obsolete if child
A84: CA Wheel Alignment - Colour | B84: =Colour_Local(B83,'Clean Air'!M83) -> Red | C84: New 2025 | D84: Brown - Green - Orange - Red - Yellow | H84: obsolete if child
A85: CA Accelerator Response - Score | B85: =ROUND('Clean Air'!J84,1) -> 0 | C85: New 2025 | D85: Number - 1 decimal place | H85: obsolete if child
A86: CA Accelerator Response - Colour | B86: =Colour_Local(B85,'Clean Air'!M84) -> Red | C86: New 2025 | D86: Brown - Green - Orange - Red - Yellow | H86: obsolete if child
A87: CA Brake Wear - Score | B87: =ROUND('Clean Air'!J94, 1) -> 0 | C87: New 2025 | D87: Number - 1 decimal place | H87: obsolete if child
A88: CA Brake Wear - Colour | B88: =Colour_Local(B87,'Clean Air'!M94) -> Red | C88: New 2025 | D88: Brown - Green - Orange - Red - Yellow | H88: obsolete if child
A89: CA Brake Dust Mitigation - Score | B89: =ROUND('Clean Air'!J90,1) -> 0 | C89: New 2025 | D89: Number - 1 decimal place | H89: obsolete if child
A90: CA Brake Dust Mitigation - Colour | B90: =Colour_Local(B89,'Clean Air'!M90) -> Red | C90: New 2025 | D90: Brown - Green - Orange - Red - Yellow | H90: obsolete if child
A91: CA Brake Dust Containment - Score | B91: =ROUND('Clean Air'!J91,1) -> 0 | C91: New 2025 | D91: Number - 1 decimal place | H91: obsolete if child
A92: CA Brake Dust Containment - Colour | B92: =Colour_Local(B91,'Clean Air'!M91) -> Red | C92: New 2025 | D92: Brown - Green - Orange - Red - Yellow | H92: obsolete if child
A93: CA Recuperative Braking Warm - Score | B93: =ROUND('Clean Air'!J92,1) -> 0 | C93: New 2025 | D93: Number - 1 decimal place | H93: obsolete if child
A94: CA Recuperative Braking Warm - Colour | B94: =Colour_Local(B93,'Clean Air'!M92) -> Red | C94: New 2025 | D94: Brown - Green - Orange - Red - Yellow | H94: obsolete if child
A95: CA Additional LCA - Score | B95: =ROUND('Clean Air'!O128,1) -> 10 | C95: New 2025 | D95: Number - 1 decimal place | H95: obsolete if child
A96: CA Additional LCA - Colour | B96: =Colour_Local(B95,'Clean Air'!P128) -> Green | C96: New 2025 | D96: Brown - Green - Orange - Red - Yellow | H96: obsolete if child
A97: CA Graph 1 Production - NMVOC | B97: =ROUND('LCA RESULTS'!$C$8,1) -> 0 | C97: New 2025 | D97: Number | G97: Graph 1 title: Pollutants (excluding direct emissions) | H97: obsolete if child
A98: CA Graph 1 Production - NOx | B98: =ROUND('LCA RESULTS'!$C$9,1) -> 0 | C98: New 2025 | D98: Number | G98: Graph 1 Name: [permalink]&"_CA Graph 1" | H98: obsolete if child
A99: CA Graph 1 Production - NH3 | B99: =ROUND('LCA RESULTS'!$C$10,1) -> 0 | C99: New 2025 | D99: Number | H99: obsolete if child
A100: CA Graph 1 Production - CO | B100: =ROUND('LCA RESULTS'!$C$11,1) -> 0 | C100: New 2025 | D100: Number | H100: obsolete if child
A101: CA Graph 1 Production - PM2.5 | B101: =ROUND('LCA RESULTS'!$C$12,1) -> 0 | C101: New 2025 | D101: Number | H101: obsolete if child
A102: CA Graph 1 Production - SOx | B102: =ROUND('LCA RESULTS'!$C$13,1) -> 0 | C102: New 2025 | D102: Number | H102: obsolete if child
A103: CA Graph 1 Energy Supply - NMVOC | B103: =ROUND(AVERAGE('Clean Air'!$G$19,'Clean Air'!$G$28,'Clean Air'!$G$37,'Clean Air'!$G$46,'Clean Air'!$G$55),1) -> 0 | C103: New 2025 | D103: Number | H103: obsolete if child
A104: CA Graph 1 Energy Supply - NOx | B104: =ROUND(AVERAGE('Clean Air'!$G$20,'Clean Air'!$G$29,'Clean Air'!$G$38,'Clean Air'!$G$47,'Clean Air'!$G$56),1) -> 0 | C104: New 2025 | D104: Number | H104: obsolete if child
A105: CA Graph 1 Energy Supply - NH3 | B105: =ROUND(AVERAGE('Clean Air'!$G$21,'Clean Air'!$G$30,'Clean Air'!$G$39,'Clean Air'!$G$48,'Clean Air'!$G$57),1) -> 0 | C105: New 2025 | D105: Number | H105: obsolete if child
A106: CA Graph 1 Energy Supply - CO | B106: =ROUND(AVERAGE('Clean Air'!$G$22,'Clean Air'!$G$31,'Clean Air'!$G$40,'Clean Air'!$G$49,'Clean Air'!$G$58),1) -> 0 | C106: New 2025 | D106: Number | H106: obsolete if child
A107: CA Graph 1 Energy Supply - PM2.5 | B107: =ROUND(AVERAGE('Clean Air'!$G$23,'Clean Air'!$G$32,'Clean Air'!$G$41,'Clean Air'!$G$50,'Clean Air'!$G$59),1) -> 0 | C107: New 2025 | D107: Number | H107: obsolete if child
A108: CA Graph 1 Energy Supply - SOx | B108: =ROUND(AVERAGE('Clean Air'!$G$25,'Clean Air'!$G$34,'Clean Air'!$G$43,'Clean Air'!$G$52,'Clean Air'!$G$61),1) -> 0 | C108: New 2025 | D108: Number | H108: obsolete if child
A109: CA Graph 1 Direct Exhaust Emissions - NMHC | B109: =ROUND(AVERAGE('Clean Air'!F19,'Clean Air'!F28,'Clean Air'!F37,'Clean Air'!F46,'Clean Air'!F55),1) -> 0 | C109: New 2025 | D109: Number | H109: obsolete if child
A110: CA Graph 1 Direct Exhaust Emissions - NOx | B110: =ROUND(AVERAGE('Clean Air'!F20,'Clean Air'!F29,'Clean Air'!F38,'Clean Air'!F47,'Clean Air'!F56,'Clean Air'!F64,'Clean Air'!F71),1) -> 0 | C110: New 2025 | D110: Number | H110: obsolete if child
A111: CA Graph 1 Direct Exhaust Emissions - NH3 | B111: =ROUND(AVERAGE('Clean Air'!F30,'Clean Air'!F39,'Clean Air'!F48,'Clean Air'!F57),1) -> 0 | C111: New 2025 | D111: Number | H111: obsolete if child
A112: CA Graph 1 Direct Exhaust Emissions - CO | B112: =ROUND(AVERAGE('Clean Air'!F22,'Clean Air'!F31,'Clean Air'!F40,'Clean Air'!F49,'Clean Air'!F58,'Clean Air'!F66,'Clean Air'!F72),1) -> 0 | C112: New 2025 | D112: Number | H112: obsolete if child
A113: CA Graph 1 Direct Exhaust Emissions - PM | B113: =ROUND(AVERAGE('Clean Air'!F23,'Clean Air'!F32,'Clean Air'!F41,'Clean Air'!F50,'Clean Air'!F59),1) -> 0 | C113: New 2025 | D113: Number | H113: obsolete if child
A114: CA Graph 1 Direct Exhaust Emissions - SOx | B114: 0 | C114: New 2025 | D114: Number | H114: obsolete if child
A115: CA Graph 1 Maintenance - NMVOC | B115: =ROUND('LCA RESULTS'!$C$16,1) -> 0 | C115: New 2025 | D115: Number | H115: obsolete if child
A116: CA Graph 1 Maintenance - NOx | B116: =ROUND('LCA RESULTS'!$C$17,1) -> 0 | C116: New 2025 | D116: Number | H116: obsolete if child
A117: CA Graph 1 Maintenance - NH3 | B117: =ROUND('LCA RESULTS'!$C$18,1) -> 0 | C117: New 2025 | D117: Number | H117: obsolete if child
A118: CA Graph 1 Maintenance - CO | B118: =ROUND('LCA RESULTS'!$C$19,1) -> 0 | C118: New 2025 | D118: Number | H118: obsolete if child
A119: CA Graph 1 Maintenance - PM2.5 | B119: =ROUND('LCA RESULTS'!$C$20,1) -> 0 | C119: New 2025 | D119: Number | H119: obsolete if child
A120: CA Graph 1 Maintenance - SOx | B120: =ROUND('LCA RESULTS'!$C$21,1) -> 0 | C120: New 2025 | D120: Number | H120: obsolete if child
A121: CA Graph 1 End-of-Life - NMVOC | B121: =ROUND('LCA RESULTS'!$C$24,1) -> 0 | C121: New 2025 | D121: Number | H121: obsolete if child
A122: CA Graph 1 End-of-Life - NOx | B122: =ROUND('LCA RESULTS'!$C$25,1) -> 0 | C122: New 2025 | D122: Number | H122: obsolete if child
A123: CA Graph 1 End-of-Life - NH3 | B123: =ROUND('LCA RESULTS'!$C$26,1) -> 0 | C123: New 2025 | D123: Number | H123: obsolete if child
A124: CA Graph 1 End-of-Life - CO | B124: =ROUND('LCA RESULTS'!$C$27,1) -> 0 | C124: New 2025 | D124: Number | H124: obsolete if child
A125: CA Graph 1 End-of-Life - PM2.5 | B125: =ROUND('LCA RESULTS'!$C$28,1) -> 0 | C125: New 2025 | D125: Number | H125: obsolete if child
A126: CA Graph 1 End-of-Life - SOx | B126: =ROUND('LCA RESULTS'!$C$29,1) -> 0 | C126: New 2025 | D126: Number | H126: obsolete if child
A128: Energy Efficiency Index | B128: =ROUND(Efficiency!L46,1) -> 10 | H128: Take from basemodel
A129: EE Energy Consumption - Score | B129: =ROUND(Efficiency!I42,1) -> 10 | C129: New 2025 | D129: Number - 1 decimal place | H129: obsolete if child
A130: EE Energy Consumption - Colour | B130: =Colour_Local(B129,Efficiency!L42) -> Green | C130: New 2025 | D130: Brown - Green - Orange - Red - Yellow | H130: obsolete if child
A131: Energy Efficiency Lab Tests - Overall performance | B131: =Colour_Local(B132,Efficiency!L34) -> Green | D131: Brown - Green - Orange - Red - Yellow | H131: obsolete if child
A132: Energy Efficiency Lab Tests - Overall performance - Score | B132: =ROUND(Efficiency!I34,1) -> 10 | C132: New 2025 | D132: Number - 1 decimal place | H132: obsolete if child
A133: EE Legal Test - Energy Efficiency Value (1st fuel source) | B133: =ROUND(IF(OR(Petrol,Diesel,E_85),Efficiency!P10,IF(Electric,Efficiency!S10,IF(OR(CNG_Dual,CNG_Mono,Hydrogen),Efficiency!V10,"???"))),2) -> 0 | C133: New 2025 | D133: Number - 1 decimal place | E133: Also needed for TRM charts | G133: Graph Name: [permalink]&"_EE Graph legal_1st fuel source | H133: obsolete if child
A134: EE Legal Test - Energy Efficiency Value (2nd fuel source) | B134: =IF(CNG_Dual,ROUND(Efficiency!V10,2),"") ->  | C134: New 2025 | D134: Number - 1 decimal place - if vehicle has only 1 fuel source, set formula to leave cell bank | E134: Also needed for TRM charts | G134: Graph Name: [permalink]&"_EE Graph legal_2nd fuel source -- tbd if it can be fitted in one progress bar | H134: obsolete if child
A135: EE Warm Weather - Energy Efficiency Value (1st fuel source) | B135: =ROUND(IF(OR(Petrol,Diesel,E_85),Efficiency!P11,IF(Electric,Efficiency!S11,IF(OR(CNG_Dual,CNG_Mono,Hydrogen),Efficiency!V11,"???"))),2) -> 0 | C135: New 2025 | D135: Number - 1 decimal place | E135: Also needed for TRM charts | G135: Graph Name: [permalink]&"_EE Graph Warm Weather_1st fuel source | H135: obsolete if child
A136: EE Warm Weather - Energy Efficiency Value (2nd fuel source) | B136: =IF(CNG_Dual,ROUND(Efficiency!V11,2),"") ->  | C136: New 2025 | D136: Number - 1 decimal place - if vehicle has only 1 fuel source, set formula to leave cell bank | E136: Also needed for TRM charts | G136: Graph Name: [permalink]&"_EE Graph Warm Weather_2nd fuel source -- tbd … | H136: obsolete if child
A137: EE Highway - Energy Efficiency Value (1st fuel source) | B137: =ROUND(IF(OR(Petrol,Diesel,E_85),Efficiency!P14,IF(Electric,Efficiency!S14,IF(OR(CNG_Dual,CNG_Mono,Hydrogen),Efficiency!V14,"???"))),2) -> 0 | C137: New 2025 | D137: Number - 1 decimal place | E137: Also needed for TRM charts | G137: Graph Name: [permalink]&"_EE Graph Highway_1st fuel source | H137: obsolete if child
A138: EE Highway - Energy Efficiency Value (2nd fuel source) | B138: =IF(CNG_Dual,ROUND(Efficiency!V14,2),"") ->  | C138: New 2025 | D138: Number - 1 decimal place - if vehicle has only 1 fuel source, set formula to leave cell bank | E138: Also needed for TRM charts | G138: Graph Name: [permalink]&"_EE Graph Highway_2nd fuel source -- tbd | H138: obsolete if child
A139: EE Winter Cold Start - Energy Efficiency Value (1st fuel source) | B139: =ROUND(IF(OR(Petrol,Diesel,E_85),Efficiency!P12,IF(Electric,Efficiency!S12,IF(OR(CNG_Dual,CNG_Mono,Hydrogen),Efficiency!V12,"???"))),2) -> 0 | C139: New 2025 | D139: Number - 1 decimal place | E139: Also needed for TRM charts | G139: Graph Name: [permalink]&"_EE Graph winter cold_1st fuel source | H139: obsolete if child
A140: EE Winter Cold Start - Energy Efficiency Value (2nd fuel source) | B140: =IF(CNG_Dual,ROUND(Efficiency!V12,2),"") ->  | C140: New 2025 | D140: Number - 1 decimal place - if vehicle has only 1 fuel source, set formula to leave cell bank | E140: Also needed for TRM charts | G140: Graph Name: [permalink]&"_EE Graph winter cold_2nd fuel source -- tbd | H140: obsolete if child
A141: EE Winter Warm Start - Energy Efficiency Value (1st fuel source) | B141: =ROUND(IF(OR(Petrol,Diesel,E_85),Efficiency!P13,IF(Electric,Efficiency!S13,IF(OR(CNG_Dual,CNG_Mono,Hydrogen),Efficiency!V13,"???"))),2) -> 0 | C141: New 2025 | D141: Number - 1 decimal place | E141: Also needed for TRM charts | G141: Graph Name: [permalink]&"_EE Graph winter warm_1st fuel source | H141: obsolete if child
A142: EE Winter Warm Start - Energy Efficiency Value (2nd fuel source) | B142: =IF(CNG_Dual,ROUND(Efficiency!V13,2),"") ->  | C142: New 2025 | D142: Number - 1 decimal place - if vehicle has only 1 fuel source, set formula to leave cell bank | E142: Also needed for TRM charts | G142: Graph Name: [permalink]&"_EE Graph winter warm_2nd fuel source -- tbd | H142: obsolete if child
A143: EE Rolling Resistance - Score | B143: =ROUND(Efficiency!I30,1) -> 10 | C143: New 2025 | D143: Number - 1 decimal place | H143: obsolete if child
A144: EE Rolling Resistance - Colour | B144: =Colour_Local(B143,Efficiency!L30) -> Green | C144: New 2025 | D144: Brown - Green - Orange - Red - Yellow | H144: obsolete if child
A145: EE Additional LCA - Score | B145: =ROUND(Efficiency!I38,1) -> 10 | C145: New 2025 | D145: Number - 1 decimal place | H145: obsolete if child
A146: EE Additional LCA - colour | B146: =Colour_Local(B145,Efficiency!L38) -> Green | C146: New 2025 | D146: Brown - Green - Orange - Red - Yellow | H146: obsolete if child
A147: EE Graph 1 Total | B147: =ROUND(Efficiency!H42,1) -> 0 | C147: New 2025 | D147: number 1 decimal | G147: Graph 1 title: Energy Consumption | H147: obsolete if child
A148: EE Graph 1 Production Recycling | B148: =ROUND((Efficiency!H5+Efficiency!H25-'LCA RESULTS'!F9*100),1) -> 0 | C148: New 2025 | D148: number 1 decimal | G148: Graph 1 Name: [permalink]&"_EE Graph 1" | H148: obsolete if child
A149: EE Graph 1 Fuel Cell Production | B149: =ROUND('LCA RESULTS'!F10*100,1) -> 0 | C149: New 2025 | D149: number 1 decimal | H149: obsolete if child
A150: EE Graph 1 Maintenance | B150: =ROUND(Efficiency!H20,1) -> 0 | C150: New 2025 | D150: number 1 decimal | H150: obsolete if child
A151: EE Graph 1 Battery Production | B151: =ROUND('LCA RESULTS'!F9*100,1) -> 0 | C151: New 2025 | D151: number 1 decimal | H151: obsolete if child
A152: EE Graph 1 Fuel Energy Supply | B152: =ROUND(AVERAGE(Efficiency!H10:H14),1) -> 0 | C152: New 2025 | D152: number 1 decimal | H152: obsolete if child
A153: EE Graph 1 Total - label | B153: Total | C153: New 2025 | D153: number 1 decimal | H153: obsolete if child
A154: EE Graph 1 Production Recycling - label | B154: Production & Recycling | C154: New 2025 | D154: number 1 decimal | H154: obsolete if child
A155: EE Graph 1 Fuel Cell Production - label | B155: Fuel Cell Production | C155: New 2025 | D155: number 1 decimal | H155: obsolete if child
A156: EE Graph 1 Maintenance - label | B156: Maintenance | C156: New 2025 | D156: number 1 decimal | H156: obsolete if child
A157: EE Graph 1 Battery Production - label | B157: Battery Production | C157: New 2025 | D157: number 1 decimal | H157: obsolete if child
A158: EE Graph 1 Fuel Energy Supply - label | B158: Fuel / Energy Supply | C158: New 2025 | D158: number 1 decimal | H158: obsolete if child
A159: EE Graph 2 Fossil | B159: =ROUND('LCA RESULTS'!F15,1) -> 0 | C159: New 2025 | D159: number 1 decimal | G159: Graph 2 title: Energy Source | H159: obsolete if child
A160: EE Graph 2 Renewable | B160: =ROUND('LCA RESULTS'!F16,1) -> 0 | C160: New 2025 | D160: number 1 decimal | G160: Graph 2 Name: [permalink]&"_EE Graph 2" | H160: obsolete if child
A161: EE Graph 2 Other | B161: =ROUND('LCA RESULTS'!F17,1) -> 0 | C161: New 2025 | D161: number 1 decimal | H161: obsolete if child
A162: EE Graph 2 Fossil - label | B162: Fossil | C162: New 2025 | D162: number 1 decimal | H162: obsolete if child
A163: EE Graph 2 Renewable - label | B163: Renewable | C163: New 2025 | D163: number 1 decimal | H163: obsolete if child
A164: EE Graph 2 Other - label | B164: Other | C164: New 2025 | D164: number 1 decimal | H164: obsolete if child
A165: Average Consumption (1st fuel source) | B165: =ROUND(IF(OR(Petrol,Diesel,E_85),Efficiency!P16,IF(Electric,Efficiency!S16,IF(OR(CNG_Dual,CNG_Mono,Hydrogen),Efficiency!V16,"???"))),2) -> 0 | C165: from 2025 only consumer tool | D165: Number - 2 decimal places (cfr Joanneum calculation) | H165: obsolete if child
A166: Best-Case Consumption (1st fuel source) | B166: =ROUND(IF(OR(Petrol,Diesel,E_85),Efficiency!P20,IF(Electric,Efficiency!S20,IF(OR(CNG_Dual,CNG_Mono,Hydrogen),Efficiency!V20,"???"))),2) -> 0 | C166: from 2025 only consumer tool | D166: Number - 2 decimal places (cfr Joanneum calculation) | H166: obsolete if child
A167: Worst-Case Consumption (1st fuel source) | B167: =ROUND(IF(OR(Petrol,Diesel,E_85),Efficiency!P21,IF(Electric,Efficiency!S21,IF(OR(CNG_Dual,CNG_Mono,Hydrogen),Efficiency!V21,"???"))),2) -> 0 | C167: from 2025 only consumer tool | D167: Number - 2 decimal places (cfr Joanneum calculation) | H167: obsolete if child
A168: Average Consumption (2nd fuel source) | B168: =ROUND(IF(CNG_Dual,Efficiency!V16,"0"),2) -> 0 | C168: from 2025 only consumer tool | D168: Number - 2 decimal places (cfr Joanneum calculation) | H168: obsolete if child
A169: Best-Case Consumption (2nd fuel source) | B169: =ROUND(IF(CNG_Dual,Efficiency!V20,"0"),2) -> 0 | C169: from 2025 only consumer tool | D169: Number - 2 decimal places (cfr Joanneum calculation) | H169: obsolete if child
A170: Worst-Case Consumption (2nd fuel source) | B170: =ROUND(IF(CNG_Dual,Efficiency!V21,"0"),2) -> 0 | C170: from 2025 only consumer tool | D170: Number - 2 decimal places (cfr Joanneum calculation) | H170: obsolete if child
A171: Driving Range - Average (1st fuel source) | B171: =ROUND(IF(OR(Petrol,Diesel,E79),Efficiency!P41,IF(Electric,Efficiency!S41,IF(OR(CNG_Dual,CNG_Mono,Hydrogen),Efficiency!V41,"???"))),0) -> 0 | C171: from 2025 only consumer tool | D171: Number - no decimal places | H171: obsolete if child
A172: Driving Range - Best-Case (1st fuel source) | B172: =ROUND(IF(OR(Petrol,Diesel,E79),Efficiency!P45,IF(Electric,Efficiency!S45,IF(OR(CNG_Dual,CNG_Mono,Hydrogen),Efficiency!V45,"???"))),0) -> 0 | C172: from 2025 only consumer tool | D172: Number - no decimal places | H172: obsolete if child
A173: Driving Range - Worst-Case (1st fuel source) | B173: =ROUND(IF(OR(Petrol,Diesel,E79),Efficiency!P46,IF(Electric,Efficiency!S46,IF(OR(CNG_Dual,CNG_Mono,Hydrogen),Efficiency!V46,"???"))),0) -> 0 | C173: from 2025 only consumer tool | D173: Number - no decimal places | H173: obsolete if child
A174: Driving Range - Average (2nd fuel source) | B174: =ROUND(IF(CNG_Dual,Efficiency!V41,"0"),0) -> 0 | C174: from 2025 only consumer tool | D174: Number - no decimal places | H174: obsolete if child
A175: Driving Range - Best-Case (2nd fuel source) | B175: =ROUND(IF(CNG_Dual,Efficiency!V45,"0"),0) -> 0 | C175: from 2025 only consumer tool | D175: Number - no decimal places | H175: obsolete if child
A176: Driving Range - Worst-Case (2nd fuel source) | B176: =ROUND(IF(CNG_Dual,Efficiency!V46,"0"),0) -> 0 | C176: from 2025 only consumer tool | D176: Number - no decimal places | H176: obsolete if child
A178: Greenhouse Gas Index | B178: =ROUND(Greenhouse!L118,1) -> 10 | D178: Number - 1 decimal place | H178: Take from basemodel
A179: GG Exhaust Emissions - Score | B179: =Greenhouse!I93 -> 10 | D179: Number - 1 decimal place | H179: obsolete if child
A180: GG Exhaust Emissions - Colour | B180: =Colour_Local(B179,Greenhouse!L93) -> Green | D180: Brown - Green - Orange - Red - Yellow | H180: obsolete if child
A181: GG Legal Test - Direct GG Emissions | B181: =ROUND((Greenhouse!F21+Greenhouse!F22+Greenhouse!F23),1) -> 0 | C181: New 2025 | D181: Number - 1 decimal place | F181: Also needed for TRM charts | G181: Graph Name: [permalink]&"_GG Graph legal | H181: obsolete if child
A182: GG Warm Weather - Direct GG Emissions | B182: =ROUND((Greenhouse!F30+Greenhouse!F31+Greenhouse!F32),1) -> 0 | C182: New 2025 | D182: Number - 1 decimal place | F182: Also needed for TRM charts | G182: Graph Name: [permalink]&"_GG Graph warm weather | H182: obsolete if child
A183: GG Highway Test - Direct GG Emissions | B183: =ROUND((Greenhouse!F57+Greenhouse!F58+Greenhouse!F59),1) -> 0 | C183: New 2025 | D183: Number - 1 decimal place | F183: Also needed for TRM charts | G183: Graph Name: [permalink]&"_GG Graph Highway | H183: obsolete if child
A184: GG Winter Cold Start - Direct GG Emissions | B184: =ROUND((Greenhouse!F39+Greenhouse!F40+Greenhouse!F41),1) -> 0 | C184: New 2025 | D184: Number - 1 decimal place | F184: Also needed for TRM charts | G184: Graph Name: [permalink]&"_GG Graph Winter Cold | H184: obsolete if child
A185: GG Winter Warm Start - Direct GG Emissions | B185: =ROUND((Greenhouse!F48+Greenhouse!F49+Greenhouse!F50),1) -> 0 | C185: New 2025 | D185: Number - 1 decimal place | F185: Also needed for TRM charts | G185: Graph Name: [permalink]&"_GG Graph Winter Warm | H185: obsolete if child
A186: GG Additional LCA - Score | B186: =ROUND(Greenhouse!I99,1) -> 10 | C186: New 2025 | D186: Number - 1 decimal place | H186: obsolete if child
A187: GG Additional LCA - colour | B187: =Colour_Local(B186,Greenhouse!L99) -> Green | C187: New 2025 | D187: Brown - Green - Orange - Red - Yellow | H187: obsolete if child
A188: GG Graph 1 Total | B188: =ROUND(Greenhouse!G105,1) -> 0 | C188: New 2025 | D188: number 1 decimal | G188: Graph 1 Title: GHG Emission | H188: obsolete if child
A189: GG Graph 1 Production Recycling | B189: =ROUND((Greenhouse!G12+Greenhouse!G86-'LCA RESULTS'!I11),1) -> 0 | C189: New 2025 | D189: number 1 decimal | G189: Graph 1 Name: [permalink]&"_GG Graph 1" | H189: obsolete if child
A190: GG Graph 1 Fuel Cell Production | B190: =ROUND('LCA RESULTS'!I12,1) -> 0 | C190: New 2025 | D190: number 1 decimal | H190: obsolete if child
A191: GG Graph 1 Maintenance | B191: =ROUND('LCA RESULTS'!I18,1) -> 0 | C191: New 2025 | D191: number 1 decimal | H191: obsolete if child
A192: GG Graph 1 Battery Production | B192: =ROUND('LCA RESULTS'!I11,1) -> 0 | C192: New 2025 | D192: number 1 decimal | H192: obsolete if child
A193: GG Graph 1 Fuel Energy Supply | B193: =ROUND(AVERAGE(Greenhouse!F24,Greenhouse!F33,Greenhouse!F42,Greenhouse!F51,Greenhouse!F60),1) -> 0 | C193: New 2025 | D193: number 1 decimal | H193: obsolete if child
A194: GG Graph 1 Tailpipe Emissions | B194: =ROUND(Greenhouse!G93,1) -> 0 | C194: New 2025 | D194: number 1 decimal | H194: obsolete if child
A195: GG Graph 1 Total - label | B195: Total | C195: New 2025 | D195: fixed string: Total | H195: obsolete if child
A196: GG Graph 1 Production Recycling - label | B196: Production & Recycling | C196: New 2025 | D196: fixed string: Production & Recycling | H196: obsolete if child
A197: GG Graph 1 Fuel Cell Production - label | B197: Fuel Cell Production | C197: New 2025 | D197: fixed string: Fuel Cell Production | H197: obsolete if child
A198: GG Graph 1 Maintenance - label | B198: Maintenance | C198: New 2025 | D198: fixed string: Maintenance | H198: obsolete if child
A199: GG Graph 1 Battery Production - label | B199: Battery Production | C199: New 2025 | D199: fixed string: Battery Production | H199: obsolete if child
A200: GG Graph 1 Fuel Energy Supply - label | B200: Fuel / Energy Supply | C200: New 2025 | D200: fixed string: Fuel/Energy Supply | H200: obsolete if child
A201: GG Graph 1 Exhaust Emissions - label | B201: Exhaust Emissions | C201: New 2025 | D201: fixed string: Exhaust Emissions | H201: obsolete if child
A202: GG Graph 2 Total Emissions - Average | B202: =ROUND(B188*'LIMITS Greenhouse'!C25/1000000,1) -> 0 | C202: New 2025 | D202: number 1 decimal | G202: Graph 2 Title: Total GHG Emissions | H202: obsolete if child
... 186 more rows

Sheet Sheet1 (hidden)
A2: = | B2: if(' | C2: Driving Experience Input'!$E$76 | D2: <>"",' | E2: ,"") | F2: =A$2&B$2&C2&D$2&C2&E$2 -> =if('Driving Experience Input'!$E$76<>"",'Driving Experience Input'!$E$76,"")
C3: Driving Experience Input'!$F$76 | F3: =A$2&B$2&C3&D$2&C3&E$2 -> =if('Driving Experience Input'!$F$76<>"",'Driving Experience Input'!$F$76,"")
C4: Driving Experience Input'!$G$76 | F4: =if('Driving Experience Input'!$G$76<>"",'Driving Experience Input'!$G$76,"")
C5: Driving Experience Input'!$H$76 | F5: =if('Driving Experience Input'!$H$76<>"",'Driving Experience Input'!$H$76,"")
C6: Driving Experience'!$K$175 | F6: =if('Driving Experience'!$K$175<>"",'Driving Experience'!$K$175,"")
C7: Driving Experience'!$L$175 | F7: =if('Driving Experience'!$L$175<>"",'Driving Experience'!$L$175,"")
F8: =if('<>"",',"")
F9: =if('<>"",',"")
F10: =if('<>"",',"")
F11: =if('<>"",',"")
F12: =if('<>"",',"")
F13: =if('<>"",',"")
F14: =A$2&B$2&C14&D$2&C14&E$2 -> =if('<>"",',"")
F15: =A$2&B$2&C15&D$2&C15&E$2 -> =if('<>"",',"")
F16: =if('<>"",',"")
F17: =if('<>"",',"")
F18: =if('<>"",',"")
F19: =if('<>"",',"")
F20: =if('<>"",',"")
F29: =if('Driving Experience Input'!$F$69<>"",'Driving Experience Input'!$F$69,"")
F30: =if('Driving Experience Input'!$G$69<>"",'Driving Experience Input'!$G$69,"")
F31: =if('Driving Experience Input'!$F$70<>"",'Driving Experience Input'!$F$70,"")
F32: =if('Driving Experience Input'!$G$70<>"",'Driving Experience Input'!$G$70,"")
F33: =if('Driving Experience'!$J$179<>"",'Driving Experience'!$J$179,"")
F34: =if('Driving Experience'!$H$175<>"",'Driving Experience'!$H$175,"")

Sheet Versions
A1: Table to enter variants only (enter partner / twin information in the tab 'Child vehicles') | E1: v 260508
A3: Variant | B3: Trim addition | C3: Engine | D3: Drivetrain | E3: Gearbox | F3: Combined
A4: =IF(Table1[[#This Row],[Trim addition]]<>"",SPECS!$B$3,"") -> 0 | B4: e.g.: Max | C4: =IF(Table1[[#This Row],[Trim addition]]<>"",LOWER(SPECS!$B$8),"") -> electric | D4: =IF(Table1[[#This Row],[Trim addition]]<>"",SPECS!$B$7,"") -> 0 | E4: =IF(Table1[[#This Row],[Trim addition]]<>"",LOWER(SPECS!$B$26),"") ->  | F4: =TRIM(IF(ISBLANK(Table1[[#This Row],[Trim addition]]),"","[Make] [Model]"&CHAR(10)&"<strong>"&Table1[[#This Row],[Variant]]&" "&Table1[[#This Row],[Trim addition]]&" "&Table1[[#This Row],[Engine]]&" "&Table1[[#This Row],[Drivetrain]]&" "&Table1[[#This Row],[Gearbox]]&"</strong>;")) -> [Make] [Model] <strong>0 e.g.: Max electric 0 </strong>;
A5: =IF(Table1[[#This Row],[Trim addition]]<>"",SPECS!$B$3,"") -> 0 | B5: e.g.: Plus | C5: =IF(Table1[[#This Row],[Trim addition]]<>"",LOWER(SPECS!$B$8),"") -> electric | D5: =IF(Table1[[#This Row],[Trim addition]]<>"",SPECS!$B$7,"") -> 0 | E5: =IF(Table1[[#This Row],[Trim addition]]<>"",LOWER(SPECS!$B$26),"") ->  | F5: =TRIM(IF(ISBLANK(Table1[[#This Row],[Trim addition]]),"","[Make] [Model]"&CHAR(10)&"<strong>"&Table1[[#This Row],[Variant]]&" "&Table1[[#This Row],[Trim addition]]&" "&Table1[[#This Row],[Engine]]&" "&Table1[[#This Row],[Drivetrain]]&" "&Table1[[#This Row],[Gearbox]]&"</strong>;")) -> [Make] [Model] <strong>0 e.g.: Plus electric 0 </strong>; | J5: =_xlfn.TEXTJOIN(CHAR(10)&CHAR(10), TRUE, F4:F41) -> [Make] [Model] <strong>0 e.g.: Max electric 0 </strong>; [Make] [Model] <strong>0 e.g.: Plus electric 0 </strong>;
A6: =IF(Table1[[#This Row],[Trim addition]]<>"",SPECS!$B$3,"") ->  | C6: =IF(Table1[[#This Row],[Trim addition]]<>"",LOWER(SPECS!$B$8),"") ->  | D6: =IF(Table1[[#This Row],[Trim addition]]<>"",SPECS!$B$7,"") ->  | E6: =IF(Table1[[#This Row],[Trim addition]]<>"",LOWER(SPECS!$B$26),"") ->  | F6: =TRIM(IF(ISBLANK(Table1[[#This Row],[Trim addition]]),"","[Make] [Model]"&CHAR(10)&"<strong>"&Table1[[#This Row],[Variant]]&" "&Table1[[#This Row],[Trim addition]]&" "&Table1[[#This Row],[Engine]]&" "&Table1[[#This Row],[Drivetrain]]&" "&Table1[[#This Row],[Gearbox]]&"</strong>;")) -> 
A7: =IF(Table1[[#This Row],[Trim addition]]<>"",SPECS!$B$3,"") ->  | C7: =IF(Table1[[#This Row],[Trim addition]]<>"",LOWER(SPECS!$B$8),"") ->  | D7: =IF(Table1[[#This Row],[Trim addition]]<>"",SPECS!$B$7,"") ->  | E7: =IF(Table1[[#This Row],[Trim addition]]<>"",LOWER(SPECS!$B$26),"") ->  | F7: =TRIM(IF(ISBLANK(Table1[[#This Row],[Trim addition]]),"","[Make] [Model]"&CHAR(10)&"<strong>"&Table1[[#This Row],[Variant]]&" "&Table1[[#This Row],[Trim addition]]&" "&Table1[[#This Row],[Engine]]&" "&Table1[[#This Row],[Drivetrain]]&" "&Table1[[#This Row],[Gearbox]]&"</strong>;")) -> 
A8: =IF(Table1[[#This Row],[Trim addition]]<>"",SPECS!$B$3,"") ->  | C8: =IF(Table1[[#This Row],[Trim addition]]<>"",LOWER(SPECS!$B$8),"") ->  | D8: =IF(Table1[[#This Row],[Trim addition]]<>"",SPECS!$B$7,"") ->  | E8: =IF(Table1[[#This Row],[Trim addition]]<>"",LOWER(SPECS!$B$26),"") ->  | F8: =TRIM(IF(ISBLANK(Table1[[#This Row],[Trim addition]]),"","[Make] [Model]"&CHAR(10)&"<strong>"&Table1[[#This Row],[Variant]]&" "&Table1[[#This Row],[Trim addition]]&" "&Table1[[#This Row],[Engine]]&" "&Table1[[#This Row],[Drivetrain]]&" "&Table1[[#This Row],[Gearbox]]&"</strong>;")) -> 
A9: =IF(Table1[[#This Row],[Trim addition]]<>"",SPECS!$B$3,"") ->  | C9: =IF(Table1[[#This Row],[Trim addition]]<>"",LOWER(SPECS!$B$8),"") ->  | D9: =IF(Table1[[#This Row],[Trim addition]]<>"",SPECS!$B$7,"") ->  | E9: =IF(Table1[[#This Row],[Trim addition]]<>"",LOWER(SPECS!$B$26),"") ->  | F9: =TRIM(IF(ISBLANK(Table1[[#This Row],[Trim addition]]),"","[Make] [Model]"&CHAR(10)&"<strong>"&Table1[[#This Row],[Variant]]&" "&Table1[[#This Row],[Trim addition]]&" "&Table1[[#This Row],[Engine]]&" "&Table1[[#This Row],[Drivetrain]]&" "&Table1[[#This Row],[Gearbox]]&"</strong>;")) -> 
A10: =IF(Table1[[#This Row],[Trim addition]]<>"",SPECS!$B$3,"") ->  | C10: =IF(Table1[[#This Row],[Trim addition]]<>"",LOWER(SPECS!$B$8),"") ->  | D10: =IF(Table1[[#This Row],[Trim addition]]<>"",SPECS!$B$7,"") ->  | E10: =IF(Table1[[#This Row],[Trim addition]]<>"",LOWER(SPECS!$B$26),"") ->  | F10: =TRIM(IF(ISBLANK(Table1[[#This Row],[Trim addition]]),"","[Make] [Model]"&CHAR(10)&"<strong>"&Table1[[#This Row],[Variant]]&" "&Table1[[#This Row],[Trim addition]]&" "&Table1[[#This Row],[Engine]]&" "&Table1[[#This Row],[Drivetrain]]&" "&Table1[[#This Row],[Gearbox]]&"</strong>;")) -> 
A11: =IF(Table1[[#This Row],[Trim addition]]<>"",SPECS!$B$3,"") ->  | C11: =IF(Table1[[#This Row],[Trim addition]]<>"",LOWER(SPECS!$B$8),"") ->  | D11: =IF(Table1[[#This Row],[Trim addition]]<>"",SPECS!$B$7,"") ->  | E11: =IF(Table1[[#This Row],[Trim addition]]<>"",LOWER(SPECS!$B$26),"") ->  | F11: =TRIM(IF(ISBLANK(Table1[[#This Row],[Trim addition]]),"","[Make] [Model]"&CHAR(10)&"<strong>"&Table1[[#This Row],[Variant]]&" "&Table1[[#This Row],[Trim addition]]&" "&Table1[[#This Row],[Engine]]&" "&Table1[[#This Row],[Drivetrain]]&" "&Table1[[#This Row],[Gearbox]]&"</strong>;")) -> 
A12: =IF(Table1[[#This Row],[Trim addition]]<>"",SPECS!$B$3,"") ->  | C12: =IF(Table1[[#This Row],[Trim addition]]<>"",LOWER(SPECS!$B$8),"") ->  | D12: =IF(Table1[[#This Row],[Trim addition]]<>"",SPECS!$B$7,"") ->  | E12: =IF(Table1[[#This Row],[Trim addition]]<>"",LOWER(SPECS!$B$26),"") ->  | F12: =TRIM(IF(ISBLANK(Table1[[#This Row],[Trim addition]]),"","[Make] [Model]"&CHAR(10)&"<strong>"&Table1[[#This Row],[Variant]]&" "&Table1[[#This Row],[Trim addition]]&" "&Table1[[#This Row],[Engine]]&" "&Table1[[#This Row],[Drivetrain]]&" "&Table1[[#This Row],[Gearbox]]&"</strong>;")) -> 
A13: =IF(Table1[[#This Row],[Trim addition]]<>"",SPECS!$B$3,"") ->  | C13: =IF(Table1[[#This Row],[Trim addition]]<>"",LOWER(SPECS!$B$8),"") ->  | D13: =IF(Table1[[#This Row],[Trim addition]]<>"",SPECS!$B$7,"") ->  | E13: =IF(Table1[[#This Row],[Trim addition]]<>"",LOWER(SPECS!$B$26),"") ->  | F13: =TRIM(IF(ISBLANK(Table1[[#This Row],[Trim addition]]),"","[Make] [Model]"&CHAR(10)&"<strong>"&Table1[[#This Row],[Variant]]&" "&Table1[[#This Row],[Trim addition]]&" "&Table1[[#This Row],[Engine]]&" "&Table1[[#This Row],[Drivetrain]]&" "&Table1[[#This Row],[Gearbox]]&"</strong>;")) -> 
A14: =IF(Table1[[#This Row],[Trim addition]]<>"",SPECS!$B$3,"") ->  | C14: =IF(Table1[[#This Row],[Trim addition]]<>"",LOWER(SPECS!$B$8),"") ->  | D14: =IF(Table1[[#This Row],[Trim addition]]<>"",SPECS!$B$7,"") ->  | E14: =IF(Table1[[#This Row],[Trim addition]]<>"",LOWER(SPECS!$B$26),"") ->  | F14: =TRIM(IF(ISBLANK(Table1[[#This Row],[Trim addition]]),"","[Make] [Model]"&CHAR(10)&"<strong>"&Table1[[#This Row],[Variant]]&" "&Table1[[#This Row],[Trim addition]]&" "&Table1[[#This Row],[Engine]]&" "&Table1[[#This Row],[Drivetrain]]&" "&Table1[[#This Row],[Gearbox]]&"</strong>;")) -> 
A15: =IF(Table1[[#This Row],[Trim addition]]<>"",SPECS!$B$3,"") ->  | C15: =IF(Table1[[#This Row],[Trim addition]]<>"",LOWER(SPECS!$B$8),"") ->  | D15: =IF(Table1[[#This Row],[Trim addition]]<>"",SPECS!$B$7,"") ->  | E15: =IF(Table1[[#This Row],[Trim addition]]<>"",LOWER(SPECS!$B$26),"") ->  | F15: =TRIM(IF(ISBLANK(Table1[[#This Row],[Trim addition]]),"","[Make] [Model]"&CHAR(10)&"<strong>"&Table1[[#This Row],[Variant]]&" "&Table1[[#This Row],[Trim addition]]&" "&Table1[[#This Row],[Engine]]&" "&Table1[[#This Row],[Drivetrain]]&" "&Table1[[#This Row],[Gearbox]]&"</strong>;")) -> 
A16: =IF(Table1[[#This Row],[Trim addition]]<>"",SPECS!$B$3,"") ->  | C16: =IF(Table1[[#This Row],[Trim addition]]<>"",LOWER(SPECS!$B$8),"") ->  | D16: =IF(Table1[[#This Row],[Trim addition]]<>"",SPECS!$B$7,"") ->  | E16: =IF(Table1[[#This Row],[Trim addition]]<>"",LOWER(SPECS!$B$26),"") ->  | F16: =TRIM(IF(ISBLANK(Table1[[#This Row],[Trim addition]]),"","[Make] [Model]"&CHAR(10)&"<strong>"&Table1[[#This Row],[Variant]]&" "&Table1[[#This Row],[Trim addition]]&" "&Table1[[#This Row],[Engine]]&" "&Table1[[#This Row],[Drivetrain]]&" "&Table1[[#This Row],[Gearbox]]&"</strong>;")) -> 
A17: =IF(Table1[[#This Row],[Trim addition]]<>"",SPECS!$B$3,"") ->  | C17: =IF(Table1[[#This Row],[Trim addition]]<>"",LOWER(SPECS!$B$8),"") ->  | D17: =IF(Table1[[#This Row],[Trim addition]]<>"",SPECS!$B$7,"") ->  | E17: =IF(Table1[[#This Row],[Trim addition]]<>"",LOWER(SPECS!$B$26),"") ->  | F17: =TRIM(IF(ISBLANK(Table1[[#This Row],[Trim addition]]),"","[Make] [Model]"&CHAR(10)&"<strong>"&Table1[[#This Row],[Variant]]&" "&Table1[[#This Row],[Trim addition]]&" "&Table1[[#This Row],[Engine]]&" "&Table1[[#This Row],[Drivetrain]]&" "&Table1[[#This Row],[Gearbox]]&"</strong>;")) -> 
A18: =IF(Table1[[#This Row],[Trim addition]]<>"",SPECS!$B$3,"") ->  | C18: =IF(Table1[[#This Row],[Trim addition]]<>"",LOWER(SPECS!$B$8),"") ->  | D18: =IF(Table1[[#This Row],[Trim addition]]<>"",SPECS!$B$7,"") ->  | E18: =IF(Table1[[#This Row],[Trim addition]]<>"",LOWER(SPECS!$B$26),"") ->  | F18: =TRIM(IF(ISBLANK(Table1[[#This Row],[Trim addition]]),"","[Make] [Model]"&CHAR(10)&"<strong>"&Table1[[#This Row],[Variant]]&" "&Table1[[#This Row],[Trim addition]]&" "&Table1[[#This Row],[Engine]]&" "&Table1[[#This Row],[Drivetrain]]&" "&Table1[[#This Row],[Gearbox]]&"</strong>;")) -> 
A19: =IF(Table1[[#This Row],[Trim addition]]<>"",SPECS!$B$3,"") ->  | C19: =IF(Table1[[#This Row],[Trim addition]]<>"",LOWER(SPECS!$B$8),"") ->  | D19: =IF(Table1[[#This Row],[Trim addition]]<>"",SPECS!$B$7,"") ->  | E19: =IF(Table1[[#This Row],[Trim addition]]<>"",LOWER(SPECS!$B$26),"") ->  | F19: =TRIM(IF(ISBLANK(Table1[[#This Row],[Trim addition]]),"","[Make] [Model]"&CHAR(10)&"<strong>"&Table1[[#This Row],[Variant]]&" "&Table1[[#This Row],[Trim addition]]&" "&Table1[[#This Row],[Engine]]&" "&Table1[[#This Row],[Drivetrain]]&" "&Table1[[#This Row],[Gearbox]]&"</strong>;")) -> 
A20: =IF(Table1[[#This Row],[Trim addition]]<>"",SPECS!$B$3,"") ->  | C20: =IF(Table1[[#This Row],[Trim addition]]<>"",LOWER(SPECS!$B$8),"") ->  | D20: =IF(Table1[[#This Row],[Trim addition]]<>"",SPECS!$B$7,"") ->  | E20: =IF(Table1[[#This Row],[Trim addition]]<>"",LOWER(SPECS!$B$26),"") ->  | F20: =TRIM(IF(ISBLANK(Table1[[#This Row],[Trim addition]]),"","[Make] [Model]"&CHAR(10)&"<strong>"&Table1[[#This Row],[Variant]]&" "&Table1[[#This Row],[Trim addition]]&" "&Table1[[#This Row],[Engine]]&" "&Table1[[#This Row],[Drivetrain]]&" "&Table1[[#This Row],[Gearbox]]&"</strong>;")) -> 
A21: =IF(Table1[[#This Row],[Trim addition]]<>"",SPECS!$B$3,"") ->  | C21: =IF(Table1[[#This Row],[Trim addition]]<>"",LOWER(SPECS!$B$8),"") ->  | D21: =IF(Table1[[#This Row],[Trim addition]]<>"",SPECS!$B$7,"") ->  | E21: =IF(Table1[[#This Row],[Trim addition]]<>"",LOWER(SPECS!$B$26),"") ->  | F21: =TRIM(IF(ISBLANK(Table1[[#This Row],[Trim addition]]),"","[Make] [Model]"&CHAR(10)&"<strong>"&Table1[[#This Row],[Variant]]&" "&Table1[[#This Row],[Trim addition]]&" "&Table1[[#This Row],[Engine]]&" "&Table1[[#This Row],[Drivetrain]]&" "&Table1[[#This Row],[Gearbox]]&"</strong>;")) -> 
A22: =IF(Table1[[#This Row],[Trim addition]]<>"",SPECS!$B$3,"") ->  | C22: =IF(Table1[[#This Row],[Trim addition]]<>"",LOWER(SPECS!$B$8),"") ->  | D22: =IF(Table1[[#This Row],[Trim addition]]<>"",SPECS!$B$7,"") ->  | E22: =IF(Table1[[#This Row],[Trim addition]]<>"",LOWER(SPECS!$B$26),"") ->  | F22: =TRIM(IF(ISBLANK(Table1[[#This Row],[Trim addition]]),"","[Make] [Model]"&CHAR(10)&"<strong>"&Table1[[#This Row],[Variant]]&" "&Table1[[#This Row],[Trim addition]]&" "&Table1[[#This Row],[Engine]]&" "&Table1[[#This Row],[Drivetrain]]&" "&Table1[[#This Row],[Gearbox]]&"</strong>;")) -> 
A23: =IF(Table1[[#This Row],[Trim addition]]<>"",SPECS!$B$3,"") ->  | C23: =IF(Table1[[#This Row],[Trim addition]]<>"",LOWER(SPECS!$B$8),"") ->  | D23: =IF(Table1[[#This Row],[Trim addition]]<>"",SPECS!$B$7,"") ->  | E23: =IF(Table1[[#This Row],[Trim addition]]<>"",LOWER(SPECS!$B$26),"") ->  | F23: =TRIM(IF(ISBLANK(Table1[[#This Row],[Trim addition]]),"","[Make] [Model]"&CHAR(10)&"<strong>"&Table1[[#This Row],[Variant]]&" "&Table1[[#This Row],[Trim addition]]&" "&Table1[[#This Row],[Engine]]&" "&Table1[[#This Row],[Drivetrain]]&" "&Table1[[#This Row],[Gearbox]]&"</strong>;")) -> 
A24: =IF(Table1[[#This Row],[Trim addition]]<>"",SPECS!$B$3,"") ->  | C24: =IF(Table1[[#This Row],[Trim addition]]<>"",LOWER(SPECS!$B$8),"") ->  | D24: =IF(Table1[[#This Row],[Trim addition]]<>"",SPECS!$B$7,"") ->  | E24: =IF(Table1[[#This Row],[Trim addition]]<>"",LOWER(SPECS!$B$26),"") ->  | F24: =TRIM(IF(ISBLANK(Table1[[#This Row],[Trim addition]]),"","[Make] [Model]"&CHAR(10)&"<strong>"&Table1[[#This Row],[Variant]]&" "&Table1[[#This Row],[Trim addition]]&" "&Table1[[#This Row],[Engine]]&" "&Table1[[#This Row],[Drivetrain]]&" "&Table1[[#This Row],[Gearbox]]&"</strong>;")) -> 
A25: =IF(Table1[[#This Row],[Trim addition]]<>"",SPECS!$B$3,"") ->  | C25: =IF(Table1[[#This Row],[Trim addition]]<>"",LOWER(SPECS!$B$8),"") ->  | D25: =IF(Table1[[#This Row],[Trim addition]]<>"",SPECS!$B$7,"") ->  | E25: =IF(Table1[[#This Row],[Trim addition]]<>"",LOWER(SPECS!$B$26),"") ->  | F25: =TRIM(IF(ISBLANK(Table1[[#This Row],[Trim addition]]),"","[Make] [Model]"&CHAR(10)&"<strong>"&Table1[[#This Row],[Variant]]&" "&Table1[[#This Row],[Trim addition]]&" "&Table1[[#This Row],[Engine]]&" "&Table1[[#This Row],[Drivetrain]]&" "&Table1[[#This Row],[Gearbox]]&"</strong>;")) -> 
A26: =IF(Table1[[#This Row],[Trim addition]]<>"",SPECS!$B$3,"") ->  | C26: =IF(Table1[[#This Row],[Trim addition]]<>"",LOWER(SPECS!$B$8),"") ->  | D26: =IF(Table1[[#This Row],[Trim addition]]<>"",SPECS!$B$7,"") ->  | E26: =IF(Table1[[#This Row],[Trim addition]]<>"",LOWER(SPECS!$B$26),"") ->  | F26: =TRIM(IF(ISBLANK(Table1[[#This Row],[Trim addition]]),"","[Make] [Model]"&CHAR(10)&"<strong>"&Table1[[#This Row],[Variant]]&" "&Table1[[#This Row],[Trim addition]]&" "&Table1[[#This Row],[Engine]]&" "&Table1[[#This Row],[Drivetrain]]&" "&Table1[[#This Row],[Gearbox]]&"</strong>;")) -> 
A27: =IF(Table1[[#This Row],[Trim addition]]<>"",SPECS!$B$3,"") ->  | C27: =IF(Table1[[#This Row],[Trim addition]]<>"",LOWER(SPECS!$B$8),"") ->  | D27: =IF(Table1[[#This Row],[Trim addition]]<>"",SPECS!$B$7,"") ->  | E27: =IF(Table1[[#This Row],[Trim addition]]<>"",LOWER(SPECS!$B$26),"") ->  | F27: =TRIM(IF(ISBLANK(Table1[[#This Row],[Trim addition]]),"","[Make] [Model]"&CHAR(10)&"<strong>"&Table1[[#This Row],[Variant]]&" "&Table1[[#This Row],[Trim addition]]&" "&Table1[[#This Row],[Engine]]&" "&Table1[[#This Row],[Drivetrain]]&" "&Table1[[#This Row],[Gearbox]]&"</strong>;")) -> 
A28: =IF(Table1[[#This Row],[Trim addition]]<>"",SPECS!$B$3,"") ->  | C28: =IF(Table1[[#This Row],[Trim addition]]<>"",LOWER(SPECS!$B$8),"") ->  | D28: =IF(Table1[[#This Row],[Trim addition]]<>"",SPECS!$B$7,"") ->  | E28: =IF(Table1[[#This Row],[Trim addition]]<>"",LOWER(SPECS!$B$26),"") ->  | F28: =TRIM(IF(ISBLANK(Table1[[#This Row],[Trim addition]]),"","[Make] [Model]"&CHAR(10)&"<strong>"&Table1[[#This Row],[Variant]]&" "&Table1[[#This Row],[Trim addition]]&" "&Table1[[#This Row],[Engine]]&" "&Table1[[#This Row],[Drivetrain]]&" "&Table1[[#This Row],[Gearbox]]&"</strong>;")) -> 
A29: =IF(Table1[[#This Row],[Trim addition]]<>"",SPECS!$B$3,"") ->  | C29: =IF(Table1[[#This Row],[Trim addition]]<>"",LOWER(SPECS!$B$8),"") ->  | D29: =IF(Table1[[#This Row],[Trim addition]]<>"",SPECS!$B$7,"") ->  | E29: =IF(Table1[[#This Row],[Trim addition]]<>"",LOWER(SPECS!$B$26),"") ->  | F29: =TRIM(IF(ISBLANK(Table1[[#This Row],[Trim addition]]),"","[Make] [Model]"&CHAR(10)&"<strong>"&Table1[[#This Row],[Variant]]&" "&Table1[[#This Row],[Trim addition]]&" "&Table1[[#This Row],[Engine]]&" "&Table1[[#This Row],[Drivetrain]]&" "&Table1[[#This Row],[Gearbox]]&"</strong>;")) -> 
A30: =IF(Table1[[#This Row],[Trim addition]]<>"",SPECS!$B$3,"") ->  | C30: =IF(Table1[[#This Row],[Trim addition]]<>"",LOWER(SPECS!$B$8),"") ->  | D30: =IF(Table1[[#This Row],[Trim addition]]<>"",SPECS!$B$7,"") ->  | E30: =IF(Table1[[#This Row],[Trim addition]]<>"",LOWER(SPECS!$B$26),"") ->  | F30: =TRIM(IF(ISBLANK(Table1[[#This Row],[Trim addition]]),"","[Make] [Model]"&CHAR(10)&"<strong>"&Table1[[#This Row],[Variant]]&" "&Table1[[#This Row],[Trim addition]]&" "&Table1[[#This Row],[Engine]]&" "&Table1[[#This Row],[Drivetrain]]&" "&Table1[[#This Row],[Gearbox]]&"</strong>;")) -> 
A31: =IF(Table1[[#This Row],[Trim addition]]<>"",SPECS!$B$3,"") ->  | C31: =IF(Table1[[#This Row],[Trim addition]]<>"",LOWER(SPECS!$B$8),"") ->  | D31: =IF(Table1[[#This Row],[Trim addition]]<>"",SPECS!$B$7,"") ->  | E31: =IF(Table1[[#This Row],[Trim addition]]<>"",LOWER(SPECS!$B$26),"") ->  | F31: =TRIM(IF(ISBLANK(Table1[[#This Row],[Trim addition]]),"","[Make] [Model]"&CHAR(10)&"<strong>"&Table1[[#This Row],[Variant]]&" "&Table1[[#This Row],[Trim addition]]&" "&Table1[[#This Row],[Engine]]&" "&Table1[[#This Row],[Drivetrain]]&" "&Table1[[#This Row],[Gearbox]]&"</strong>;")) -> 
A32: =IF(Table1[[#This Row],[Trim addition]]<>"",SPECS!$B$3,"") ->  | C32: =IF(Table1[[#This Row],[Trim addition]]<>"",LOWER(SPECS!$B$8),"") ->  | D32: =IF(Table1[[#This Row],[Trim addition]]<>"",SPECS!$B$7,"") ->  | E32: =IF(Table1[[#This Row],[Trim addition]]<>"",LOWER(SPECS!$B$26),"") ->  | F32: =TRIM(IF(ISBLANK(Table1[[#This Row],[Trim addition]]),"","[Make] [Model]"&CHAR(10)&"<strong>"&Table1[[#This Row],[Variant]]&" "&Table1[[#This Row],[Trim addition]]&" "&Table1[[#This Row],[Engine]]&" "&Table1[[#This Row],[Drivetrain]]&" "&Table1[[#This Row],[Gearbox]]&"</strong>;")) -> 
A33: =IF(Table1[[#This Row],[Trim addition]]<>"",SPECS!$B$3,"") ->  | C33: =IF(Table1[[#This Row],[Trim addition]]<>"",LOWER(SPECS!$B$8),"") ->  | D33: =IF(Table1[[#This Row],[Trim addition]]<>"",SPECS!$B$7,"") ->  | E33: =IF(Table1[[#This Row],[Trim addition]]<>"",LOWER(SPECS!$B$26),"") ->  | F33: =TRIM(IF(ISBLANK(Table1[[#This Row],[Trim addition]]),"","[Make] [Model]"&CHAR(10)&"<strong>"&Table1[[#This Row],[Variant]]&" "&Table1[[#This Row],[Trim addition]]&" "&Table1[[#This Row],[Engine]]&" "&Table1[[#This Row],[Drivetrain]]&" "&Table1[[#This Row],[Gearbox]]&"</strong>;")) -> 
A34: =IF(Table1[[#This Row],[Trim addition]]<>"",SPECS!$B$3,"") ->  | C34: =IF(Table1[[#This Row],[Trim addition]]<>"",LOWER(SPECS!$B$8),"") ->  | D34: =IF(Table1[[#This Row],[Trim addition]]<>"",SPECS!$B$7,"") ->  | E34: =IF(Table1[[#This Row],[Trim addition]]<>"",LOWER(SPECS!$B$26),"") ->  | F34: =TRIM(IF(ISBLANK(Table1[[#This Row],[Trim addition]]),"","[Make] [Model]"&CHAR(10)&"<strong>"&Table1[[#This Row],[Variant]]&" "&Table1[[#This Row],[Trim addition]]&" "&Table1[[#This Row],[Engine]]&" "&Table1[[#This Row],[Drivetrain]]&" "&Table1[[#This Row],[Gearbox]]&"</strong>;")) -> 
A35: =IF(Table1[[#This Row],[Trim addition]]<>"",SPECS!$B$3,"") ->  | C35: =IF(Table1[[#This Row],[Trim addition]]<>"",LOWER(SPECS!$B$8),"") ->  | D35: =IF(Table1[[#This Row],[Trim addition]]<>"",SPECS!$B$7,"") ->  | E35: =IF(Table1[[#This Row],[Trim addition]]<>"",LOWER(SPECS!$B$26),"") ->  | F35: =TRIM(IF(ISBLANK(Table1[[#This Row],[Trim addition]]),"","[Make] [Model]"&CHAR(10)&"<strong>"&Table1[[#This Row],[Variant]]&" "&Table1[[#This Row],[Trim addition]]&" "&Table1[[#This Row],[Engine]]&" "&Table1[[#This Row],[Drivetrain]]&" "&Table1[[#This Row],[Gearbox]]&"</strong>;")) -> 
A36: =IF(Table1[[#This Row],[Trim addition]]<>"",SPECS!$B$3,"") ->  | C36: =IF(Table1[[#This Row],[Trim addition]]<>"",LOWER(SPECS!$B$8),"") ->  | D36: =IF(Table1[[#This Row],[Trim addition]]<>"",SPECS!$B$7,"") ->  | E36: =IF(Table1[[#This Row],[Trim addition]]<>"",LOWER(SPECS!$B$26),"") ->  | F36: =TRIM(IF(ISBLANK(Table1[[#This Row],[Trim addition]]),"","[Make] [Model]"&CHAR(10)&"<strong>"&Table1[[#This Row],[Variant]]&" "&Table1[[#This Row],[Trim addition]]&" "&Table1[[#This Row],[Engine]]&" "&Table1[[#This Row],[Drivetrain]]&" "&Table1[[#This Row],[Gearbox]]&"</strong>;")) -> 
A37: =IF(Table1[[#This Row],[Trim addition]]<>"",SPECS!$B$3,"") ->  | C37: =IF(Table1[[#This Row],[Trim addition]]<>"",LOWER(SPECS!$B$8),"") ->  | D37: =IF(Table1[[#This Row],[Trim addition]]<>"",SPECS!$B$7,"") ->  | E37: =IF(Table1[[#This Row],[Trim addition]]<>"",LOWER(SPECS!$B$26),"") ->  | F37: =TRIM(IF(ISBLANK(Table1[[#This Row],[Trim addition]]),"","[Make] [Model]"&CHAR(10)&"<strong>"&Table1[[#This Row],[Variant]]&" "&Table1[[#This Row],[Trim addition]]&" "&Table1[[#This Row],[Engine]]&" "&Table1[[#This Row],[Drivetrain]]&" "&Table1[[#This Row],[Gearbox]]&"</strong>;")) -> 
A38: =IF(Table1[[#This Row],[Trim addition]]<>"",SPECS!$B$3,"") ->  | C38: =IF(Table1[[#This Row],[Trim addition]]<>"",LOWER(SPECS!$B$8),"") ->  | D38: =IF(Table1[[#This Row],[Trim addition]]<>"",SPECS!$B$7,"") ->  | E38: =IF(Table1[[#This Row],[Trim addition]]<>"",LOWER(SPECS!$B$26),"") ->  | F38: =TRIM(IF(ISBLANK(Table1[[#This Row],[Trim addition]]),"","[Make] [Model]"&CHAR(10)&"<strong>"&Table1[[#This Row],[Variant]]&" "&Table1[[#This Row],[Trim addition]]&" "&Table1[[#This Row],[Engine]]&" "&Table1[[#This Row],[Drivetrain]]&" "&Table1[[#This Row],[Gearbox]]&"</strong>;")) -> 
A39: =IF(Table1[[#This Row],[Trim addition]]<>"",SPECS!$B$3,"") ->  | C39: =IF(Table1[[#This Row],[Trim addition]]<>"",LOWER(SPECS!$B$8),"") ->  | D39: =IF(Table1[[#This Row],[Trim addition]]<>"",SPECS!$B$7,"") ->  | E39: =IF(Table1[[#This Row],[Trim addition]]<>"",LOWER(SPECS!$B$26),"") ->  | F39: =TRIM(IF(ISBLANK(Table1[[#This Row],[Trim addition]]),"","[Make] [Model]"&CHAR(10)&"<strong>"&Table1[[#This Row],[Variant]]&" "&Table1[[#This Row],[Trim addition]]&" "&Table1[[#This Row],[Engine]]&" "&Table1[[#This Row],[Drivetrain]]&" "&Table1[[#This Row],[Gearbox]]&"</strong>;")) -> 
A40: =IF(Table1[[#This Row],[Trim addition]]<>"",SPECS!$B$3,"") ->  | C40: =IF(Table1[[#This Row],[Trim addition]]<>"",LOWER(SPECS!$B$8),"") ->  | D40: =IF(Table1[[#This Row],[Trim addition]]<>"",SPECS!$B$7,"") ->  | E40: =IF(Table1[[#This Row],[Trim addition]]<>"",LOWER(SPECS!$B$26),"") ->  | F40: =TRIM(IF(ISBLANK(Table1[[#This Row],[Trim addition]]),"","[Make] [Model]"&CHAR(10)&"<strong>"&Table1[[#This Row],[Variant]]&" "&Table1[[#This Row],[Trim addition]]&" "&Table1[[#This Row],[Engine]]&" "&Table1[[#This Row],[Drivetrain]]&" "&Table1[[#This Row],[Gearbox]]&"</strong>;")) -> 
A41: =IF(Table1[[#This Row],[Trim addition]]<>"",SPECS!$B$3,"") ->  | C41: =IF(Table1[[#This Row],[Trim addition]]<>"",LOWER(SPECS!$B$8),"") ->  | D41: =IF(Table1[[#This Row],[Trim addition]]<>"",SPECS!$B$7,"") ->  | E41: =IF(Table1[[#This Row],[Trim addition]]<>"",LOWER(SPECS!$B$26),"") ->  | F41: =TRIM(IF(ISBLANK(Table1[[#This Row],[Trim addition]]),"","[Make] [Model]"&CHAR(10)&"<strong>"&Table1[[#This Row],[Variant]]&" "&Table1[[#This Row],[Trim addition]]&" "&Table1[[#This Row],[Engine]]&" "&Table1[[#This Row],[Drivetrain]]&" "&Table1[[#This Row],[Gearbox]]&"</strong>;")) -> 

Sheet Child vehicles
A1: Make | B1: Model | C1: Variant name (Type) | D1: Vehicle class / category | E1: Electric Engine | F1: ICE engine | G1: Drivetrain | H1: Gearbox | J1: v 250731 | O1: Make | P1: Model
G2: =IF(A2<>"", SPECS!B$7, "") ->  | H2: =IF(A2<>"", SPECS!B$26, "") ->  | J2: Model names are provided as reference to existing model names. | K2: Electric Engine | L2: BEV | M2: electric | N2: Fill in the highlighted cell! | O2: AION | P2: #1
G3: =IF(A3<>"", SPECS!B$7, "") ->  | H3: =IF(A3<>"", SPECS!B$26, "") ->  | J3: E.g., "BMW 1 Series" should not also appear as "BMW 1-Series" to maintain consistency. | L3: hybrid | M3: hybrid | O3: Aiways | P3: #3
G4: =IF(A4<>"", SPECS!B$7, "") ->  | H4: =IF(A4<>"", SPECS!B$26, "") ->  | J4: If a (new) model name is not listed, please enter it manually. | L4: hydrogen | M4: hydrogen | O4: Alfa Romeo | P4: #5
G5: =IF(A5<>"", SPECS!B$7, "") ->  | H5: =IF(A5<>"", SPECS!B$26, "") ->  | L5: mild hybrid | O5: Alpine | P5: 001
G6: =IF(A6<>"", SPECS!B$7, "") ->  | H6: =IF(A6<>"", SPECS!B$26, "") ->  | J6: Variant names | L6: PHEV | M6: plug-in hybrid | O6: Aston Martin | P6: 01
G7: =IF(A7<>"", SPECS!B$7, "") ->  | H7: =IF(A7<>"", SPECS!B$26, "") ->  | J7: For ICE models, avoid mentioning litres as unit, if it must be included, use a lower case l preceeded by a space | K7: ICE | L7: CNG | M7: CNG | O7: Audi | P7: 02
G8: =IF(A8<>"", SPECS!B$7, "") ->  | H8: =IF(A8<>"", SPECS!B$26, "") ->  | J8: Always use a dot as a decimal separator for engine size | L8: CNG-petrol | M8: CNG-petrol | O8: BMW | P8: 07
G9: =IF(A9<>"", SPECS!B$7, "") ->  | H9: =IF(A9<>"", SPECS!B$26, "") ->  | J9: e.g., 1.5 TSI or 1.0 EcoBoost or 1.6 l | L9: diesel | M9: diesel | O9: BYD | P9: 08
L10: E85 | M10: E85 | O10: Byton | P10: 1 Series
E11: Info is automatically taken from the base model | L11: LPG | M11: LPG | O11: Cadillac | P11: 2
L12: petrol | M12: petrol | O12: Chang'An | P12: 2 Hybrid
J13: =--(SUMPRODUCT(--ISNUMBER(SEARCH("0,",C2:C30))+--ISNUMBER(SEARCH("1,",C2:C30))+--ISNUMBER(SEARCH("2,",C2:C30))+--ISNUMBER(SEARCH("3,",C2:C30))+--ISNUMBER(SEARCH("4,",C2:C30))+--ISNUMBER(SEARCH("5,",C2:C30))+--ISNUMBER(SEARCH("6,",C2:C30))+--ISNUMBER(SEARCH("7,",C2:C30))+--ISNUMBER(SEARCH("8,",C2:C30))+--ISNUMBER(SEARCH("9,",C2:C30)))>0) -> 0 | O13: CHERY | P13: 2 Series Active Tourer
O14: Chevrolet | P14: 2 Series Coupé
O15: Chrysler | P15: 2 Series Gran Coupe
O16: Citroën | P16: 2 Series Gran Coupé
O17: Cupra | P17: 2008
O18: Dacia | P18: 2023-11-30-Euro-By Op Mgr
O19: DAF | P19: 2023-11-30-GREEN-By Op Mgr
O20: Deepal | P20: 208
O21: Dodge | P21: 3
O22: Dongfeng | P22: 3 Crossback
O23: DS | P23: 3 Crossback e-TENSE
O24: EBRO | P24: 3 Series
O25: Exlantix | P25: 3008
O26: Farizon | P26: 3008 Hybrid4
O27: FIAT | P27: 308
O28: firefly | P28: 308 PHEV
O29: Ford | P29: 4
O30: GEELY | P30: 4 Electric
O31: Genesis | P31: 4 E-Tech Electric
O32: GWM | P32: 4 EV Urban
O33: Honda | P33: 4 Series Convertible
O34: Hongqi | P34: 4 Series Coupé
O35: Hyundai | P35: 408
O36: IM | P36: 4L
O37: Infiniti | P37: 5
O38: Isuzu | P38: 5 Series
O39: Iveco | P39: 500
O40: JAECOO | P40: 5008
O41: Jaguar | P41: 500e
O42: Jeep | P42: 508
O43: JuneYao | P43: 508 Hybrid
O44: Kia | P44: 6
O45: Lancia | P45: 6 Series GT
O46: Land Rover | P46: 600e
O47: Leapmotor | P47: 6e
O48: LEVC | P48: 7 Crossback
O49: Lexus | P49: 7 Crossback PHEV
O50: Lotus | P50: 7 PHEV
O51: Lucid | P51: 7X
O52: Lynk & Co | P52: 9
O53: MAN | P53: A1
O54: Maserati | P54: A290
O55: Maxus | P55: A3
O56: MAZDA | P56: A390
O57: Mercedes-Benz | P57: A4
O58: MG | P58: A4 Avant g-tron
O59: MINI | P59: A5
O60: Mitsubishi | P60: A5 PHEV
O61: Mobilize | P61: A6
O62: NIO | P62: A6 e-tron
O63: Nissan | P63: A6 PHEV
O64: OMODA | P64: A7
O65: Opel | P65: A7 Sportback
O66: ORA | P66: Aceman
O67: Peugeot | P67: A-Class
O68: Polestar | P68: Actros
O69: Porsche | P69: Actros L (2024 MY)
O70: Renault | P70: Actros L (4x2 Tractor Unit)
O71: Renault Trucks | P71: Actros L (6x2 Rigid)
O72: Rivian | P72: Air
O73: Rolls-Royce | P73: Alhambra
O74: Scania | P74: Allspace
O75: SEAT | P75: Amarok
O76: SERES | P76: Ampera-e
O77: Škoda | P77: Ariya
O78: smart | P78: Arkana
O79: SsangYong | P79: Arona
O80: Subaru | P80: Arteon
O81: Suzuki | P81: Arteon Shooting Brake
O82: Tesla | P82: Astra
O83: TêstÖÉM | P83: Astra Plug-in Hybrid
O84: Togg | P84: ASX
O85: Toyota | P85: Ateca
O86: VinFast | P86: ATTO 2
O87: Volkswagen | P87: ATTO 3
O88: Volvo | P88: Atto3 2022 - Veoneer
O89: Voyah | P89: Atto3 2025 - Bosch
O90: WEY | P90: Austral
O91: XPENG | P91: Austral HEV
O92: ZEEKR | P92: Avenger
P93: Aygo
P94: Aygo X
P95: B10
P96: Baleno
P97: BAYON
P98: B-Class
P99: Berlingo
P100: Bigster
P101: Born
P102: BOX
P103: Boxer
P104: bZ4X
P105: C10
P106: C3
P107: C3 Aircross
P108: C4
P109: C4 X
P110: C40 Recharge
P111: C5 Aircross
P112: C5 X
P113: Caddy
P114: Caddy Cargo
P115: Caddy PHEV
P116: Capri
P117: Captur
P118: Captur E-TECH
P119: CAPTUR E-TECH Plug-in Hybrid
P120: Caravelle
P121: Cayenne
P122: C-Class
P123: C-Class Convertible
P124: Ceed
P125: Cherokee
P126: C-HR
P127: C-HR PHEV
P128: C-HR+
P129: Citan
P130: Citan Tourer
P131: CITIGO
P132: Civic
P133: CLA
P134: CLE Coupé
P135: Clio
P136: Clio E-TECH Hybrid
P137: CLS-Class
P138: C-MAX
P139: Coffee 01
P140: Coffee 02
P141: Combo
P142: Combo-e Life
P143: Compass
P144: Cooper
P145: Cooper E
P146: Corolla
P147: Corolla Cross
P148: Corsa
P149: Corsa-E
P150: Countryman
P151: COURAGE
P152: Crafter
P153: Crossland X
P154: Crosstrek
P155: CR-V
P156: CX-30
P157: CX-5
P158: CX-60
P159: CX-80
P160: D
P161: Daily
P162: Defender
P163: Defender PHEV
P164: Demo #1 for TU Graz
P165: Discovery
P166: Discovery Sport
P167: D-Max
P168: D-MAX Crew Cab
P169: Doblo
P170: DOLPHIN
P171: DOLPHIN SURF
P172: Ducato
P173: Duster
P174: e
P175: e VITARA
P176: E07 - CANCELLED
P177: e208
P178: e-3008
P179: ë-Berlingo
P180: ë-C3
P181: ë-C4
P182: EC40
P183: e-Citan Tourer
P184: E-Class
P185: Eclipse Cross
P186: ecoSport
P187: eDELIVER 5
P188: eDELIVER 7
P189: eDELIVER 9
P190: Edge
P191: EHS5
P192: EHS7
P193: E-HS9
P194: EL6
P195: EL7
P196: Electric
P197: Electrified G80
P198: Electrified GV70
P199: Elroq
P200: e-Mehari
... 378 more rows

Sheet Track Changes
A1: Version 2.0.8.2 received the following changes to adopt E85 fuel: | B1: Damyanov | D1: 29.09.2022
A3: LIMITS Greenhouse
A4: · B33 E85 fuel Upstream CO2 reduction factor due to neutral bio-fuel share combustion carbon balance = 0,214
A5: · Row 26, added “Ethanol E85”, 1,753
A7: LIMITS Efficiency
A8: · B19 added “E10”
A9: · B20 added “B7”
A10: · Row added after table at line 24
A11: · On line 24 added “Ethanol E85, Factor 6,41, Override 6,41
A13: SPECS
A14: · Ethanol E85 option inserted
A15: · Formula in B6 and B7 expanded with E85 option
A17: Efficiency
A18: · Formulas in E10:E15 expanded with addition of E85 option
A19: · Formulas in M23:E31 expanded with addition of E85 option
A20: · Formulas in W23:W31 expanded with addition of E85 option
A21: · Formulas in M43:M51 expanded with addition of E85 option
A23: Greenhouse
A24: · Formulas in Column E and H expanded with addition of E85 option
A25: · T7 formula expanded with E85 option
A27: Website Summary
A28: · D89, D118, D139, D140 now include instruction about using automatic indexing
A29: · Row 167 now defines the Weighted Overall Index
A31: Version saved as 2.0.8.2_E85
A33: Version 2.0.8.2_E85 received the following chnages to ease data transfer to assessment, LCA Static and LCA Tool | B33: Damyanov | D33: 26.01.2023
A35: Website Summary
A36: Row 5: Start of Production
A37: Row 6: End of Production
A38: Row 9: Number of Doors
A39: Row 114: Best-Case Consumption (1st fuel source)
A40: Row 117: Best-Case Consumption (1st fuel source)
A41: Cells D119-D124: format explanation
A42: Row 120: Driving Range - Best-Case (1st fuel source)
A43: Row 123: Driving Range - Best - Case (2nd fuel source)
A44: Row 144: CO2 Tailpipe - Average
A45: Row 145: CO2 Tailpipe - Best
A46: Row 146: CO2 Tailpipe - Worst
A47: Row 147: N2O
A48: Row 148: CH4
A49: Cell D165: format explanation
A50: Cell C170, explanation: Declared Battery Capacity (usable)
A51: Row 171: Declared Battery Capacity (installed)
A52: A15, A93, A126: formated in bold
A54: SPECS
A55: Cells O1, O2: Rating sheet Version displayed
A56: Cell J6: Info added "Respect Green NCAP's definition of "Hybrid"."
A57: Cell A5, label changed from "Drivetrain (FWD/AWD/RWD/4WD)" to Drivetrain"
A58: Cell B5: Dropdown list inserted for Drivetrain
A59: Chnaged A11 from "Declared Battery Capacity [kWh]" to "Declared Battery Capacity (usable) [kWh]"
A60: Added Row 12: Declared Battery Capacity (installed) [kWh]
A61: Cell B22: Dropdown list inserted for Gearbox type
A62: Cell C23: info changed
A63: Added Row 33 "Start of Production"
A64: Added Row 34 "End of Production" with conditional formatting
A65: Tabs SPECS and RESULTS moved to 2nd and 3rd position
A66: RESULTS
A67: Table Structure Protected by the same password as for the other tabs
A68: TABS LIMITS Clean Air, LIMITS Efficiency, LIMITS Greenhouse
A69: Font changed to Calibri 11 for all.
A70: Version saved as 2.0.8.3
A72: Version 2.0.8.3 received the following chnages as it was spotted that the PEMS tests are not included in the selection range for best/worst CO2 consumption for LCA. They should be, because there are included in the selection for best/worst fuel/energy consumption. | B72: Damyanov | D72: 02.02.2023
A74: Greenhouse
A75: Hidden PEMS blocks opened:
A76: PEMS+ cold engine 1
A77: PEMS+ Eco / light
A78: PEMS+ Heavy load
A79: Cells C33 und B51 "Regulatory performance PEMS+ " deleted
A80: All PEMS test blocks put in gray font colour
A81: In all PEMS blocks, the formula for the tailpipe CO2 emissions received a changed reference to column "E" in sheet "Results", instead to column "F"
A82: In all PEMS blocks, the formula for the tailpipe CO2 emissions received a additional variable "E_85"
A83: WEBSITE SUMMARY
A84: B147 Addition of all PEMS test as range for the selection in the fromula
A85: B148 Addition of all PEMS test as range for the selection in the fromula
A87: OVERALL RATING (avg) | B87: Verheyen | D87: 03.02.2023
A88: Stars label changed to year 2023
A89: WEBSITE SUMMARY
A90: Internal Combustion Engine (line 178) should say =IF(Petrol,"Petrol",IF(Diesel,"Diesel",IF(E_85,"E85",IF(CNG_Mono,"CNG",IF(CNG_Dual,"CNG",""))))) to have E85 reflect in the datasheet. It is understood that E85 is not an eingine type, stillwe accept that.
A91: SPECS | B91: Damyanov | D91: 03.02.2023
A92: Cell O2, Year chnaged to 2023
A93: Cells O3, O4: "Protocols 2022" added
A95: Version saved as GNT_Rating_Sheet_Master_2023v2.0.8.4
A98: Version GNT_Rating_Sheet_Master_2023v2.0.8.4 received the following update: | B98: Damyanov | D98: 22.02.2023
A99: SPECS
A100: New entry in row 22: Heating concept with a drop down selection list in P18:P24
A101: O2: version changed to 2.0.8.5
A102: A13:A15 deleted ", combined PHEV" from label
A103: WEBSITE SUMMARY
A104: Addition of new field "Heating Concept" in row 174 and reference to the source cell in SPECS
A106: Version saved as GNT_Rating_Sheet_Master_2023v2.0.8.5
A107: Started with version 1.4.6
A108: Overall
B109: Average formula corrected to round down
A110: deleted sheet "Temp"
A111: Deleted sheet "Consumer Parameters"
A112: LCA RESULTS, I3: changed factors, USA 40%, Japan, Korea 50%, Inida 60%
A113: Driving Experience Input
B114: PHEV greyed out at Estimated Actual Consumption and Driving Range
B115: E52, label changed to "Time to reach 16°C [s]"
B116: In section "Cabin Heating", table about maintaining the temperature deleted, will not be a part of the assessment
A117: Driving Experience "Calculation Sheet"
B118: All formulad changed from linear scale assesment to if functions
B119: Accuracy of Display block reworked
B120: F151 label changed to "Time to reach 16°C [s]"
B121: In Cabin Heating Block, reference to maintaining temperature removed
B122: Rear Left and right footwell fields changed to Front left Head and feet, the values of which are copies of the measurements front right
B123: Assessment "Average of Rear Left and Right Footwell" deleted
A124: TEST RESULTS
B125: B20 "Wheel alignment label" changed to "Front wheel toe check"
B126: Below "Front wheel toe" added "rear wheel toe check"
A127: Clean Air
B128: Formula for Wheel Alignment value and score changed
B129: D84 label "Accelerator aggresiveness" changed to "accelerator response"
B130: Accelerator Response thresholds updated
B131: Friction brake share WLTC+ Warm: changed formula in scoring and thresholds
B132: Upper threshold for friction changed to 100
B133: Row "Friction brake share WLTC+ CAT" deleted
B134: Change Non-Testing LCA Phase Emissions NOx upper threshold to 300
A135: Limits Clean Air
B136: Added a table for brake share
A137: SPECS
B138: Added new line "Traction battery voltage"
A139: Greenhouse
B140: Additional LCA Emissions, upper threshold changed to 200
A141: Efficiency
B142: Additional LCA Energy Demand, upper threshold changed to 100
A143: Saved as 1.4.7 | B143: Damyanov | D143: 30.06.2025
A144: Added fitment table to V2X in Driving Experience Input | B144: Damyanov | D144: 02.07.2025
A145: Acoring Function for Brake abrasion corrected | B145: Damyanov | D145: 03.07.2025
A146: Changed some Non-testing LCA emisisons thresholds
A147: Saved as 1.5.0
A149: Added explanation what will be filled by the secretariat in sheet "Driving Experience Input"
A150: Added "or remotely activated" to tables in "Additional Heating Functions" in sheet "Driving Experience"
A151: Added asterisk explanation about "Smart cabin heating management" in sheet "Driving Experience"
A152: Added section "CA Graph 1 Direct Exhaust Emissions" in sheet "Website Summary"
A153: saved as 1.5.3
B154: Damyanov | D154: 25.07.2025
A155: Mistake in Clean Air for recuperation share formula for conventional vehciles corrected. Saved as 1.5.4 | B155: Damyanov | D155: 30.07.2025
A157: Corrected upstream fuel pollutants table. Saved as 1.5.11 | B157: Damyanov | D157: 14.08.2025
A158: Many missing…. V 1.6.3
A159: Remove gross exceedance test results invalidation for NH3 | B159: Damyanov | D159: 19.02.2026
A160: Macro module added to allow checking of rating stability (for family building) Saved as 1.6.5 | B160: Williams | D160: 31.03.2026
A161: Macro improved. Euro 6 EB level added. Saved as 1.6.6 | B161: Williiams/Damyanov | D161: 06.05.2026
